Local authority department which incurred the expenditure,Service Division,Cost Centre,Summary of the Purpose of Expenditure,Expense Type,Expense Code,Detailed Expense Type,Date of Transaction,Transaction Number,Beneficiary,Merchant Category Number,Merchant Category,Gross Amount,VAT,Net Amount
Children and Young Peoples Services,Head of Childrens Social Care,085561,Social Work Academy,Supplies and Services,304403,Equipment and Materials,01-Feb-2020,000007030695316,AMZNMktplace,5999,Other consumables,10.00,1.67,8.33
Dedicated Schools Grant BG0015,DSG High Needs Block,079050,SENSS-Sensory,Supplies and Services,304403,Equipment and Materials,01-Feb-2020,000007030695406,AMZNMktplace,5999,Other consumables,46.88,7.81,39.07
Regeneration and Local Services,Development and Housing,030772,CLLD South,Supplies and Services,352001,Conference Expenses,01-Feb-2020,000007030695744,Hotel on Booking.com,7011,Conferencesseminars fees etc,200.00,0.00,200.00
Children and Young Peoples Services,Head of Childrens Social Care,085342,9 Cedar Drive Aycliffe,Supplies and Services,328041,Clothing uniforms and laundry E328,01-Feb-2020,000007030695912,PRIMARK,5651,Clothing uniforms and laundry,65.00,0.00,65.00
Children and Young Peoples Services,Head of Childrens Social Care,085342,9 Cedar Drive Aycliffe,Supplies and Services,348037,Subsistence E348,01-Feb-2020,000007030695916,SUBWAY 64779,5814,Subsistence,10.50,1.75,8.75
Children and Young Peoples Services,Head of Childrens Social Care,085342,9 Cedar Drive Aycliffe,Supplies and Services,348037,Subsistence E348,01-Feb-2020,000007030695916 - 1,SUBWAY 64779,5814,Subsistence,5.67,,5.67
Children and Young Peoples Services,Head of Childrens Social Care,085342,9 Cedar Drive Aycliffe,Supplies and Services,304999,Equipment and Materials,01-Feb-2020,000007030695920,SUPERDRUG STORES PLC,5912,Misc equipment tools and materials,11.45,0.00,11.45
Children and Young Peoples Services,Head of Childrens Social Care,085342,9 Cedar Drive Aycliffe,Transport,235057,Public Transport,01-Feb-2020,000007030695924,3C_ CORNMILL SHOPPING,7523,Staff travelling,2.00,0.00,2.00
Children and Young Peoples Services,Head of Education and Skills,071732,Dean Bank Childcare,Supplies and Services,328041,Clothing uniforms and laundry E328,01-Feb-2020,000007030695972,ARGOS SEDGEFIELD,5310,Clothing uniforms and laundry,21.99,0.00,21.99
Children and Young Peoples Services,Head of Childrens Social Care,085352,Tow Law CU,Supplies and Services,328041,Clothing uniforms and laundry E328,01-Feb-2020,000007030696602,B & M RETAIL,5310,Clothing uniforms and laundry,26.17,0.00,26.17
Children and Young Peoples Services,Head of Childrens Social Care,085352,Tow Law CU,Supplies and Services,304259,Equipment and Materials,01-Feb-2020,000007030696606,SPORTSDIRECT 264,5941,Equipment-purchase and rental,34.99,0.00,34.99
Regeneration and Local Services,Development and Housing,030554,International Relations 030554,Transport,235057,Public Transport,01-Feb-2020,000007030696666,PRINCE BISHOP SHOPPING,7523,Staff travelling,11.50,0.00,11.50
Regeneration and Local Services,Development and Housing,030554,International Relations 030554,Supplies and Services,324117,Provisions E324,01-Feb-2020,000007030696672,TESCO STORES 6029,5411,Catering costs - provisions,12.00,0.00,12.00
Children and Young Peoples Services,Head of Childrens Social Care,085332,Middlestone Moor CU,Supplies and Services,348037,Subsistence E348,01-Feb-2020,000007030697002,Just Eat,5814,Subsistence,16.30,0.00,16.30
Children and Young Peoples Services,Head of Childrens Social Care,085334,West Rainton Satelite Home,Supplies and Services,328041,Clothing uniforms and laundry E328,01-Feb-2020,000007030697190,B & M RETAIL,5310,Clothing uniforms and laundry,4.99,0.00,4.99
Children and Young Peoples Services,Head of Childrens Social Care,085334,West Rainton Satelite Home,Supplies and Services,328041,Clothing uniforms and laundry E328,01-Feb-2020,000007030697196,B & M RETAIL,5310,Clothing uniforms and laundry,2.59,0.00,2.59
Children and Young Peoples Services,Head of Childrens Social Care,085334,West Rainton Satelite Home,Supplies and Services,324117,Provisions E324,01-Feb-2020,000007030697200,TESCO STORES 2371,5411,Catering costs - provisions,33.24,0.00,33.24
Children and Young Peoples Services,Head of Early Help Inclusion & Vulnerable Children.,085957,Secure Management,Supplies and Services,324117,Provisions E324,01-Feb-2020,000007030697288,TESCO STORES 6329,5411,Catering costs - provisions,66.46,0.00,66.46
Dedicated Schools Grant BG0015,DSG High Needs Block,079040,SENSS-HQ,Supplies and Services,304403,Equipment and Materials,01-Feb-2020,000007030697316,AMZNMktplace,5999,Other consumables,13.92,2.32,11.60
Dedicated Schools Grant BG0015,DSG High Needs Block,079040,SENSS-HQ,Supplies and Services,304403,Equipment and Materials,01-Feb-2020,000007030697316 - 1,AMZNMktplace,5999,Other consumables,0.04,,0.04
Regeneration and Local Services,Development and Housing,030554,International Relations 030554,Supplies and Services,332047,Printing Stationery and Gen Off Exps,01-Feb-2020,000007030697504,RYMAN,5943,Stationery,11.67,1.95,9.72
Children and Young Peoples Services,Head of Childrens Social Care,085332,Middlestone Moor CU,Supplies and Services,348037,Subsistence E348,01-Feb-2020,000007030697772,ALEEZA,5812,Subsistence,68.75,0.00,68.75
Regeneration and Local Services,Development and Housing,030554,International Relations 030554,Transport,235057,Public Transport,01-Feb-2020,000007030697844,PRINCE BISHOP SHOPPING,7523,Staff travelling,11.50,0.00,11.50
Regeneration and Local Services,Development and Housing,030554,International Relations 030554,Supplies and Services,348037,Subsistence E348,01-Feb-2020,000007030697850,COSTA COFFEE,5814,Subsistence,8.45,0.00,8.45
Regeneration and Local Services,Business Durham CL0850,030689,Inward Investment and Aftercare,Supplies and Services,304403,Equipment and Materials,02-Feb-2020,000007030695192,ADOBE CREATIVE CLOUD,5734,Other consumables,49.94,8.32,41.62
Regeneration and Local Services,Business Durham CL0850,030689,Inward Investment and Aftercare,Supplies and Services,342222,Computers and Communications,02-Feb-2020,000007030695196,FASTHOSTS INTERNET,4816,Comp hardware purch-network servers,67.20,11.20,56.00
Regeneration and Local Services,Business Durham CL0850,030689,Inward Investment and Aftercare,Supplies and Services,342222,Computers and Communications,02-Feb-2020,000007030695200,FASTHOSTS INTERNET,4816,Comp hardware purch-network servers,102.66,17.11,85.55
Children and Young Peoples Services,Head of Education and Skills,054640,Durham Learning Resources 054640,Supplies and Services,384999,Miscellaneous Expenses,02-Feb-2020,000007030695274,Amazon.co.uk EP3OV2J05,5969,Other expenses,81.36,13.58,67.78
Children and Young Peoples Services,Head of Education and Skills,054640,Durham Learning Resources 054640,Supplies and Services,384999,Miscellaneous Expenses,02-Feb-2020,000007030695278,Amazon.co.uk JU7KW5J15,5969,Other expenses,43.40,0.00,43.40
Regeneration and Local Services,Culture Sport and Tourism,030705,Visit County Durham 030705,Supplies and Services,304999,Equipment and Materials,02-Feb-2020,000007030695376,MAILCHIMP MONTHLY,5968,Misc equipment tools and materials,276.44,46.07,230.37
Regeneration and Local Services,Development and Housing,031576,B& B - Temp Accom,Supplies and Services,352001,Conference Expenses,02-Feb-2020,000007030695668,GRAINGER HOTEL,7011,Conferencesseminars fees etc,50.00,0.00,50.00
Regeneration and Local Services,Development and Housing,030772,CLLD South,Transport,215995,Running Costs of Vehicles,02-Feb-2020,000007030695746,ASDA PETROL 5115,5542,Vehicle running expenses,46.19,7.70,38.49
Children and Young Peoples Services,Head of Childrens Social Care,085333,Coxhoe Satelite Home,Supplies and Services,348037,Subsistence E348,02-Feb-2020,000007030695780,MCDONALDS,5812,Subsistence,7.71,0.00,7.71
Regeneration and Local Services,Culture Sport and Tourism,011219,Office Services 011219,Supplies and Services,342033,Computers and Communications,02-Feb-2020,000007030695788,SurveyMonkey,7372,Computer hardware,384.00,64.00,320.00
Children and Young Peoples Services,Head of Early Help Inclusion & Vulnerable Children.,073998,TTF-Co-ordinator Grant,Transfer Payments,525033,Other,02-Feb-2020,000007030695804,Amazon Prime X59AW1475,5968,Grants to individuals,7.99,0.00,7.99
Regeneration and Local Services,Environmental Services,026591,C&G - Hardwick Park,Supplies and Services,308011,Furniture,02-Feb-2020,000007030696308,SP OLIVE & SAGE LTD,5712,Furniture repair and replacement,20.00,0.00,20.00
Regeneration and Local Services,Environmental Services,026591,C&G - Hardwick Park,Supplies and Services,304403,Equipment and Materials,02-Feb-2020,000007030696312,AMZNMktplace,5999,Other consumables,8.79,1.47,7.32
Regeneration and Local Services,Environmental Services,026591,C&G - Hardwick Park,Supplies and Services,304403,Equipment and Materials,02-Feb-2020,000007030696314,AMZNMktplace,5999,Other consumables,26.04,4.34,21.70
Regeneration and Local Services,Environmental Services,026591,C&G - Hardwick Park,Supplies and Services,304403,Equipment and Materials,02-Feb-2020,000007030696314 - 1,AMZNMktplace,5999,Other consumables,9.73,,9.73
Resources BK0010,People & Talent Management,010984,Training and Development,Supplies and Services,384999,Miscellaneous Expenses,02-Feb-2020,000007030696424,Amazon.co.uk 6H8T47QU5,5969,Other expenses,39.60,6.60,33.00
Resources BK0010,People & Talent Management,010984,Training and Development,Supplies and Services,384999,Miscellaneous Expenses,02-Feb-2020,000007030696424 - 1,Amazon.co.uk 6H8T47QU5,5969,Other expenses,49.36,,49.36
Resources BK0010,People & Talent Management,010984,Training and Development,Supplies and Services,304403,Equipment and Materials,02-Feb-2020,000007030696426,AMZNMktplace,5999,Other consumables,34.20,5.70,28.50
Resources BK0010,People & Talent Management,010984,Training and Development,Supplies and Services,304403,Equipment and Materials,02-Feb-2020,000007030696426 - 1,AMZNMktplace,5999,Other consumables,49.34,,49.34
Children and Young Peoples Services,Head of Childrens Social Care,085331,New Lea Childrens Home,Supplies and Services,304999,Equipment and Materials,02-Feb-2020,000007030696486,COSTCO WHOLESALE UK,7278,Misc equipment tools and materials,33.60,0.00,33.60
Children and Young Peoples Services,Head of Childrens Social Care,085331,New Lea Childrens Home,Supplies and Services,304999,Equipment and Materials,02-Feb-2020,000007030696510,WWW.INFINITEAIR.CO.UK,7991,Misc equipment tools and materials,11.95,0.00,11.95
Children and Young Peoples Services,Head of Childrens Social Care,085331,New Lea Childrens Home,Supplies and Services,328041,Clothing uniforms and laundry E328,02-Feb-2020,000007030696516,ARGOS LTD,5310,Clothing uniforms and laundry,69.99,0.00,69.99
Children and Young Peoples Services,Head of Childrens Social Care,085331,New Lea Childrens Home,Supplies and Services,328041,Clothing uniforms and laundry E328,02-Feb-2020,000007030696518,B&M RETAIL,5310,Clothing uniforms and laundry,160.41,0.00,160.41
Children and Young Peoples Services,Head of Childrens Social Care,085333,Coxhoe Satelite Home,Supplies and Services,328041,Clothing uniforms and laundry E328,02-Feb-2020,000007030696880,ADIDAS U.K. LIMITED,5655,Clothing uniforms and laundry,31.90,0.00,31.90
Children and Young Peoples Services,Head of Childrens Social Care,085333,Coxhoe Satelite Home,Supplies and Services,324117,Provisions E324,02-Feb-2020,000007030696882,CADBURY SHOP,5499,Catering costs - provisions,1.99,0.00,1.99
Children and Young Peoples Services,Head of Childrens Social Care,085333,Coxhoe Satelite Home,Transport,235057,Public Transport,02-Feb-2020,000007030696884,CAR PARK CHARGES,7523,Staff travelling,2.00,0.00,2.00
Children and Young Peoples Services,Head of Childrens Social Care,085333,Coxhoe Satelite Home,Supplies and Services,328041,Clothing uniforms and laundry E328,02-Feb-2020,000007030696888,THEWORKS,5310,Clothing uniforms and laundry,4.50,0.00,4.50
Children and Young Peoples Services,Head of Childrens Social Care,085333,Coxhoe Satelite Home,Supplies and Services,348037,Subsistence E348,02-Feb-2020,000007030696892,GREGGS,5812,Subsistence,6.25,0.00,6.25
Children and Young Peoples Services,Head of Childrens Social Care,085333,Coxhoe Satelite Home,Supplies and Services,304259,Equipment and Materials,02-Feb-2020,000007030696894,SPORTSDIRECT 178,5941,Equipment-purchase and rental,26.00,0.00,26.00
Resources BK0010,Resources Management CK0450,069000,Resources Management 069000,Supplies and Services,324117,Provisions E324,02-Feb-2020,000007030696900,CO-OP GROUP 010830,5411,Catering costs - provisions,7.67,0.00,7.67
Children and Young Peoples Services,Head of Childrens Social Care,085332,Middlestone Moor CU,Supplies and Services,308011,Furniture,02-Feb-2020,000007030697016,WAYFAIR #2798570758,5712,Furniture repair and replacement,94.98,0.00,94.98
Children and Young Peoples Services,Head of Childrens Social Care,085332,Middlestone Moor CU,Supplies and Services,304999,Equipment and Materials,02-Feb-2020,000007030697022,HOME BARGAINS SPENNYMO,5251,Misc equipment tools and materials,12.99,0.00,12.99
Children and Young Peoples Services,Head of Childrens Social Care,085332,Middlestone Moor CU,Supplies and Services,324117,Provisions E324,02-Feb-2020,000007030697030,ASDA SUPERSTORE 4987,5411,Catering costs - provisions,82.30,0.00,82.30
Adult and Health Services,Head of Adults,055306,Spennymoor Pathways,Supplies and Services,324117,Provisions E324,02-Feb-2020,000007030697040,WILKO RETAIL LIMITED,5399,Catering costs - provisions,3.00,0.50,2.50
Adult and Health Services,Head of Adults,055306,Spennymoor Pathways,Supplies and Services,328041,Clothing uniforms and laundry E328,02-Feb-2020,000007030697048,W BOYES & CO LTD DARLI,5310,Clothing uniforms and laundry,4.99,0.00,4.99
Children and Young Peoples Services,Head of Early Help Inclusion & Vulnerable Children.,085957,Secure Management,Supplies and Services,324117,Provisions E324,02-Feb-2020,000007030697290,TESCO STORES 6329,5411,Catering costs - provisions,112.59,0.00,112.59
Children and Young Peoples Services,Head of Early Help Inclusion & Vulnerable Children.,085957,Secure Management,Supplies and Services,304403,Equipment and Materials,02-Feb-2020,000007030697294,AMZNMktplace,5999,Other consumables,28.56,4.76,23.80
Dedicated Schools Grant BG0015,DSG High Needs Block,079040,SENSS-HQ,Supplies and Services,304403,Equipment and Materials,02-Feb-2020,000007030697318,AMZNMktplace,5999,Other consumables,9.99,0.00,9.99
Dedicated Schools Grant BG0015,DSG High Needs Block,079040,SENSS-HQ,Supplies and Services,304403,Equipment and Materials,02-Feb-2020,000007030697322,AMZNMktplace,5999,Other consumables,29.98,0.00,29.98
Dedicated Schools Grant BG0015,DSG High Needs Block,079050,SENSS-Sensory,Supplies and Services,304403,Equipment and Materials,02-Feb-2020,000007038900170,AMZNMKTPLACE AMAZON.CO,5999,Other consumables,106.08,17.68,88.40
Dedicated Schools Grant BG0015,DSG High Needs Block,079050,SENSS-Sensory,Supplies and Services,304403,Equipment and Materials,02-Feb-2020,000007038900170 - 1,AMZNMKTPLACE AMAZON.CO,5999,Other consumables,18.93,,18.93
Children and Young Peoples Services,Head of Childrens Social Care,085333,Coxhoe Satelite Home,Supplies and Services,328041,Clothing uniforms and laundry E328,02-Feb-2020,000007038900468,PRIMARK 680,5651,Clothing uniforms and laundry,14.20,0.00,14.20
Dedicated Schools Grant BG0015,DSG High Needs Block,079040,SENSS-HQ,Supplies and Services,304403,Equipment and Materials,02-Feb-2020,000007038900556,AMZNMKTPLACE AMAZON.CO,5999,Other consumables,51.99,8.67,43.32
Children and Young Peoples Services,Head of Early Help Inclusion & Vulnerable Children.,071440,Barnard Castle One Point Hub,Supplies and Services,304259,Equipment and Materials,03-Feb-2020,000007030695566,Prime Video 9Y6SZ4605,5735,Equipment-purchase and rental,11.99,2.00,9.99
Children and Young Peoples Services,Head of Childrens Social Care,085341,High Etherley Satelite Home,Supplies and Services,324117,Provisions E324,03-Feb-2020,000007038900128,TESCO STORES 6329,5411,Catering costs - provisions,7.29,0.00,7.29
Children and Young Peoples Services,Head of Education and Skills,054640,Durham Learning Resources 054640,Supplies and Services,304403,Equipment and Materials,03-Feb-2020,000007038900130,AMZNMKTPLACE AMAZON.CO,5999,Other consumables,34.80,5.80,29.00
Children and Young Peoples Services,Head of Education and Skills,054640,Durham Learning Resources 054640,Supplies and Services,304403,Equipment and Materials,03-Feb-2020,000007038900130 - 1,AMZNMKTPLACE AMAZON.CO,5999,Other consumables,0.20,,0.20
Children and Young Peoples Services,Head of Education and Skills,054640,Durham Learning Resources 054640,Supplies and Services,304403,Equipment and Materials,03-Feb-2020,000007038900132,AMZNMKTPLACE AMAZON.CO,5999,Other consumables,6.95,1.16,5.79
Children and Young Peoples Services,Head of Education and Skills,054640,Durham Learning Resources 054640,Supplies and Services,304403,Equipment and Materials,03-Feb-2020,000007038900134,AMZNMKTPLACE AMAZON.CO,5999,Other consumables,89.91,15.03,74.88
Regeneration and Local Services,Environmental Services,010301,C&G - North Grounds Maintenance,Supplies and Services,304221,Equipment and Materials,03-Feb-2020,000007038900136,SCREWFIX CONSETT,5211,Direct materials,149.99,0.00,149.99
Children and Young Peoples Services,Head of Education and Skills,070264,EDC Premises,Supplies and Services,324117,Provisions E324,03-Feb-2020,000007038900138,FREEMAN CATERING BUTCH,5422,Catering costs - provisions,24.45,0.00,24.45
Children and Young Peoples Services,Head of Education and Skills,078411,16-19 Education & Training,Supplies and Services,304259,Equipment and Materials,03-Feb-2020,000007038900148,KENT COUNTY COUNCIL,9399,Equipment-purchase and rental,11.00,0.00,11.00
Children and Young Peoples Services,Head of Education and Skills,078411,16-19 Education & Training,Supplies and Services,324117,Provisions E324,03-Feb-2020,000007038900150,ASDA GEORGE COM LEEDS,5411,Catering costs - provisions,6.00,0.00,6.00
Children and Young Peoples Services,Head of Education and Skills,078411,16-19 Education & Training,Supplies and Services,304259,Equipment and Materials,03-Feb-2020,000007038900152,WWW.DURHAM.GOV.UK,9399,Equipment-purchase and rental,22.00,0.00,22.00
Adult and Health Services,Head of Adults,055302,Durham Pathways,Supplies and Services,304403,Equipment and Materials,03-Feb-2020,000007038900156,AMZNMktplace,5999,Other consumables,59.99,10.00,49.99
Adult and Health Services,Head of Adults,055302,Durham Pathways,Supplies and Services,304403,Equipment and Materials,03-Feb-2020,000007038900158,AMZNMktplace,5999,Other consumables,6.98,1.16,5.82
Adult and Health Services,Head of Adults,055302,Durham Pathways,Supplies and Services,304403,Equipment and Materials,03-Feb-2020,000007038900160,AMZNMktplace,5999,Other consumables,24.99,4.17,20.82
Dedicated Schools Grant BG0015,DSG High Needs Block,079050,SENSS-Sensory,Supplies and Services,304403,Equipment and Materials,03-Feb-2020,000007038900168,AMZNMktplace,5999,Other consumables,20.97,0.00,20.97
Dedicated Schools Grant BG0015,DSG High Needs Block,079050,SENSS-Sensory,Supplies and Services,304403,Equipment and Materials,03-Feb-2020,000007038900172,AMZNMKTPLACE AMAZON.CO,5999,Other consumables,39.99,0.00,39.99
Children and Young Peoples Services,Head of Childrens Social Care,085332,Middlestone Moor CU,Supplies and Services,328041,Clothing uniforms and laundry E328,03-Feb-2020,000007038900176,ARGOS DARLINGTON,5310,Clothing uniforms and laundry,109.99,0.00,109.99
Children and Young Peoples Services,Head of Childrens Social Care,085332,Middlestone Moor CU,Supplies and Services,324117,Provisions E324,03-Feb-2020,000007038900178,ALDI 105 774,5411,Catering costs - provisions,5.85,0.00,5.85
Regeneration and Local Services,Corporate Property and Land,021242,Catering - County Hall,Supplies and Services,324117,Provisions E324,03-Feb-2020,000007038900206,WWW.ADELIEFOODS.CO.UK,5499,Catering costs - provisions,46.24,0.00,46.24
Regeneration and Local Services,Corporate Property and Land,021242,Catering - County Hall,Supplies and Services,324117,Provisions E324,03-Feb-2020,000007038900208,FREEMAN CATERING BUTCH,5422,Catering costs - provisions,297.02,0.00,297.02
Regeneration and Local Services,Corporate Property and Land,021242,Catering - County Hall,Supplies and Services,324117,Provisions E324,03-Feb-2020,000007038900210,FREEMAN CATERING BUTCH,5422,Catering costs - provisions,263.05,0.00,263.05
Children and Young Peoples Services,Head of Early Help Inclusion & Vulnerable Children.,071449,Ferryhill One Point Hub,Supplies and Services,304403,Equipment and Materials,03-Feb-2020,000007038900214,AMZNMktplace,5999,Other consumables,19.79,3.30,16.49
Children and Young Peoples Services,Head of Early Help Inclusion & Vulnerable Children.,071449,Ferryhill One Point Hub,Supplies and Services,304403,Equipment and Materials,03-Feb-2020,000007038900216,AMZNMktplace,5999,Other consumables,8.99,1.50,7.49
Children and Young Peoples Services,Head of Early Help Inclusion & Vulnerable Children.,071449,Ferryhill One Point Hub,Supplies and Services,304403,Equipment and Materials,03-Feb-2020,000007038900218,AMZNMktplace,5999,Other consumables,15.83,2.64,13.19
Children and Young Peoples Services,Head of Early Help Inclusion & Vulnerable Children.,071449,Ferryhill One Point Hub,Supplies and Services,304403,Equipment and Materials,03-Feb-2020,000007038900220,AMZNMktplace,5999,Other consumables,31.98,5.34,26.64
Children and Young Peoples Services,Head of Early Help Inclusion & Vulnerable Children.,071449,Ferryhill One Point Hub,Supplies and Services,304403,Equipment and Materials,03-Feb-2020,000007038900222,AMZNMktplace,5999,Other consumables,42.84,7.14,35.70
Children and Young Peoples Services,Head of Early Help Inclusion & Vulnerable Children.,071449,Ferryhill One Point Hub,Supplies and Services,304403,Equipment and Materials,03-Feb-2020,000007038900222 - 1,AMZNMktplace,5999,Other consumables,0.06,,0.06
Children and Young Peoples Services,Head of Early Help Inclusion & Vulnerable Children.,071449,Ferryhill One Point Hub,Supplies and Services,304403,Equipment and Materials,03-Feb-2020,000007038900224,AMZNMktplace,5999,Other consumables,42.99,7.17,35.82
Regeneration and Local Services,Culture Sport and Tourism,054812,Gala Theatre - Catering etc,Supplies and Services,324117,Provisions E324,03-Feb-2020,000007038900228,FREEMAN CATERING BUTCH,5422,Catering costs - provisions,15.18,0.00,15.18
Children and Young Peoples Services,Head of Early Help Inclusion & Vulnerable Children.,079599,Psychological-HQ,Supplies and Services,304403,Equipment and Materials,03-Feb-2020,000007038900236,AMZNMktplace,5999,Other consumables,16.95,2.83,14.12
Regeneration and Local Services,Development and Housing,030772,CLLD South,Employees,040149,Recruitment Instruction and Training,03-Feb-2020,000007038900240,CARE CHECK LTD,8999,Training-all costs,49.60,0.00,49.60
Children and Young Peoples Services,Head of Childrens Social Care,085333,Coxhoe Satelite Home,Supplies and Services,384999,Miscellaneous Expenses,03-Feb-2020,000007038900242,Amazon.co.uk YO3I75ZO5,5969,Other expenses,24.00,0.00,24.00
Transformation and Partnerships,Business Support,010832,Business Support 010832,Supplies and Services,340001,Postages E340,03-Feb-2020,000007038900268,POST OFFICE COUNTER,9402,Postages,617.50,0.00,617.50
Transformation and Partnerships,Business Support,052986,CYPS - Locality and Operational Support,Supplies and Services,328041,Clothing uniforms and laundry E328,03-Feb-2020,000007038900280,POUNDSTRETCHER 692,5331,Clothing uniforms and laundry,13.77,0.00,13.77
Transformation and Partnerships,Business Support,052986,CYPS - Locality and Operational Support,Supplies and Services,324117,Provisions E324,03-Feb-2020,000007038900282,ASDA STORES,5411,Catering costs - provisions,181.08,0.00,181.08
Transformation and Partnerships,Business Support,052986,CYPS - Locality and Operational Support,Supplies and Services,328041,Clothing uniforms and laundry E328,03-Feb-2020,000007038900284,B & M RETAIL,5310,Clothing uniforms and laundry,109.12,0.00,109.12
Children and Young Peoples Services,Head of Education and Skills,071732,Dean Bank Childcare,Supplies and Services,324117,Provisions E324,03-Feb-2020,000007038900290,TESCO STORES 2916,5411,Catering costs - provisions,50.46,0.00,50.46
Children and Young Peoples Services,Head of Education and Skills,071732,Dean Bank Childcare,Supplies and Services,304403,Equipment and Materials,03-Feb-2020,000007038900292,AMZNMKTPLACE AMAZON.CO,5999,Other consumables,9.95,1.66,8.29
Children and Young Peoples Services,Head of Education and Skills,071732,Dean Bank Childcare,Supplies and Services,304403,Equipment and Materials,03-Feb-2020,000007038900294,AMZNMktplace,5999,Other consumables,27.99,4.67,23.32
Children and Young Peoples Services,Head of Education and Skills,071732,Dean Bank Childcare,Supplies and Services,304403,Equipment and Materials,03-Feb-2020,000007038900296,AMZNMktplace,5999,Other consumables,17.99,3.00,14.99
Children and Young Peoples Services,Head of Education and Skills,071732,Dean Bank Childcare,Supplies and Services,312009,Newspapers books and periodicals E312,03-Feb-2020,000007038900298,THE BOOK PEOPLE,5942,Newspapers books and periodicals,2.99,0.00,2.99
Children and Young Peoples Services,Head of Education and Skills,071732,Dean Bank Childcare,Supplies and Services,324117,Provisions E324,03-Feb-2020,000007038900300,ASDA GROCERIES ONLINE,5411,Catering costs - provisions,64.15,0.00,64.15
Children and Young Peoples Services,Head of Education and Skills,071732,Dean Bank Childcare,Supplies and Services,324117,Provisions E324,03-Feb-2020,000007038900302,ASDA GROCERIES ONLINE,5411,Catering costs - provisions,42.07,0.00,42.07
Children and Young Peoples Services,Head of Education and Skills,071732,Dean Bank Childcare,Supplies and Services,304403,Equipment and Materials,03-Feb-2020,000007038900304,AMZNMktplace,5999,Other consumables,14.86,2.48,12.38
Children and Young Peoples Services,Head of Education and Skills,071732,Dean Bank Childcare,Supplies and Services,324117,Provisions E324,03-Feb-2020,000007038900306,ASDA GROCERIES ONLINE,5411,Catering costs - provisions,-3.00,0.00,-3.00
Regeneration and Local Services,Culture Sport and Tourism,054813,Gala Theatre - Technical,Supplies and Services,384999,Miscellaneous Expenses,03-Feb-2020,000007038900312,Amazon.co.uk 7C2BC04X5,5969,Other expenses,100.00,0.00,100.00
Regeneration and Local Services,Culture Sport and Tourism,054813,Gala Theatre - Technical,Supplies and Services,304403,Equipment and Materials,03-Feb-2020,000007038900314,SP AIRCONCENTRE,5734,Other consumables,-105.85,0.00,-105.85
Regeneration and Local Services,Development and Housing,030771,Durham Advance Flexible Fund,Transport,235057,Public Transport,03-Feb-2020,000007038900324,GO NORTH EAST LIMITED,4131,Staff travelling,25.00,0.00,25.00
Regeneration and Local Services,Development and Housing,030771,Durham Advance Flexible Fund,Transport,235057,Public Transport,03-Feb-2020,000007038900326,GO NORTH EAST LIMITED,4131,Staff travelling,10.90,0.00,10.90
Regeneration and Local Services,Development and Housing,030771,Durham Advance Flexible Fund,Transport,235057,Public Transport,03-Feb-2020,000007038900328,GO NORTH EAST LIMITED,4131,Staff travelling,25.00,0.00,25.00
Children and Young Peoples Services,Head of Early Help Inclusion & Vulnerable Children.,071445,Chester le Street One Point Hub,Supplies and Services,304259,Equipment and Materials,03-Feb-2020,000007038900340,WWW.DURHAM.GOV.UK,9399,Equipment-purchase and rental,22.00,0.00,22.00
Regeneration and Local Services,Environmental Services,026591,C&G - Hardwick Park,Supplies and Services,304403,Equipment and Materials,03-Feb-2020,000007038900352,AMZNMktplace,5999,Other consumables,6.98,1.16,5.82
Regeneration and Local Services,Environmental Services,026591,C&G - Hardwick Park,Supplies and Services,304403,Equipment and Materials,03-Feb-2020,000007038900354,AMZNMktplace,5999,Other consumables,5.44,0.00,5.44
Regeneration and Local Services,Environmental Services,026591,C&G - Hardwick Park,Supplies and Services,304403,Equipment and Materials,03-Feb-2020,000007038900356,AMZNMktplace,5999,Other consumables,3.99,0.67,3.32
Regeneration and Local Services,Environmental Services,011060,C&G - Hardwick Park Catering,Supplies and Services,324117,Provisions E324,03-Feb-2020,000007038900360,FREEMAN CATERING BUTCH,5422,Catering costs - provisions,79.53,0.00,79.53
Regeneration and Local Services,Environmental Services,011060,C&G - Hardwick Park Catering,Supplies and Services,324117,Provisions E324,03-Feb-2020,000007038900362,FREEMAN CATERING BUTCH,5422,Catering costs - provisions,34.87,0.00,34.87
Regeneration and Local Services,Corporate Property and Land,021234,Catering - Locomotion,Supplies and Services,324117,Provisions E324,03-Feb-2020,000007038900372,WWW.ADELIEFOODS.CO.UK,5499,Catering costs - provisions,56.66,0.00,56.66
Regeneration and Local Services,Corporate Property and Land,021234,Catering - Locomotion,Supplies and Services,324117,Provisions E324,03-Feb-2020,000007038900374,FREEMAN CATERING BUTCH,5422,Catering costs - provisions,20.46,0.00,20.46
Regeneration and Local Services,Corporate Property and Land,021234,Catering - Locomotion,Supplies and Services,324117,Provisions E324,03-Feb-2020,000007038900376,FREEMAN CATERING BUTCH,5422,Catering costs - provisions,28.95,0.00,28.95
Children and Young Peoples Services,Head of Childrens Social Care,085331,New Lea Childrens Home,Supplies and Services,324117,Provisions E324,03-Feb-2020,000007038900380,ASDA GROCERIES ONLINE,5411,Catering costs - provisions,127.87,0.00,127.87
Children and Young Peoples Services,Head of Childrens Social Care,085331,New Lea Childrens Home,Supplies and Services,328041,Clothing uniforms and laundry E328,03-Feb-2020,000007038900382,ARGOS LTD,5310,Clothing uniforms and laundry,14.99,0.00,14.99
Children and Young Peoples Services,Head of Childrens Social Care,085331,New Lea Childrens Home,Supplies and Services,324117,Provisions E324,03-Feb-2020,000007038900384,ASDA GROCERIES ONLINE,5411,Catering costs - provisions,-0.18,0.00,-0.18
Regeneration and Local Services,Corporate Property and Land,010525,Catering - Green Lane,Supplies and Services,324117,Provisions E324,03-Feb-2020,000007038900400,WWW.ADELIEFOODS.CO.UK,5499,Catering costs - provisions,50.24,0.00,50.24
Regeneration and Local Services,Corporate Property and Land,010525,Catering - Green Lane,Supplies and Services,324117,Provisions E324,03-Feb-2020,000007038900402,FREEMAN CATERING BUTCH,5422,Catering costs - provisions,22.25,0.00,22.25
Transformation and Partnerships,Partnerships & Community Engagement Div.,060472,Syrian Vulnerable Persons Scheme,Third Party Payments,430100,Rendered by Private Contractors,03-Feb-2020,000007038900404,EB INTRO TO MENTAL HE,7399,Payments to sub-contractors,-63.78,0.00,-63.78
Regeneration and Local Services,Development and Housing,030554,International Relations 030554,Supplies and Services,324117,Provisions E324,03-Feb-2020,000007038900436,SAINSBURYS LOC4634,5411,Catering costs - provisions,9.00,0.00,9.00
Transformation and Partnerships,Business Support,052986,CYPS - Locality and Operational Support,Supplies and Services,348037,Subsistence E348,03-Feb-2020,000007038900438,SumUp The Hut Bishop,5814,Subsistence,56.00,0.00,56.00
Transformation and Partnerships,Business Support,052986,CYPS - Locality and Operational Support,Supplies and Services,324117,Provisions E324,03-Feb-2020,000007038900440,ASDA STORES,5411,Catering costs - provisions,9.00,0.00,9.00
Resources BK0010,Finance & Transactional Services,065180,Collections,Supplies and Services,338048,Services,03-Feb-2020,000007038900458,HMCOURTS-SERVICE.G,9222,Court costs 338048,"1,145.50",0.00,1145.50
Adult and Health Services,Head of Adults,055643,Hawthorn House LD Respite Unit,Supplies and Services,324117,Provisions E324,03-Feb-2020,000007038900460,WILKO RETAIL LIMITED,5399,Catering costs - provisions,3.50,0.00,3.50
Children and Young Peoples Services,Head of Childrens Social Care,085342,9 Cedar Drive Aycliffe,Premises,145009,Cleaning and Domestic Supplies,03-Feb-2020,000007038900476,MALCOLMS CLEANING,7349,Other cleaning and domestic costs,26.00,0.00,26.00
Regeneration and Local Services,Corporate Property and Land,030691,Catering - Durham Dales Centre,Supplies and Services,324117,Provisions E324,03-Feb-2020,000007038900484,FREEMAN CATERING BUTCH,5422,Catering costs - provisions,110.81,0.00,110.81
Regeneration and Local Services,Corporate Property and Land,030691,Catering - Durham Dales Centre,Supplies and Services,324117,Provisions E324,03-Feb-2020,000007038900486,FREEMAN CATERING BUTCH,5422,Catering costs - provisions,25.17,0.00,25.17
Adult and Health Services,Head of Adults,055306,Spennymoor Pathways,Supplies and Services,324117,Provisions E324,03-Feb-2020,000007038900488,ASDA SUPERSTORE 4987,5411,Catering costs - provisions,10.50,0.00,10.50
Regeneration and Local Services,Environmental Services,031200,North Pennines Core,Supplies and Services,348037,Subsistence E348,03-Feb-2020,000007038900498,COSTA COFFEE,5812,Subsistence,2.82,0.47,2.35
Regeneration and Local Services,Environmental Services,031200,North Pennines Core,Supplies and Services,348037,Subsistence E348,03-Feb-2020,000007038900498 - 1,COSTA COFFEE,5812,Subsistence,0.03,,0.03
Regeneration and Local Services,Environmental Services,031200,North Pennines Core,Transport,235057,Public Transport,03-Feb-2020,000007038900500,SNCB/NMBS/BRU 1030 MI,4112,Staff travelling,66.85,0.00,66.85
Regeneration and Local Services,Environmental Services,031200,North Pennines Core,Supplies and Services,352001,Conference Expenses,03-Feb-2020,000007038900502,FLETCHER WILLIBRORDHAE,7011,Conferencesseminars fees etc,117.13,0.00,117.13
Regeneration and Local Services,Environmental Services,031200,North Pennines Core,Supplies and Services,352001,Conference Expenses,03-Feb-2020,000007038900504,FLETCHER WILLIBRORDHAE,7011,Conferencesseminars fees etc,19.67,0.00,19.67
Regeneration and Local Services,Environmental Services,031200,North Pennines Core,Supplies and Services,348037,Subsistence E348,03-Feb-2020,000007038900506,UPPER CRUST,5814,Subsistence,2.52,0.42,2.10
Regeneration and Local Services,Environmental Services,031200,North Pennines Core,Supplies and Services,348037,Subsistence E348,03-Feb-2020,000007038900506 - 1,UPPER CRUST,5814,Subsistence,4.47,,4.47
Children and Young Peoples Services,Head of Early Help Inclusion & Vulnerable Children.,074000,TTF-Attachment and Results,Supplies and Services,384999,Miscellaneous Expenses,03-Feb-2020,000007038900524,Amazon.co.uk 938P37RZ5,5969,Other expenses,141.00,23.50,117.50
Children and Young Peoples Services,Head of Early Help Inclusion & Vulnerable Children.,074000,TTF-Attachment and Results,Supplies and Services,332047,Printing Stationery and Gen Off Exps,03-Feb-2020,000007038900526,HIGHSTREETVOUCHERS,8641,Stationery,20.00,0.00,20.00
Resources BK0010,Digital and Customer Services,070205,School Services - Health and Safety Services,Supplies and Services,304639,Equipment and Materials,03-Feb-2020,000007038900528,WWW.TOOLSTATION.COM,5251,Technicians-supplies,62.18,10.36,51.82
Resources BK0010,Digital and Customer Services,065335,School Services - Implementations,Supplies and Services,304639,Equipment and Materials,03-Feb-2020,000007038900530,WWW.AVPARTMASTER.NET,7622,Technicians-supplies,79.09,13.18,65.91
Children and Young Peoples Services,Head of Childrens Social Care,085342,9 Cedar Drive Aycliffe,Supplies and Services,324117,Provisions E324,03-Feb-2020,000007038900536,TESCO STORES 2916,5411,Catering costs - provisions,13.36,0.00,13.36
Transformation and Partnerships,Business Support,052986,CYPS - Locality and Operational Support,Supplies and Services,324117,Provisions E324,03-Feb-2020,000007038900538,ASDA GROCERIES ONLINE,5411,Catering costs - provisions,46.38,0.00,46.38
Transformation and Partnerships,Business Support,052986,CYPS - Locality and Operational Support,Supplies and Services,324117,Provisions E324,03-Feb-2020,000007038900540,ASDA GROCERIES ONLINE,5411,Catering costs - provisions,-17.95,0.00,-17.95
Children and Young Peoples Services,Head of Early Help Inclusion & Vulnerable Children.,085957,Secure Management,Supplies and Services,324117,Provisions E324,03-Feb-2020,000007038900546,TESCO STORES 6329,5411,Catering costs - provisions,99.62,0.00,99.62
Regeneration and Local Services,Development and Housing,031500,Housing Solutions - Core Team,Supplies and Services,352001,Conference Expenses,03-Feb-2020,000007038900554,GRAINGER HOTEL,7011,Conferencesseminars fees etc,100.00,0.00,100.00
Transformation and Partnerships,Business Support,052986,CYPS - Locality and Operational Support,Supplies and Services,328041,Clothing uniforms and laundry E328,03-Feb-2020,000007038900558,ONE4ALL,5311,Clothing uniforms and laundry,100.00,0.00,100.00
Children and Young Peoples Services,Head of Education and Skills,071903,Early Years Sustainability,Employees,040149,Recruitment Instruction and Training,03-Feb-2020,000007038900560,NATIONAL LITERACY,8398,Training-all costs,175.00,0.00,175.00
Regeneration and Local Services,Corporate Property and Land,021324,Catering - Meadowfield,Supplies and Services,324117,Provisions E324,03-Feb-2020,000007038900562,FREEMAN CATERING BUTCH,5422,Catering costs - provisions,57.33,0.00,57.33
Regeneration and Local Services,Corporate Property and Land,021324,Catering - Meadowfield,Supplies and Services,324117,Provisions E324,03-Feb-2020,000007038900564,FREEMAN CATERING BUTCH,5422,Catering costs - provisions,56.35,0.00,56.35
Regeneration and Local Services,Environmental Services,010301,C&G - North Grounds Maintenance,Third Party Payments,430100,Rendered by Private Contractors,03-Feb-2020,000007038900572,JOHN WARREN (ANIMAL BY,7399,Payments to sub-contractors,12.00,0.00,12.00
Children and Young Peoples Services,Head of Early Help Inclusion & Vulnerable Children.,085801,CDYJS - Support,Supplies and Services,304403,Equipment and Materials,03-Feb-2020,000007038900574,CRAZY JAKES,5947,Other consumables,5.38,0.00,5.38
Children and Young Peoples Services,Head of Childrens Social Care,085333,Coxhoe Satelite Home,Supplies and Services,324117,Provisions E324,03-Feb-2020,000007038900586,TESCO STORES 2916,5411,Catering costs - provisions,135.98,0.00,135.98
Children and Young Peoples Services,Head of Education and Skills,071802,Louisa Cent Nursery,Supplies and Services,324117,Provisions E324,03-Feb-2020,000007038900588,ASDA SUPERSTORE,5411,Catering costs - provisions,85.75,0.00,85.75
Children and Young Peoples Services,Head of Education and Skills,071802,Louisa Cent Nursery,Supplies and Services,324117,Provisions E324,03-Feb-2020,000007038900590,ASDA SUPERSTORE,5411,Catering costs - provisions,4.46,0.00,4.46
Children and Young Peoples Services,Head of Education and Skills,071802,Louisa Cent Nursery,Supplies and Services,324117,Provisions E324,03-Feb-2020,000007038900592,ALDI STORES,5411,Catering costs - provisions,6.18,1.03,5.15
Children and Young Peoples Services,Head of Education and Skills,071802,Louisa Cent Nursery,Supplies and Services,324117,Provisions E324,03-Feb-2020,000007038900592 - 1,ALDI STORES,5411,Catering costs - provisions,43.78,,43.78
Children and Young Peoples Services,Head of Childrens Social Care,085332,Middlestone Moor CU,Supplies and Services,304221,Equipment and Materials,03-Feb-2020,000007038900610,HOMEBASE LTD 822,5200,Direct materials,14.00,0.00,14.00
Regeneration and Local Services,Development and Housing,031500,Housing Solutions - Core Team,Supplies and Services,352001,Conference Expenses,03-Feb-2020,000007038900614,HOTEL 52,7011,Conferencesseminars fees etc,100.00,0.00,100.00
Regeneration and Local Services,Development and Housing,031500,Housing Solutions - Core Team,Supplies and Services,352001,Conference Expenses,03-Feb-2020,000007038900616,THE HONEST LAWYER,7011,Conferencesseminars fees etc,460.00,76.67,383.33
Transformation and Partnerships,Business Support,069010,Administration 069010,Supplies and Services,340001,Postages E340,03-Feb-2020,000007038900636,ROYAL MAIL ONLINE SHOP,9402,Postages,48.61,0.00,48.61
Transformation and Partnerships,Business Support,069010,Administration 069010,Supplies and Services,340001,Postages E340,03-Feb-2020,000007038900638,ROYAL MAIL ONLINE SHOP,9402,Postages,11.10,0.00,11.10
Transformation and Partnerships,Business Support,069010,Administration 069010,Supplies and Services,304403,Equipment and Materials,03-Feb-2020,000007038900640,DRI Cloudberry LabTM,5734,Other consumables,28.80,0.00,28.80
Adult and Health Services,Head of Adults,055309,Peterlee Pathways,Supplies and Services,324117,Provisions E324,03-Feb-2020,000007038900656,WILKO RETAIL LIMITED,5399,Catering costs - provisions,4.50,0.00,4.50
Regeneration and Local Services,Development and Housing,030771,Durham Advance Flexible Fund,Supplies and Services,328041,Clothing uniforms and laundry E328,03-Feb-2020,000007038900672,MATALAN,5691,Clothing uniforms and laundry,45.50,7.58,37.92
Regeneration and Local Services,Development and Housing,030771,Durham Advance Flexible Fund,Transport,235057,Public Transport,03-Feb-2020,000007038900674,GO NORTH EAST LIMITED,4131,Staff travelling,28.00,0.00,28.00
Regeneration and Local Services,Development and Housing,030554,International Relations 030554,Supplies and Services,384999,Miscellaneous Expenses,03-Feb-2020,000007038900690,AMZ Amazon.co.uk,5969,Other expenses,-34.98,0.00,-34.98
Children and Young Peoples Services,Head of Education and Skills,071732,Dean Bank Childcare,Supplies and Services,304403,Equipment and Materials,03-Feb-2020,000007043645124,AMZNMKTPLACE AMAZON.CO,5999,Other consumables,41.36,6.90,34.46
Children and Young Peoples Services,Head of Education and Skills,071732,Dean Bank Childcare,Supplies and Services,304403,Equipment and Materials,03-Feb-2020,000007043645128,AMZNMKTPLACE AMAZON.CO,5999,Other consumables,24.99,4.17,20.82
Regeneration and Local Services,Corporate Property and Land,030691,Catering - Durham Dales Centre,Supplies and Services,324117,Provisions E324,03-Feb-2020,000007049294898,BATLEYS PERTH,5300,Catering costs - provisions,24.66,4.11,20.55
Regeneration and Local Services,Corporate Property and Land,030691,Catering - Durham Dales Centre,Supplies and Services,324117,Provisions E324,03-Feb-2020,000007049294898 - 1,BATLEYS PERTH,5300,Catering costs - provisions,108.12,,108.12
Regeneration and Local Services,Environmental Services,031200,North Pennines Core,Transport,235057,Public Transport,04-Feb-2020,000007038900508,SNCB/NMBS/BRU 1030 MI,4112,Staff travelling,1.84,0.00,1.84
Regeneration and Local Services,Business Durham CL0850,030689,Inward Investment and Aftercare,Supplies and Services,342033,Computers and Communications,04-Feb-2020,000007043644714,STK Shutterstock,7333,Computer hardware,19.00,0.00,19.00
Regeneration and Local Services,Business Durham CL0850,030689,Inward Investment and Aftercare,Supplies and Services,342222,Computers and Communications,04-Feb-2020,000007043644720,FASTHOSTS INTERNET,4816,Comp hardware purch-network servers,6.34,1.06,5.28
Children and Young Peoples Services,Head of Childrens Social Care,085341,High Etherley Satelite Home,Supplies and Services,324117,Provisions E324,04-Feb-2020,000007043644724,SPAR - GEM WEST AUCKLA,5411,Catering costs - provisions,1.20,0.00,1.20
Children and Young Peoples Services,Head of Education and Skills,071801,Selby Cottage Childcare Centre,Supplies and Services,324117,Provisions E324,04-Feb-2020,000007043644734,TESCO STORES 2278,5411,Catering costs - provisions,18.90,0.00,18.90
Children and Young Peoples Services,Head of Education and Skills,054640,Durham Learning Resources 054640,Supplies and Services,384999,Miscellaneous Expenses,04-Feb-2020,000007043644756,THE HISTORIC GAMES,5945,Other expenses,28.50,0.00,28.50
Children and Young Peoples Services,Head of Education and Skills,054640,Durham Learning Resources 054640,Supplies and Services,304403,Equipment and Materials,04-Feb-2020,000007043644760,AMZNMKTPLACE AMAZON.CO,5999,Other consumables,48.93,8.19,40.74
Children and Young Peoples Services,Head of Education and Skills,054640,Durham Learning Resources 054640,Supplies and Services,304403,Equipment and Materials,04-Feb-2020,000007043644766,AMZNMKTPLACE AMAZON.CO,5999,Other consumables,25.35,4.25,21.10
Children and Young Peoples Services,Head of Education and Skills,054640,Durham Learning Resources 054640,Supplies and Services,384999,Miscellaneous Expenses,04-Feb-2020,000007043644770,Amazon.co.uk NQ2J553V5,5969,Other expenses,2.54,0.42,2.12
Children and Young Peoples Services,Head of Education and Skills,054640,Durham Learning Resources 054640,Supplies and Services,384999,Miscellaneous Expenses,04-Feb-2020,000007043644774,Amazon.co.uk 7P6T33QT5,5969,Other expenses,17.00,0.00,17.00
Children and Young Peoples Services,Head of Education and Skills,054640,Durham Learning Resources 054640,Supplies and Services,304403,Equipment and Materials,04-Feb-2020,000007043644776,AMZNMktplace,5999,Other consumables,8.99,0.00,8.99
Children and Young Peoples Services,Head of Education and Skills,054640,Durham Learning Resources 054640,Supplies and Services,304403,Equipment and Materials,04-Feb-2020,000007043644780,AMZNMktplace,5999,Other consumables,24.60,4.10,20.50
Children and Young Peoples Services,Head of Education and Skills,054640,Durham Learning Resources 054640,Supplies and Services,304403,Equipment and Materials,04-Feb-2020,000007043644780 - 1,AMZNMktplace,5999,Other consumables,0.10,,0.10
Children and Young Peoples Services,Head of Education and Skills,078411,16-19 Education & Training,Employees,040149,Recruitment Instruction and Training,04-Feb-2020,000007043644798,PEARSON ED LTD,8299,Training-all costs,50.00,8.33,41.67
Adult and Health Services,Head of Adults,055302,Durham Pathways,Supplies and Services,304403,Equipment and Materials,04-Feb-2020,000007043644804,AMZNMktplace,5999,Other consumables,59.99,10.00,49.99
Dedicated Schools Grant BG0015,DSG High Needs Block,079050,SENSS-Sensory,Supplies and Services,304403,Equipment and Materials,04-Feb-2020,000007043644828,AMZNMktplace,5999,Other consumables,155.58,25.93,129.65
Dedicated Schools Grant BG0015,DSG High Needs Block,079050,SENSS-Sensory,Supplies and Services,304403,Equipment and Materials,04-Feb-2020,000007043644828 - 1,AMZNMktplace,5999,Other consumables,25.61,,25.61
Dedicated Schools Grant BG0015,DSG High Needs Block,079050,SENSS-Sensory,Supplies and Services,304403,Equipment and Materials,04-Feb-2020,000007043644832,AMZNMktplace,5999,Other consumables,21.57,25.93,-4.36
Children and Young Peoples Services,Head of Childrens Social Care,085332,Middlestone Moor CU,Supplies and Services,324117,Provisions E324,04-Feb-2020,000007043644842,ALDI 74 774,5411,Catering costs - provisions,18.45,0.00,18.45
Children and Young Peoples Services,Head of Early Help Inclusion & Vulnerable Children.,071440,Barnard Castle One Point Hub,Supplies and Services,324117,Provisions E324,04-Feb-2020,000007043644944,ASDA GEORGE COM LEEDS,5411,Catering costs - provisions,174.95,0.00,174.95
Regeneration and Local Services,Corporate Property and Land,021242,Catering - County Hall,Premises,145009,Cleaning and Domestic Supplies,04-Feb-2020,000007043644950,ALLIANCE DISPOSABLES L,2842,Other cleaning and domestic costs,26.30,4.38,21.92
Children and Young Peoples Services,Head of Early Help Inclusion & Vulnerable Children.,071449,Ferryhill One Point Hub,Supplies and Services,304403,Equipment and Materials,04-Feb-2020,000007043644958,AMZNMktplace,5999,Other consumables,8.99,1.50,7.49
Regeneration and Local Services,Environmental Services,010367,C&G - South Grounds Maintenance,Supplies and Services,304221,Equipment and Materials,04-Feb-2020,000007043644966,JEWSON LTD,5211,Direct materials,13.98,2.33,11.65
Regeneration and Local Services,Development and Housing,030544,Rural Employability - Client Engagement,Supplies and Services,324117,Provisions E324,04-Feb-2020,000007043644972,SAINSBURYS 2199,5411,Catering costs - provisions,3.45,0.00,3.45
Regeneration and Local Services,Culture Sport and Tourism,054812,Gala Theatre - Catering etc,Premises,145009,Cleaning and Domestic Supplies,04-Feb-2020,000007043644978,ALLIANCE DISPOSABLES L,2842,Other cleaning and domestic costs,196.86,32.81,164.05
Regeneration and Local Services,Development and Housing,031576,B& B - Temp Accom,Supplies and Services,352001,Conference Expenses,04-Feb-2020,000007043644988,HOTEL 52,7011,Conferencesseminars fees etc,54.00,0.00,54.00
Regeneration and Local Services,Corporate Property and Land,021242,Catering - County Hall,Supplies and Services,304999,Equipment and Materials,04-Feb-2020,000007043645012,HOME BARGAINS,5251,Misc equipment tools and materials,24.09,0.00,24.09
Regeneration and Local Services,Development and Housing,030772,CLLD South,Supplies and Services,324117,Provisions E324,04-Feb-2020,000007043645016,ASDA STORES,5411,Catering costs - provisions,6.50,0.00,6.50
Children and Young Peoples Services,Head of Childrens Social Care,085333,Coxhoe Satelite Home,Supplies and Services,348037,Subsistence E348,04-Feb-2020,000007043645034,W2 WORLD BUFFET,5812,Subsistence,51.80,0.00,51.80
Children and Young Peoples Services,Head of Childrens Social Care,085333,Coxhoe Satelite Home,Supplies and Services,348037,Subsistence E348,04-Feb-2020,000007043645036,W2 WORLD BUFFET,5812,Subsistence,11.80,0.00,11.80
Regeneration and Local Services,Development and Housing,031576,B& B - Temp Accom,Supplies and Services,352001,Conference Expenses,04-Feb-2020,000007043645090,WWW.HOTEL52.CO.UK,7011,Conferencesseminars fees etc,54.00,9.00,45.00
Regeneration and Local Services,Environmental Services,031221,North Pennines - Bowlees,Supplies and Services,304221,Equipment and Materials,04-Feb-2020,000007043645158,A AND K HOSIERY LTD,5099,Direct materials,155.64,25.94,129.70
Regeneration and Local Services,Environmental Services,031221,North Pennines - Bowlees,Supplies and Services,304221,Equipment and Materials,04-Feb-2020,000007043645158 - 1,A AND K HOSIERY LTD,5099,Direct materials,5.00,,5.00
Regeneration and Local Services,Development and Housing,031500,Housing Solutions - Core Team,Supplies and Services,352001,Conference Expenses,04-Feb-2020,000007043645212,HOTEL 52,7011,Conferencesseminars fees etc,54.00,0.00,54.00
Transformation and Partnerships,Business Support,052986,CYPS - Locality and Operational Support,Supplies and Services,328041,Clothing uniforms and laundry E328,04-Feb-2020,000007043645242,ARGOS LTD,5310,Clothing uniforms and laundry,269.94,0.00,269.94
Regeneration and Local Services,Development and Housing,030755,Durham Employment & Skills - Other Training,Employees,040149,Recruitment Instruction and Training,04-Feb-2020,000007043645292,NCS VUE CITB HS&E REV,8299,Training-all costs,420.00,0.00,420.00
Regeneration and Local Services,Development and Housing,030771,Durham Advance Flexible Fund,Supplies and Services,304259,Equipment and Materials,04-Feb-2020,000007043645320,DURHAM TEA ROOM,9399,Equipment-purchase and rental,2.50,0.00,2.50
Regeneration and Local Services,Development and Housing,030771,Durham Advance Flexible Fund,Supplies and Services,304259,Equipment and Materials,04-Feb-2020,000007043645324,DURHAM TEA ROOM,9399,Equipment-purchase and rental,4.00,0.00,4.00
Regeneration and Local Services,Development and Housing,030554,International Relations 030554,Transport,235057,Public Transport,04-Feb-2020,000007043645348,LNER WEB SALES,4112,Staff travelling,280.80,0.00,280.80
Transformation and Partnerships,Business Support,052986,CYPS - Locality and Operational Support,Supplies and Services,324117,Provisions E324,04-Feb-2020,000007043645354,TESCO STORES 6329,5411,Catering costs - provisions,14.99,0.00,14.99
Children and Young Peoples Services,Head of Childrens Social Care,085334,West Rainton Satelite Home,Supplies and Services,324117,Provisions E324,04-Feb-2020,000007043645378,LIDL GB DURHAM,5411,Catering costs - provisions,146.89,0.00,146.89
Children and Young Peoples Services,Head of Childrens Social Care,085334,West Rainton Satelite Home,Supplies and Services,328041,Clothing uniforms and laundry E328,04-Feb-2020,000007043645386,The Range,5311,Clothing uniforms and laundry,23.51,0.00,23.51
Children and Young Peoples Services,Head of Education and Skills,071802,Louisa Cent Nursery,Supplies and Services,304999,Equipment and Materials,04-Feb-2020,000007043645428,Amazon Prime 3I0NY3W65,5968,Misc equipment tools and materials,7.99,0.00,7.99
Regeneration and Local Services,Development and Housing,030771,Durham Advance Flexible Fund,Supplies and Services,304259,Equipment and Materials,04-Feb-2020,000007043645448,EA WASTE CARRIERS,9399,Equipment-purchase and rental,174.00,0.00,174.00
Regeneration and Local Services,Corporate Property and Land,020041,Bldg Serv - Business Development - General,Third Party Payments,430100,Rendered by Private Contractors,04-Feb-2020,000007043645458,PAYPAL CROMWELLTOO,7399,Payments to sub-contractors,83.12,13.85,69.27
Children and Young Peoples Services,Head of Childrens Social Care,085352,Tow Law CU,Supplies and Services,384999,Miscellaneous Expenses,04-Feb-2020,000007043645488,Amazon.co.uk 0R6W82X55,5969,Other expenses,22.37,0.00,22.37
Children and Young Peoples Services,Head of Childrens Social Care,085352,Tow Law CU,Supplies and Services,324117,Provisions E324,04-Feb-2020,000007043645492,SAINSBURYS 0776,5411,Catering costs - provisions,121.20,0.00,121.20
Children and Young Peoples Services,Head of Childrens Social Care,085332,Middlestone Moor CU,Supplies and Services,324117,Provisions E324,04-Feb-2020,000007043645502,STARBUCKS THINFORD,5499,Catering costs - provisions,9.85,0.00,9.85
Regeneration and Local Services,Environmental Services,031200,North Pennines Core,Supplies and Services,348037,Subsistence E348,04-Feb-2020,000007043645510,DE EETERIJ,5812,Subsistence,6.83,0.00,6.83
Transformation and Partnerships,Business Support,052986,CYPS - Locality and Operational Support,Supplies and Services,324117,Provisions E324,04-Feb-2020,000007043645568,ASDA GROCERIES ONLINE,5411,Catering costs - provisions,26.49,0.00,26.49
Transformation and Partnerships,Business Support,052986,CYPS - Locality and Operational Support,Supplies and Services,324117,Provisions E324,04-Feb-2020,000007043645572,ASDA GROCERIES ONLINE,5411,Catering costs - provisions,0.06,0.00,0.06
Resources BK0010,Digital and Customer Services,065335,School Services - Implementations,Supplies and Services,304639,Equipment and Materials,04-Feb-2020,000007043645578,WWW.AVPARTMASTER.NET,7622,Technicians-supplies,319.62,53.27,266.35
Children and Young Peoples Services,Head of Childrens Social Care,085342,9 Cedar Drive Aycliffe,Supplies and Services,384999,Miscellaneous Expenses,04-Feb-2020,000007043645586,CRAFTERS COMPANION AYC,5945,Other expenses,19.97,0.00,19.97
Children and Young Peoples Services,Head of Childrens Social Care,085342,9 Cedar Drive Aycliffe,Supplies and Services,324117,Provisions E324,04-Feb-2020,000007043645592,TESCO STORES 2916,5411,Catering costs - provisions,21.37,0.00,21.37
Children and Young Peoples Services,Head of Childrens Social Care,085342,9 Cedar Drive Aycliffe,Employees,040149,Recruitment Instruction and Training,04-Feb-2020,000007043645596,PARENTPAY E-COM R,8220,Training-all costs,50.00,0.00,50.00
Children and Young Peoples Services,Head of Childrens Social Care,085342,9 Cedar Drive Aycliffe,Supplies and Services,324117,Provisions E324,04-Feb-2020,000007043645600,GRANNIES CHOICE,5411,Catering costs - provisions,12.74,0.00,12.74
Regeneration and Local Services,Development and Housing,030771,Durham Advance Flexible Fund,Supplies and Services,348037,Subsistence E348,04-Feb-2020,000007043645626,COSTA COFFEE,5814,Subsistence,3.90,0.65,3.25
Regeneration and Local Services,Development and Housing,030771,Durham Advance Flexible Fund,Supplies and Services,348037,Subsistence E348,04-Feb-2020,000007043645630,COSTA COFFEE,5814,Subsistence,5.25,0.88,4.37
Transformation and Partnerships,Business Support,052986,CYPS - Locality and Operational Support,Supplies and Services,324117,Provisions E324,04-Feb-2020,000007043645638,ASDA STORES LTD,5411,Catering costs - provisions,44.00,0.00,44.00
Regeneration and Local Services,Culture Sport and Tourism,011204,Festival and Events,Supplies and Services,348037,Subsistence E348,04-Feb-2020,000007043645656,THE LAMP ROOM,5812,Subsistence,23.05,0.00,23.05
Regeneration and Local Services,Culture Sport and Tourism,011204,Festival and Events,Supplies and Services,348037,Subsistence E348,04-Feb-2020,000007043645658,FIFTEAS VINTAGE TEA,5814,Subsistence,13.65,0.00,13.65
Children and Young Peoples Services,Head of Childrens Social Care,085333,Coxhoe Satelite Home,Supplies and Services,324117,Provisions E324,04-Feb-2020,000007043645670,ASDA SUPERSTORE 4987,5411,Catering costs - provisions,51.55,0.00,51.55
Children and Young Peoples Services,Head of Education and Skills,071802,Louisa Cent Nursery,Supplies and Services,324117,Provisions E324,04-Feb-2020,000007043645702,ASDA SUPERSTORE,5411,Catering costs - provisions,8.59,0.00,8.59
Children and Young Peoples Services,Head of Education and Skills,070169,Durham SSP,Supplies and Services,384199,Miscellaneous Expenses,04-Feb-2020,000007043645714,Microsoft Store,5816,Other hired and contracted services,59.99,0.00,59.99
Transformation and Partnerships,Business Support,052986,CYPS - Locality and Operational Support,Supplies and Services,328041,Clothing uniforms and laundry E328,04-Feb-2020,000007043645718,WWW.MICHAELSEHGAL.CO.U,5137,Clothing uniforms and laundry,118.43,0.00,118.43
Resources BK0010,Corporate Finance & Commercial Services,069800,Corporate Procurement 069800,Employees,040149,Recruitment Instruction and Training,04-Feb-2020,000007043645770,WWW.CIPS.ORG,8699,Training-all costs,108.00,0.00,108.00
Regeneration and Local Services,Development and Housing,031500,Housing Solutions - Core Team,Supplies and Services,352001,Conference Expenses,04-Feb-2020,000007043645784,HOTEL 52,7011,Conferencesseminars fees etc,143.98,0.00,143.98
Regeneration and Local Services,Development and Housing,031500,Housing Solutions - Core Team,Supplies and Services,352001,Conference Expenses,04-Feb-2020,000007043645786,AYCLIFFE BIZ,7011,Conferencesseminars fees etc,76.00,0.00,76.00
Transformation and Partnerships,Business Support,069010,Administration 069010,Supplies and Services,384999,Miscellaneous Expenses,04-Feb-2020,000007043645804,Amazon.co.uk MW8GC45R5,5969,Other expenses,467.64,77.94,389.70
Transformation and Partnerships,Business Support,069010,Administration 069010,Supplies and Services,384999,Miscellaneous Expenses,04-Feb-2020,000007043645804 - 1,Amazon.co.uk MW8GC45R5,5969,Other expenses,0.18,,0.18
Children and Young Peoples Services,Head of Childrens Social Care,085332,Middlestone Moor CU,Supplies and Services,348037,Subsistence E348,04-Feb-2020,000007043645840,FOX CUB,5813,Subsistence,17.88,0.00,17.88
Regeneration and Local Services,Development and Housing,030771,Durham Advance Flexible Fund,Transport,235057,Public Transport,04-Feb-2020,000007043645868,GO NORTH EAST LIMITED,4131,Staff travelling,5.30,0.00,5.30
Regeneration and Local Services,Business Durham CL0850,030694,Plexus 2,Supplies and Services,324117,Provisions E324,04-Feb-2020,000007043645874,CO-OP GROUP 010592,5411,Catering costs - provisions,2.20,0.00,2.20
Regeneration and Local Services,Development and Housing,030770,Durham Advance,Transport,235057,Public Transport,04-Feb-2020,000007043645878,GO NORTH EAST LIMITED,4131,Staff travelling,12.30,0.00,12.30
Regeneration and Local Services,Corporate Property and Land,021242,Catering - County Hall,Supplies and Services,324117,Provisions E324,04-Feb-2020,000007049294154,BATLEYS PERTH,5300,Catering costs - provisions,592.20,98.70,493.50
Regeneration and Local Services,Corporate Property and Land,021242,Catering - County Hall,Supplies and Services,324117,Provisions E324,04-Feb-2020,000007049294154 - 1,BATLEYS PERTH,5300,Catering costs - provisions,239.52,,239.52
Regeneration and Local Services,Corporate Property and Land,021242,Catering - County Hall,Supplies and Services,324117,Provisions E324,04-Feb-2020,000007049294170,BATLEYS PERTH,5300,Catering costs - provisions,-23.20,-3.87,-19.33
Regeneration and Local Services,Environmental Services,011060,C&G - Hardwick Park Catering,Supplies and Services,324117,Provisions E324,04-Feb-2020,000007049294594,BATLEYS PERTH,5300,Catering costs - provisions,154.85,0.00,154.85
Regeneration and Local Services,Environmental Services,011060,C&G - Hardwick Park Catering,Supplies and Services,324117,Provisions E324,04-Feb-2020,000007049294610,BATLEYS PERTH,5300,Catering costs - provisions,-20.07,0.00,-20.07
Regeneration and Local Services,Environmental Services,011060,C&G - Hardwick Park Catering,Supplies and Services,324117,Provisions E324,04-Feb-2020,000007049294614,BATLEYS PERTH,5300,Catering costs - provisions,-77.56,0.00,-77.56
Regeneration and Local Services,Corporate Property and Land,021234,Catering - Locomotion,Supplies and Services,324117,Provisions E324,04-Feb-2020,000007049294646,BATLEYS PERTH,5300,Catering costs - provisions,100.26,16.71,83.55
Regeneration and Local Services,Corporate Property and Land,021234,Catering - Locomotion,Supplies and Services,324117,Provisions E324,04-Feb-2020,000007049294646 - 1,BATLEYS PERTH,5300,Catering costs - provisions,29.13,,29.13
Regeneration and Local Services,Corporate Property and Land,021324,Catering - Meadowfield,Supplies and Services,324117,Provisions E324,04-Feb-2020,000007049295174,BATLEYS PERTH,5300,Catering costs - provisions,99.78,16.63,83.15
Regeneration and Local Services,Corporate Property and Land,021324,Catering - Meadowfield,Supplies and Services,324117,Provisions E324,04-Feb-2020,000007049295174 - 1,BATLEYS PERTH,5300,Catering costs - provisions,109.92,,109.92
Children and Young Peoples Services,Head of Early Help Inclusion & Vulnerable Children.,071569,Woodhouse Close Childrens Centre,Supplies and Services,304403,Equipment and Materials,04-Feb-2020,000008952731069,DIGITAL RIVER,5734,Other consumables,31.10,5.18,25.92
Regeneration and Local Services,Culture Sport and Tourism,030705,Visit County Durham 030705,Supplies and Services,324117,Provisions E324,04-Feb-2020,000008952731147,RIVERSIDE EVENTS,5811,Catering costs - provisions,797.50,132.92,664.58
Regeneration and Local Services,Environmental Services,031200,North Pennines Core,Supplies and Services,348037,Subsistence E348,05-Feb-2020,000007043645516,DE EETERIJ,5812,Subsistence,0.19,0.00,0.19
Children and Young Peoples Services,Head of Education and Skills,071801,Selby Cottage Childcare Centre,Supplies and Services,324117,Provisions E324,05-Feb-2020,000007049293850,TESCO STORES 2278,5411,Catering costs - provisions,10.40,0.00,10.40
Children and Young Peoples Services,Head of Education and Skills,054640,Durham Learning Resources 054640,Supplies and Services,304403,Equipment and Materials,05-Feb-2020,000007049293860,AMZNMktplace,5999,Other consumables,2.79,0.47,2.32
Children and Young Peoples Services,Head of Education and Skills,054640,Durham Learning Resources 054640,Supplies and Services,304403,Equipment and Materials,05-Feb-2020,000007049293866,AMZNMKTPLACE AMAZON.CO,5999,Other consumables,39.99,6.67,33.32
Children and Young Peoples Services,Head of Education and Skills,054640,Durham Learning Resources 054640,Supplies and Services,384999,Miscellaneous Expenses,05-Feb-2020,000007049293872,Amazon.co.uk NT18Y42Z5,5969,Other expenses,19.99,3.33,16.66
Children and Young Peoples Services,Head of Education and Skills,054640,Durham Learning Resources 054640,Supplies and Services,304403,Equipment and Materials,05-Feb-2020,000007049293878,AMZNMktplace,5999,Other consumables,8.00,1.34,6.66
Children and Young Peoples Services,Head of Education and Skills,054640,Durham Learning Resources 054640,Supplies and Services,304403,Equipment and Materials,05-Feb-2020,000007049293884,AMZNMktplace,5999,Other consumables,49.10,0.00,49.10
Children and Young Peoples Services,Head of Education and Skills,054640,Durham Learning Resources 054640,Supplies and Services,304403,Equipment and Materials,05-Feb-2020,000007049293890,AMZNMktplace,5999,Other consumables,9.90,1.66,8.24
Resources BK0010,Legal & Democratic Services,067953,Coroner County Durham & Darlington,Supplies and Services,312075,Newspapers books and periodicals E312,05-Feb-2020,000007049293896,THOMSON REUTERS UK LTD,8999,Text books,518.00,0.00,518.00
Children and Young Peoples Services,Head of Childrens Social Care,085561,Social Work Academy,Supplies and Services,384999,Miscellaneous Expenses,05-Feb-2020,000007049293902,Amazon.co.uk Y26WI4TN5,5969,Other expenses,25.98,4.33,21.65
Children and Young Peoples Services,Head of Childrens Social Care,085561,Social Work Academy,Supplies and Services,384999,Miscellaneous Expenses,05-Feb-2020,000007049293902 - 1,Amazon.co.uk Y26WI4TN5,5969,Other expenses,69.73,,69.73
Children and Young Peoples Services,Head of Childrens Social Care,085501,Child Care Cases Legal Expenses,Supplies and Services,304403,Equipment and Materials,05-Feb-2020,000007049293916,TORBAY COUNCIL - WEB,9399,Other consumables,11.00,0.00,11.00
Children and Young Peoples Services,Head of Education and Skills,078411,16-19 Education & Training,Supplies and Services,328041,Clothing uniforms and laundry E328,05-Feb-2020,000007049293930,BLACK MOUNTAIN CLO,5691,Clothing uniforms and laundry,225.47,37.58,187.89
Children and Young Peoples Services,Head of Education and Skills,078411,16-19 Education & Training,Supplies and Services,304259,Equipment and Materials,05-Feb-2020,000007049293934,STOCKTON BOROUGH COUNC,9399,Equipment-purchase and rental,11.00,0.00,11.00
Adult and Health Services,Head of Adults,055302,Durham Pathways,Supplies and Services,304403,Equipment and Materials,05-Feb-2020,000007049293944,AMZNMktplace,5999,Other consumables,12.95,2.16,10.79
Adult and Health Services,Head of Adults,055302,Durham Pathways,Supplies and Services,304403,Equipment and Materials,05-Feb-2020,000007049293948,AMZNMktplace,5999,Other consumables,9.75,1.63,8.12
Adult and Health Services,Head of Adults,055302,Durham Pathways,Supplies and Services,324117,Provisions E324,05-Feb-2020,000007049293952,SAINSBURYS 0776,5411,Catering costs - provisions,5.10,0.00,5.10
Regeneration and Local Services,Environmental Services,010383,C&G - South Street Cleansing,Supplies and Services,304221,Equipment and Materials,05-Feb-2020,000007049293958,S&A BUILDERS MERCHANTS,5211,Direct materials,49.38,8.23,41.15
Children and Young Peoples Services,Head of Childrens Social Care,085342,9 Cedar Drive Aycliffe,Supplies and Services,324117,Provisions E324,05-Feb-2020,000007049293980,TESCO STORES 2916,5411,Catering costs - provisions,15.85,0.00,15.85
Children and Young Peoples Services,Head of Childrens Social Care,085332,Middlestone Moor CU,Supplies and Services,304403,Equipment and Materials,05-Feb-2020,000007049294002,AMZNMKTPLACE AMAZON.CO,5999,Other consumables,16.74,2.79,13.95
Children and Young Peoples Services,Head of Early Help Inclusion & Vulnerable Children.,071440,Barnard Castle One Point Hub,Supplies and Services,304403,Equipment and Materials,05-Feb-2020,000007049294112,AMZNMktplace,5999,Other consumables,19.97,3.33,16.64
Children and Young Peoples Services,Head of Early Help Inclusion & Vulnerable Children.,071440,Barnard Castle One Point Hub,Supplies and Services,304403,Equipment and Materials,05-Feb-2020,000007049294118,AMZNMktplace,5999,Other consumables,12.99,2.17,10.82
Children and Young Peoples Services,Head of Early Help Inclusion & Vulnerable Children.,071440,Barnard Castle One Point Hub,Supplies and Services,304403,Equipment and Materials,05-Feb-2020,000007049294124,AMZNMktplace,5999,Other consumables,8.31,1.39,6.92
Children and Young Peoples Services,Head of Early Help Inclusion & Vulnerable Children.,071440,Barnard Castle One Point Hub,Supplies and Services,324117,Provisions E324,05-Feb-2020,000007049294126,SAINSBURYS 2199,5411,Catering costs - provisions,60.00,0.00,60.00
Regeneration and Local Services,Development and Housing,030770,Durham Advance,Transport,235057,Public Transport,05-Feb-2020,000007049294176,B46695957 BLUELINE GRO,4121,Staff travelling,36.10,0.00,36.10
Regeneration and Local Services,Development and Housing,030770,Durham Advance,Transport,235057,Public Transport,05-Feb-2020,000007049294182,B46695999 BLUELINE GRO,4121,Staff travelling,35.40,5.90,29.50
Regeneration and Local Services,Development and Housing,030544,Rural Employability - Client Engagement,Transport,235057,Public Transport,05-Feb-2020,000007049294210,ARRIVA NORTH EAST,4131,Staff travelling,7.50,0.00,7.50
Regeneration and Local Services,Development and Housing,030544,Rural Employability - Client Engagement,Supplies and Services,348037,Subsistence E348,05-Feb-2020,000007049294216,IZ THE WELL,5812,Subsistence,1.10,0.00,1.10
Regeneration and Local Services,Development and Housing,031576,B& B - Temp Accom,Supplies and Services,352001,Conference Expenses,05-Feb-2020,000007049294222,WWW.HOTEL52.CO.UK,7011,Conferencesseminars fees etc,54.00,0.00,54.00
Regeneration and Local Services,Development and Housing,031576,B& B - Temp Accom,Supplies and Services,352001,Conference Expenses,05-Feb-2020,000007049294228,WWW.HOTEL52.CO.UK,7011,Conferencesseminars fees etc,6.99,0.00,6.99
Regeneration and Local Services,Development and Housing,031576,B& B - Temp Accom,Supplies and Services,352001,Conference Expenses,05-Feb-2020,000007049294230,BUDGET EXPRESS HOTEL,7011,Conferencesseminars fees etc,89.00,0.00,89.00
Regeneration and Local Services,Development and Housing,031576,B& B - Temp Accom,Supplies and Services,352001,Conference Expenses,05-Feb-2020,000007049294236,BUDGET EXPRESS HOTEL,7011,Conferencesseminars fees etc,-89.00,0.00,-89.00
Regeneration and Local Services,Development and Housing,030772,CLLD South,Transport,215995,Running Costs of Vehicles,05-Feb-2020,000007049294246,ASDA PETROL UPT 4587,5542,Vehicle running expenses,35.00,5.83,29.17
Children and Young Peoples Services,Head of Childrens Social Care,085333,Coxhoe Satelite Home,Transport,235057,Public Transport,05-Feb-2020,000007049294256,ARRIVA NORTH EAST,4131,Staff travelling,26.20,0.00,26.20
Children and Young Peoples Services,Head of Childrens Social Care,085333,Coxhoe Satelite Home,Transport,235057,Public Transport,05-Feb-2020,000007049294260,ARRIVA NORTH EAST,4131,Staff travelling,7.50,0.00,7.50
Transformation and Partnerships,Business Support,052986,CYPS - Locality and Operational Support,Supplies and Services,304999,Equipment and Materials,05-Feb-2020,000007049294332,HOME BARGAINS SPENNYMO,5251,Misc equipment tools and materials,5.94,0.00,5.94
Transformation and Partnerships,Business Support,052986,CYPS - Locality and Operational Support,Supplies and Services,324117,Provisions E324,05-Feb-2020,000007049294338,ASDA SUPERSTORE 4987,5411,Catering costs - provisions,48.55,0.00,48.55
Transformation and Partnerships,Business Support,052986,CYPS - Locality and Operational Support,Supplies and Services,324117,Provisions E324,05-Feb-2020,000007049294340,ASDA SUPERSTORE 4987,5411,Catering costs - provisions,39.56,0.00,39.56
Regeneration and Local Services,Culture Sport and Tourism,054813,Gala Theatre - Technical,Supplies and Services,304403,Equipment and Materials,05-Feb-2020,000007049294348,AMZNMktplace,5999,Other consumables,99.99,0.00,99.99
Children and Young Peoples Services,Head of Childrens Social Care,085334,West Rainton Satelite Home,Supplies and Services,384999,Miscellaneous Expenses,05-Feb-2020,000007049294364,SMYTHS TOYS DURHAM,5945,Other expenses,14.99,0.00,14.99
Regeneration and Local Services,Development and Housing,030771,Durham Advance Flexible Fund,Transport,235057,Public Transport,05-Feb-2020,000007049294410,ARRIVA NORTH EAST,4131,Staff travelling,7.50,0.00,7.50
Children and Young Peoples Services,Head of Education and Skills,071903,Early Years Sustainability,Supplies and Services,352001,Conference Expenses,05-Feb-2020,000007049294418,KSEY CONSULTANCY,7392,Conferencesseminars fees etc,80.00,0.00,80.00
Regeneration and Local Services,Development and Housing,030771,Durham Advance Flexible Fund,Transport,235057,Public Transport,05-Feb-2020,000007049294450,ARRIVA NORTH EAST,4131,Staff travelling,7.50,0.00,7.50
Regeneration and Local Services,Development and Housing,030771,Durham Advance Flexible Fund,Supplies and Services,304999,Equipment and Materials,05-Feb-2020,000007049294474,HIGHSPEEDTRAINING.CO.U,8244,Misc equipment tools and materials,30.00,5.00,25.00
Transformation and Partnerships,Business Support,052986,CYPS - Locality and Operational Support,Supplies and Services,304403,Equipment and Materials,05-Feb-2020,000007049294528,CITY TAXIS,5734,Other consumables,25.00,0.00,25.00
Transformation and Partnerships,Business Support,052986,CYPS - Locality and Operational Support,Supplies and Services,308011,Furniture,05-Feb-2020,000007049294534,J DODDS CARPETS LTD,5713,Furniture repair and replacement,219.00,0.00,219.00
Transformation and Partnerships,Business Support,052986,CYPS - Locality and Operational Support,Supplies and Services,324117,Provisions E324,05-Feb-2020,000007049294538,ASDA GROCERIES ONLINE,5411,Catering costs - provisions,95.59,0.00,95.59
Transformation and Partnerships,Business Support,052986,CYPS - Locality and Operational Support,Supplies and Services,324117,Provisions E324,05-Feb-2020,000007049294548,ASDA GROCERIES ONLINE,5411,Catering costs - provisions,-6.10,0.00,-6.10
Regeneration and Local Services,Environmental Services,011060,C&G - Hardwick Park Catering,Premises,145009,Cleaning and Domestic Supplies,05-Feb-2020,000007049294600,ALLIANCE DISPOSABLES L,2842,Other cleaning and domestic costs,47.40,7.90,39.50
Regeneration and Local Services,Environmental Services,011060,C&G - Hardwick Park Catering,Premises,145009,Cleaning and Domestic Supplies,05-Feb-2020,000007049294604,ALLIANCE DISPOSABLES L,2842,Other cleaning and domestic costs,64.32,10.72,53.60
Regeneration and Local Services,Development and Housing,030755,Durham Employment & Skills - Other Training,Employees,040149,Recruitment Instruction and Training,05-Feb-2020,000007049294634,NCS VUE CITB HS&E REV,8299,Training-all costs,420.00,0.00,420.00
Children and Young Peoples Services,Head of Childrens Social Care,085331,New Lea Childrens Home,Supplies and Services,328041,Clothing uniforms and laundry E328,05-Feb-2020,000007049294666,MATALAN,5691,Clothing uniforms and laundry,20.00,0.00,20.00
Children and Young Peoples Services,Head of Childrens Social Care,085352,Tow Law CU,Supplies and Services,324117,Provisions E324,05-Feb-2020,000007049294868,TESCO STORES 2371,5411,Catering costs - provisions,112.72,0.00,112.72
Children and Young Peoples Services,Head of Early Help Inclusion & Vulnerable Children.,085957,Secure Management,Supplies and Services,304221,Equipment and Materials,05-Feb-2020,000007049294878,BS & P,5085,Direct materials,20.42,3.40,17.02
Children and Young Peoples Services,Head of Early Help Inclusion & Vulnerable Children.,085957,Secure Management,Supplies and Services,324117,Provisions E324,05-Feb-2020,000007049294882,TESCO STORES 6329,5411,Catering costs - provisions,80.94,0.00,80.94
Children and Young Peoples Services,Head of Early Help Inclusion & Vulnerable Children.,085957,Secure Management,Supplies and Services,304403,Equipment and Materials,05-Feb-2020,000007049294888,AMZNMKTPLACE AMAZON.CO,5999,Other consumables,22.79,0.00,22.79
Children and Young Peoples Services,Head of Early Help Inclusion & Vulnerable Children.,085957,Secure Management,Supplies and Services,328041,Clothing uniforms and laundry E328,05-Feb-2020,000007049294890,PRETTYLITTLETHING.COM,5691,Clothing uniforms and laundry,38.99,0.00,38.99
Adult and Health Services,Head of Adults,055306,Spennymoor Pathways,Supplies and Services,324117,Provisions E324,05-Feb-2020,000007049294906,LIDL GB SPENNYMOOR,5411,Catering costs - provisions,9.05,0.00,9.05
Regeneration and Local Services,Environmental Services,031200,North Pennines Core,Supplies and Services,324117,Provisions E324,05-Feb-2020,000007049294938,CAFE OSWALDS AT CRANST,5499,Catering costs - provisions,26.70,4.45,22.25
Regeneration and Local Services,Environmental Services,031200,North Pennines Core,Transport,235057,Public Transport,05-Feb-2020,000007049294944,NS DEURNE,4112,Staff travelling,5.09,0.00,5.09
Regeneration and Local Services,Environmental Services,031200,North Pennines Core,Supplies and Services,352001,Conference Expenses,05-Feb-2020,000007049294950,RH BRUSSELS INVEST,7011,Conferencesseminars fees etc,71.74,0.00,71.74
Regeneration and Local Services,Environmental Services,031200,North Pennines Core,Supplies and Services,348037,Subsistence E348,05-Feb-2020,000007049294954,Grill 57,5812,Subsistence,6.37,0.00,6.37
Regeneration and Local Services,Environmental Services,010301,C&G - North Grounds Maintenance,Supplies and Services,304403,Equipment and Materials,05-Feb-2020,000007049295002,BESCOL,5231,Other consumables,86.50,0.00,86.50
Resources BK0010,Digital and Customer Services,065335,School Services - Implementations,Supplies and Services,304639,Equipment and Materials,05-Feb-2020,000007049295030,AMZNMktplace,5999,Technicians-supplies,36.76,6.13,30.63
Resources BK0010,Digital and Customer Services,065335,School Services - Implementations,Supplies and Services,304259,Equipment and Materials,05-Feb-2020,000007049295034,AMZNMktplace,5999,Equipment-purchase and rental,108.32,0.00,108.32
Resources BK0010,Digital and Customer Services,070205,School Services - Health and Safety Services,Supplies and Services,304639,Equipment and Materials,05-Feb-2020,000007049295038,WWW.TOOLSTATION.COM,5251,Technicians-supplies,7.97,1.33,6.64
Transformation and Partnerships,Business Support,052986,CYPS - Locality and Operational Support,Supplies and Services,308011,Furniture,05-Feb-2020,000007049295054,WWW.IKEA.COM,5712,Furniture repair and replacement,223.20,37.20,186.00
Transformation and Partnerships,Business Support,052986,CYPS - Locality and Operational Support,Supplies and Services,308011,Furniture,05-Feb-2020,000007049295060,WWW.IKEA.COM,5712,Furniture repair and replacement,437.50,72.92,364.58
Transformation and Partnerships,Business Support,052986,CYPS - Locality and Operational Support,Supplies and Services,308011,Furniture,05-Feb-2020,000007049295062,WWW.IKEA.COM,5712,Furniture repair and replacement,484.50,80.75,403.75
Transformation and Partnerships,Business Support,052986,CYPS - Locality and Operational Support,Supplies and Services,324117,Provisions E324,05-Feb-2020,000007049295066,ASDA GEORGE COM LEEDS,5411,Catering costs - provisions,90.95,0.00,90.95
Regeneration and Local Services,Development and Housing,030771,Durham Advance Flexible Fund,Supplies and Services,348037,Subsistence E348,05-Feb-2020,000007049295112,COSTA COFFEE,5814,Subsistence,5.10,0.85,4.25
Regeneration and Local Services,Development and Housing,030771,Durham Advance Flexible Fund,Supplies and Services,348037,Subsistence E348,05-Feb-2020,000007049295114,COSTA COFFEE,5814,Subsistence,4.55,0.76,3.79
Regeneration and Local Services,Development and Housing,030771,Durham Advance Flexible Fund,Supplies and Services,348037,Subsistence E348,05-Feb-2020,000007049295118,COSTA COFFEE,5814,Subsistence,4.65,0.78,3.87
Regeneration and Local Services,Development and Housing,031500,Housing Solutions - Core Team,Supplies and Services,352001,Conference Expenses,05-Feb-2020,000007049295130,GRAINGER HOTEL,7011,Conferencesseminars fees etc,50.00,0.00,50.00
Dedicated Schools Grant BG0015,DSG High Needs Block,079040,SENSS-HQ,Supplies and Services,304403,Equipment and Materials,05-Feb-2020,000007049295140,AMZNMktplace,5999,Other consumables,9.85,0.00,9.85
Dedicated Schools Grant BG0015,DSG High Needs Block,079040,SENSS-HQ,Supplies and Services,304403,Equipment and Materials,05-Feb-2020,000007049295146,AMZNMktplace,5999,Other consumables,37.92,6.32,31.60
Dedicated Schools Grant BG0015,DSG High Needs Block,079040,SENSS-HQ,Supplies and Services,384999,Miscellaneous Expenses,05-Feb-2020,000007049295164,Amazon.co.uk 5E0MI56Y5,5969,Other expenses,19.22,0.00,19.22
Children and Young Peoples Services,Head of Childrens Social Care,085332,Middlestone Moor CU,Supplies and Services,304999,Equipment and Materials,05-Feb-2020,000007049295182,HOME BARGAINS,5251,Misc equipment tools and materials,11.99,0.00,11.99
Children and Young Peoples Services,Head of Childrens Social Care,085332,Middlestone Moor CU,Supplies and Services,304999,Equipment and Materials,05-Feb-2020,000007049295190,HOME BARGAINS,5251,Misc equipment tools and materials,8.01,0.00,8.01
Children and Young Peoples Services,Head of Early Help Inclusion & Vulnerable Children.,085801,CDYJS - Support,Supplies and Services,324117,Provisions E324,05-Feb-2020,000007049295196,WILKO.COM,5399,Catering costs - provisions,47.00,0.00,47.00
Transformation and Partnerships,Business Support,052986,CYPS - Locality and Operational Support,Transport,235057,Public Transport,05-Feb-2020,000007049295240,GO NORTH EAST LIMITED,4131,Staff travelling,20.00,0.00,20.00
Children and Young Peoples Services,Head of Early Help Inclusion & Vulnerable Children.,088107,Ferryhill & Newton Aycliffe 0-19 Community Family Hub,Supplies and Services,304403,Equipment and Materials,05-Feb-2020,000007049295288,AMZNMktplace,5999,Other consumables,25.18,4.20,20.98
Children and Young Peoples Services,Head of Early Help Inclusion & Vulnerable Children.,088107,Ferryhill & Newton Aycliffe 0-19 Community Family Hub,Supplies and Services,304403,Equipment and Materials,05-Feb-2020,000007049295296,AMZNMktplace,5999,Other consumables,6.35,1.06,5.29
Children and Young Peoples Services,Head of Early Help Inclusion & Vulnerable Children.,088107,Ferryhill & Newton Aycliffe 0-19 Community Family Hub,Supplies and Services,304403,Equipment and Materials,05-Feb-2020,000007049295300,AMZNMktplace,5999,Other consumables,8.75,1.46,7.29
Children and Young Peoples Services,Head of Early Help Inclusion & Vulnerable Children.,088107,Ferryhill & Newton Aycliffe 0-19 Community Family Hub,Supplies and Services,304403,Equipment and Materials,05-Feb-2020,000007049295308,AMZNMktplace,5999,Other consumables,8.75,1.46,7.29
Children and Young Peoples Services,Head of Early Help Inclusion & Vulnerable Children.,088107,Ferryhill & Newton Aycliffe 0-19 Community Family Hub,Supplies and Services,304403,Equipment and Materials,05-Feb-2020,000007049295312,AMZNMktplace,5999,Other consumables,16.64,2.78,13.86
Children and Young Peoples Services,Head of Early Help Inclusion & Vulnerable Children.,088107,Ferryhill & Newton Aycliffe 0-19 Community Family Hub,Supplies and Services,384237,Miscellaneous Expenses,05-Feb-2020,000007049295320,WWW.LQSUNDERLAND.CO.UK,7999,Recreational exps outings parties,60.00,0.00,60.00
Children and Young Peoples Services,Head of Early Help Inclusion & Vulnerable Children.,088107,Ferryhill & Newton Aycliffe 0-19 Community Family Hub,Supplies and Services,384237,Miscellaneous Expenses,05-Feb-2020,000007049295326,WWW.LQSUNDERLAND.CO.UK,7999,Recreational exps outings parties,60.00,0.00,60.00
Children and Young Peoples Services,Head of Early Help Inclusion & Vulnerable Children.,088107,Ferryhill & Newton Aycliffe 0-19 Community Family Hub,Supplies and Services,324117,Provisions E324,05-Feb-2020,000007049295332,ASDA GROCERIES ONLINE,5411,Catering costs - provisions,50.32,0.00,50.32
Children and Young Peoples Services,Head of Early Help Inclusion & Vulnerable Children.,088107,Ferryhill & Newton Aycliffe 0-19 Community Family Hub,Supplies and Services,304403,Equipment and Materials,05-Feb-2020,000007049295338,AMZNMktplace,5999,Other consumables,21.74,3.63,18.11
Regeneration and Local Services,Business Durham CL0850,030694,Plexus 2,Supplies and Services,304403,Equipment and Materials,05-Feb-2020,000007049295562,AMZNMktplace,5999,Other consumables,3.96,0.00,3.96
Children and Young Peoples Services,Head of Education and Skills,054640,Durham Learning Resources 054640,Supplies and Services,304403,Equipment and Materials,05-Feb-2020,000008952731053,AMZNMKTPLACE AMAZON.CO,5999,Other consumables,92.34,15.39,76.95
Children and Young Peoples Services,Head of Education and Skills,054640,Durham Learning Resources 054640,Supplies and Services,304403,Equipment and Materials,05-Feb-2020,000008952731053 - 1,AMZNMKTPLACE AMAZON.CO,5999,Other consumables,0.03,,0.03
Children and Young Peoples Services,Head of Education and Skills,054640,Durham Learning Resources 054640,Supplies and Services,304403,Equipment and Materials,05-Feb-2020,000008952731059,AMZNMKTPLACE AMAZON.CO,5999,Other consumables,15.99,2.67,13.32
Resources BK0010,Digital and Customer Services,065487,ICT Telephony Recharges,Supplies and Services,344033,Telephones,05-Feb-2020,000008952731075,AMZNMKTPLACE AMAZON.CO,5999,Telephones general-all costs,284.50,47.50,237.00
Dedicated Schools Grant BG0015,DSG High Needs Block,079050,SENSS-Sensory,Supplies and Services,304405,Equipment and Materials,05-Feb-2020,000008952731171,PCWERTH.CO.UK,5975,Medical supplies,247.20,0.00,247.20
Adult and Health Services,Head of Adults,052760,OP Management,Charges,720130,Fees and Charges,05-Feb-2020,000008952731203,WWW.MONEYCLAIM.GOV,9399,Fees-legal,410.00,0.00,410.00
Children and Young Peoples Services,Head of Early Help Inclusion & Vulnerable Children.,071440,Barnard Castle One Point Hub,Supplies and Services,328041,Clothing uniforms and laundry E328,05-Feb-2020,000008952731319,ARGOS LTD,5310,Clothing uniforms and laundry,53.95,0.00,53.95
Regeneration and Local Services,Development and Housing,031576,B& B - Temp Accom,Employees,040149,Recruitment Instruction and Training,05-Feb-2020,000008952731467,PREMIER INN,3811,Training-all costs,76.00,0.00,76.00
Regeneration and Local Services,Environmental Services,010314,Nei.Prot - Bereavement Services,Supplies and Services,304259,Equipment and Materials,05-Feb-2020,000008952731575,Durham County CNCL,9399,Equipment-purchase and rental,11.00,0.00,11.00
Regeneration and Local Services,Development and Housing,030771,Durham Advance Flexible Fund,Supplies and Services,304221,Equipment and Materials,05-Feb-2020,000008952731921,AXA INSURANCE UK P,6300,Direct materials,42.34,0.00,42.34
Regeneration and Local Services,Development and Housing,031500,Housing Solutions - Core Team,Supplies and Services,304999,Equipment and Materials,05-Feb-2020,000008952731933,VENTUREPROPERTIESUK.CO,6513,Misc equipment tools and materials,288.46,0.00,288.46
Children and Young Peoples Services,Head of Early Help Inclusion & Vulnerable Children.,085957,Secure Management,Supplies and Services,304403,Equipment and Materials,05-Feb-2020,000008952732021,AMZNMKTPLACE AMAZON.CO,5999,Other consumables,10.99,0.00,10.99
Children and Young Peoples Services,Head of Education and Skills,078100,Curric and Professional Development 078100,Supplies and Services,352001,Conference Expenses,05-Feb-2020,000008952732097,THE KINGSLODGE INN,7011,Conferencesseminars fees etc,108.80,0.00,108.80
Regeneration and Local Services,Environmental Services,010301,C&G - North Grounds Maintenance,Supplies and Services,304221,Equipment and Materials,05-Feb-2020,000008952732119,HARELAW SAWMILL,5211,Direct materials,91.62,0.00,91.62
Resources BK0010,Digital and Customer Services,065335,School Services - Implementations,Supplies and Services,304259,Equipment and Materials,05-Feb-2020,000008952732155,SCREWFIX DIRECT,5200,Equipment-purchase and rental,44.99,7.50,37.49
Regeneration and Local Services,Development and Housing,030771,Durham Advance Flexible Fund,Transport,235057,Public Transport,05-Feb-2020,000008952732211,NEXUS TRAVEL SHOP,4131,Staff travelling,104.50,0.00,104.50
Dedicated Schools Grant BG0015,DSG High Needs Block,079040,SENSS-HQ,Employees,040149,Recruitment Instruction and Training,05-Feb-2020,000008952732229,ST JOHN AMBULANCE,8398,Training-all costs,522.00,0.00,522.00
Transformation and Partnerships,Business Support,052986,CYPS - Locality and Operational Support,Supplies and Services,328041,Clothing uniforms and laundry E328,05-Feb-2020,000008952732237,ARGOS LTD,5310,Clothing uniforms and laundry,206.95,0.00,206.95
Transformation and Partnerships,Business Support,052986,CYPS - Locality and Operational Support,Supplies and Services,328041,Clothing uniforms and laundry E328,05-Feb-2020,000008952732243,ARGOS LTD,5310,Clothing uniforms and laundry,158.00,0.00,158.00
Children and Young Peoples Services,Head of Childrens Social Care,085332,Middlestone Moor CU,Supplies and Services,348037,Subsistence E348,05-Feb-2020,000008952732271,MCDONALD`S,5812,Subsistence,6.17,0.00,6.17
Children and Young Peoples Services,Head of Early Help Inclusion & Vulnerable Children.,085957,Secure Management,Supplies and Services,304999,Equipment and Materials,06-Feb-2020,000007049294496,TESCO SUBSCRIPTION,5968,Misc equipment tools and materials,6.99,0.00,6.99
Regeneration and Local Services,Environmental Services,031200,North Pennines Core,Transport,235057,Public Transport,06-Feb-2020,000007049294958,NS DEURNE,4112,Staff travelling,0.14,0.00,0.14
Regeneration and Local Services,Environmental Services,031200,North Pennines Core,Supplies and Services,352001,Conference Expenses,06-Feb-2020,000007049294962,RH BRUSSELS INVEST,7011,Conferencesseminars fees etc,1.97,0.00,1.97
Regeneration and Local Services,Environmental Services,031200,North Pennines Core,Supplies and Services,348037,Subsistence E348,06-Feb-2020,000007049294964,Grill 57,5812,Subsistence,0.18,0.00,0.18
Children and Young Peoples Services,Head of Education and Skills,071801,Selby Cottage Childcare Centre,Supplies and Services,324117,Provisions E324,06-Feb-2020,000008952731015,TESCO STORES 2278,5411,Catering costs - provisions,52.86,0.00,52.86
Children and Young Peoples Services,Head of Education and Skills,071801,Selby Cottage Childcare Centre,Supplies and Services,324117,Provisions E324,06-Feb-2020,000008952731023,ASDA GROCERIES ONLINE,5411,Catering costs - provisions,97.29,0.00,97.29
Children and Young Peoples Services,Head of Education and Skills,054640,Durham Learning Resources 054640,Supplies and Services,304403,Equipment and Materials,06-Feb-2020,000008952731047,AMZNMktplace,5999,Other consumables,25.16,0.00,25.16
Children and Young Peoples Services,Head of Education and Skills,054640,Durham Learning Resources 054640,Supplies and Services,384999,Miscellaneous Expenses,06-Feb-2020,000008952731065,Amazon.co.uk VG0CM75I5,5969,Other expenses,102.60,0.00,102.60
Children and Young Peoples Services,Head of Childrens Social Care,085561,Social Work Academy,Supplies and Services,384999,Miscellaneous Expenses,06-Feb-2020,000008952731079,Amazon.co.uk JP81T07A5,5969,Other expenses,18.92,0.00,18.92
Resources BK0010,Digital and Customer Services,065351,Microsoft Office 365,Supplies and Services,384999,Miscellaneous Expenses,06-Feb-2020,000008952731085,Amazon.co.uk LQ4M483G5,5969,Other expenses,79.95,0.00,79.95
Regeneration and Local Services,Development and Housing,031576,B& B - Temp Accom,Employees,040149,Recruitment Instruction and Training,06-Feb-2020,000008952731103,SYLVESTER PROPERTIES,8999,Training-all costs,380.00,0.00,380.00
Children and Young Peoples Services,Head of Childrens Social Care,085501,Child Care Cases Legal Expenses,Supplies and Services,304403,Equipment and Materials,06-Feb-2020,000008952731119,SUNDERLAND CC,9399,Other consumables,22.00,0.00,22.00
Adult and Health Services,Head of Adults,055302,Durham Pathways,Supplies and Services,304403,Equipment and Materials,06-Feb-2020,000008952731129,AMZNMktplace,5999,Other consumables,13.49,2.25,11.24
Adult and Health Services,Head of Adults,055302,Durham Pathways,Supplies and Services,324117,Provisions E324,06-Feb-2020,000008952731133,SAINSBURYS SACAT 0776,5411,Catering costs - provisions,17.20,0.00,17.20
Regeneration and Local Services,Environmental Services,010383,C&G - South Street Cleansing,Supplies and Services,304221,Equipment and Materials,06-Feb-2020,000008952731141,WWW.ARCO.CO.UK,5085,Direct materials,210.84,0.00,210.84
Children and Young Peoples Services,Head of Childrens Social Care,085342,9 Cedar Drive Aycliffe,Supplies and Services,324117,Provisions E324,06-Feb-2020,000008952731163,TESCO STORES 2916,5411,Catering costs - provisions,51.60,0.00,51.60
Children and Young Peoples Services,Head of Early Help Inclusion & Vulnerable Children.,071440,Barnard Castle One Point Hub,Supplies and Services,304403,Equipment and Materials,06-Feb-2020,000008952731325,AMZNMktplace,5999,Other consumables,60.96,10.17,50.79
Children and Young Peoples Services,Head of Early Help Inclusion & Vulnerable Children.,071440,Barnard Castle One Point Hub,Supplies and Services,324117,Provisions E324,06-Feb-2020,000008952731329,ASDA GROCERIES ONLINE,5411,Catering costs - provisions,45.28,0.00,45.28
Children and Young Peoples Services,Head of Early Help Inclusion & Vulnerable Children.,071440,Barnard Castle One Point Hub,Supplies and Services,324117,Provisions E324,06-Feb-2020,000008952731333,ASDA,5411,Catering costs - provisions,201.69,0.00,201.69
Children and Young Peoples Services,Head of Early Help Inclusion & Vulnerable Children.,071440,Barnard Castle One Point Hub,Supplies and Services,332047,Printing Stationery and Gen Off Exps,06-Feb-2020,000008952731337,VUE BSL LTD,7832,Stationery,151.50,0.00,151.50
Regeneration and Local Services,Development and Housing,030770,Durham Advance,Transport,235057,Public Transport,06-Feb-2020,000008952731343,B46705810 BLUELINE GRO,4121,Staff travelling,35.70,0.00,35.70
Regeneration and Local Services,Development and Housing,030770,Durham Advance,Transport,235057,Public Transport,06-Feb-2020,000008952731351,B46705839 BLUELINE GRO,4121,Staff travelling,36.30,0.00,36.30
Transformation and Partnerships,Business Support,052986,CYPS - Locality and Operational Support,Supplies and Services,304259,Equipment and Materials,06-Feb-2020,000008952731407,NORTHUMBERLAND CC CRD,9399,Equipment-purchase and rental,11.00,0.00,11.00
Transformation and Partnerships,Business Support,052986,CYPS - Locality and Operational Support,Supplies and Services,304259,Equipment and Materials,06-Feb-2020,000008952731409,HM PASSPORT OFFICE,9399,Equipment-purchase and rental,49.00,0.00,49.00
Transformation and Partnerships,Business Support,052986,CYPS - Locality and Operational Support,Supplies and Services,304259,Equipment and Materials,06-Feb-2020,000008952731415,HM PASSPORT OFFICE,9399,Equipment-purchase and rental,49.00,0.00,49.00
Transformation and Partnerships,Business Support,052986,CYPS - Locality and Operational Support,Supplies and Services,304259,Equipment and Materials,06-Feb-2020,000008952731417,HM PASSPORT OFFICE,9399,Equipment-purchase and rental,49.00,0.00,49.00
Children and Young Peoples Services,Head of Early Help Inclusion & Vulnerable Children.,073998,TTF-Co-ordinator Grant,Transfer Payments,525033,Other,06-Feb-2020,000008952731441,Amazon Prime,5968,Grants to individuals,-7.99,0.00,-7.99
Adult and Health Services,Head of Adults,055807,Newton Aycliffe Pathways,Third Party Payments,474101,Purchase of Care,06-Feb-2020,000008952731477,PIONEERING CARE PARTNE,8050,Nursing care payments,48.00,0.00,48.00
Children and Young Peoples Services,Head of Childrens Social Care,085334,West Rainton Satelite Home,Supplies and Services,304999,Equipment and Materials,06-Feb-2020,000008952731561,TOOLSTATION LTD,5251,Misc equipment tools and materials,10.70,1.78,8.92
Regeneration and Local Services,Environmental Services,010367,C&G - South Grounds Maintenance,Supplies and Services,304999,Equipment and Materials,06-Feb-2020,000008952731731,Snowballs,5251,Misc equipment tools and materials,67.69,11.28,56.41
Children and Young Peoples Services,Head of Childrens Social Care,085331,New Lea Childrens Home,Supplies and Services,304999,Equipment and Materials,06-Feb-2020,000008952731757,COSTCO WHOLESALE UK,7278,Misc equipment tools and materials,178.86,29.81,149.05
Children and Young Peoples Services,Head of Childrens Social Care,085331,New Lea Childrens Home,Supplies and Services,304999,Equipment and Materials,06-Feb-2020,000008952731759,COSTCO WHOLESALE UK,7278,Misc equipment tools and materials,192.69,0.00,192.69
Children and Young Peoples Services,Head of Early Help Inclusion & Vulnerable Children.,088101,CLS 0-19 Community Family Hub,Supplies and Services,324117,Provisions E324,06-Feb-2020,000008952731769,TESCO STORES 2371,5411,Catering costs - provisions,29.00,0.00,29.00
Children and Young Peoples Services,Head of Early Help Inclusion & Vulnerable Children.,088101,CLS 0-19 Community Family Hub,Supplies and Services,324117,Provisions E324,06-Feb-2020,000008952731775,TESCO STORES 2371,5411,Catering costs - provisions,-7.00,0.00,-7.00
Regeneration and Local Services,Corporate Property and Land,010525,Catering - Green Lane,Premises,145009,Cleaning and Domestic Supplies,06-Feb-2020,000008952731827,ALLIANCE DISPOSABLES L,2842,Other cleaning and domestic costs,230.28,38.38,191.90
Regeneration and Local Services,Environmental Services,010367,C&G - South Grounds Maintenance,Supplies and Services,304999,Equipment and Materials,06-Feb-2020,000008952731855,Snowballs,5251,Misc equipment tools and materials,99.84,16.64,83.20
Children and Young Peoples Services,Head of Childrens Social Care,085334,West Rainton Satelite Home,Supplies and Services,324117,Provisions E324,06-Feb-2020,000008952731861,ASDA STORES LTD 4313,5411,Catering costs - provisions,51.15,0.00,51.15
Children and Young Peoples Services,Head of Childrens Social Care,085334,West Rainton Satelite Home,Supplies and Services,324117,Provisions E324,06-Feb-2020,000008952731865,ASDA STORES LTD 4313,5411,Catering costs - provisions,31.15,0.00,31.15
Children and Young Peoples Services,Head of Childrens Social Care,085334,West Rainton Satelite Home,Supplies and Services,348037,Subsistence E348,06-Feb-2020,000008952731867,PIZZA HUT 956,5812,Subsistence,41.96,6.99,34.97
Regeneration and Local Services,Environmental Services,010367,C&G - South Grounds Maintenance,Supplies and Services,304999,Equipment and Materials,06-Feb-2020,000008952731955,Snowballs,5251,Misc equipment tools and materials,48.00,8.00,40.00
Adult and Health Services,Head of Adults,055301,Stanley Pathways,Supplies and Services,304403,Equipment and Materials,06-Feb-2020,000008952731965,AMZNMktplace,5999,Other consumables,25.90,4.32,21.58
Adult and Health Services,Head of Adults,055301,Stanley Pathways,Supplies and Services,304403,Equipment and Materials,06-Feb-2020,000008952731971,AMZNMktplace,5999,Other consumables,59.94,9.99,49.95
Adult and Health Services,Head of Adults,055301,Stanley Pathways,Supplies and Services,304403,Equipment and Materials,06-Feb-2020,000008952731971 - 1,AMZNMktplace,5999,Other consumables,0.03,,0.03
Adult and Health Services,Head of Adults,055301,Stanley Pathways,Supplies and Services,304403,Equipment and Materials,06-Feb-2020,000008952731979,AMZNMktplace,5999,Other consumables,12.95,2.16,10.79
Children and Young Peoples Services,Head of Childrens Social Care,085342,9 Cedar Drive Aycliffe,Supplies and Services,304403,Equipment and Materials,06-Feb-2020,000008952731985,CEX,5065,Other consumables,90.00,0.00,90.00
Children and Young Peoples Services,Head of Childrens Social Care,085342,9 Cedar Drive Aycliffe,Supplies and Services,332047,Printing Stationery and Gen Off Exps,06-Feb-2020,000008952731991,RYMAN,5943,Stationery,30.75,5.13,25.62
Children and Young Peoples Services,Head of Childrens Social Care,085352,Tow Law CU,Supplies and Services,324117,Provisions E324,06-Feb-2020,000008952732007,SAINSBURYS 0776,5411,Catering costs - provisions,23.40,0.00,23.40
Children and Young Peoples Services,Head of Early Help Inclusion & Vulnerable Children.,085957,Secure Management,Supplies and Services,324117,Provisions E324,06-Feb-2020,000008952732013,TESCO STORES 6329,5411,Catering costs - provisions,78.67,0.00,78.67
Children and Young Peoples Services,Head of Early Help Inclusion & Vulnerable Children.,085957,Secure Management,Supplies and Services,304403,Equipment and Materials,06-Feb-2020,000008952732017,AMZNMKTPLACE AMAZON.CO,5999,Other consumables,53.13,0.00,53.13
Children and Young Peoples Services,Head of Early Help Inclusion & Vulnerable Children.,085957,Secure Management,Supplies and Services,304403,Equipment and Materials,06-Feb-2020,000008952732027,AMZNMKTPLACE AMAZON.CO,5999,Other consumables,72.97,0.00,72.97
Children and Young Peoples Services,Head of Early Help Inclusion & Vulnerable Children.,085957,Secure Management,Supplies and Services,304403,Equipment and Materials,06-Feb-2020,000008952732031,AMZNMktplace,5999,Other consumables,20.42,3.41,17.01
Children and Young Peoples Services,Head of Early Help Inclusion & Vulnerable Children.,085957,Secure Management,Supplies and Services,304999,Equipment and Materials,06-Feb-2020,000008952732037,WWW.PLANET-LEISURE.CO.,7933,Misc equipment tools and materials,17.35,0.00,17.35
Regeneration and Local Services,Development and Housing,031576,B& B - Temp Accom,Supplies and Services,352001,Conference Expenses,06-Feb-2020,000008952732051,HOTEL 52,7011,Conferencesseminars fees etc,66.96,11.16,55.80
Regeneration and Local Services,Development and Housing,031576,B& B - Temp Accom,Supplies and Services,352001,Conference Expenses,06-Feb-2020,000008952732051 - 1,HOTEL 52,7011,Conferencesseminars fees etc,0.03,,0.03
Regeneration and Local Services,Environmental Services,031200,North Pennines Core,Supplies and Services,348037,Subsistence E348,06-Feb-2020,000008952732067,MCDONALD`S,5814,Subsistence,4.20,0.00,4.20
Regeneration and Local Services,Environmental Services,031200,North Pennines Core,Supplies and Services,348037,Subsistence E348,06-Feb-2020,000008952732075,WASABI KINGS CROSS,5812,Subsistence,7.30,1.22,6.08
Resources BK0010,Digital and Customer Services,065335,School Services - Implementations,Supplies and Services,304639,Equipment and Materials,06-Feb-2020,000008952732165,box.co.uk,5732,Technicians-supplies,15.22,2.54,12.68
Children and Young Peoples Services,Head of Childrens Social Care,085342,9 Cedar Drive Aycliffe,Employees,040149,Recruitment Instruction and Training,06-Feb-2020,000008952732175,PARENTPAY E-COM R,8220,Training-all costs,5.00,0.00,5.00
Children and Young Peoples Services,Head of Childrens Social Care,085342,9 Cedar Drive Aycliffe,Employees,040149,Recruitment Instruction and Training,06-Feb-2020,000008952732183,PARENTPAY E-COM R,8220,Training-all costs,23.00,0.00,23.00
Regeneration and Local Services,Development and Housing,031500,Housing Solutions - Core Team,Supplies and Services,352001,Conference Expenses,06-Feb-2020,000008952732217,GRAINGER HOTEL,7011,Conferencesseminars fees etc,250.00,0.00,250.00
Transformation and Partnerships,Business Support,052986,CYPS - Locality and Operational Support,Supplies and Services,304259,Equipment and Materials,06-Feb-2020,000008952732249,HM PASSPORT OFFICE,9399,Equipment-purchase and rental,75.50,0.00,75.50
Transformation and Partnerships,Business Support,052986,CYPS - Locality and Operational Support,Supplies and Services,304259,Equipment and Materials,06-Feb-2020,000008952732255,HM PASSPORT OFFICE,9399,Equipment-purchase and rental,75.50,0.00,75.50
Children and Young Peoples Services,Head of Childrens Social Care,085332,Middlestone Moor CU,Supplies and Services,324117,Provisions E324,06-Feb-2020,000008952732279,ASDA SUPERSTORE 4987,5411,Catering costs - provisions,16.95,0.00,16.95
Children and Young Peoples Services,Head of Childrens Social Care,085333,Coxhoe Satelite Home,Supplies and Services,324117,Provisions E324,06-Feb-2020,000008952732299,ASDA STORES LTD,5411,Catering costs - provisions,8.55,0.00,8.55
Children and Young Peoples Services,Head of Childrens Social Care,085332,Middlestone Moor CU,Supplies and Services,348037,Subsistence E348,06-Feb-2020,000008952732431,INFINATE AIR CAFE- SWE,5812,Subsistence,2.45,0.00,2.45
Children and Young Peoples Services,Head of Childrens Social Care,085332,Middlestone Moor CU,Supplies and Services,348037,Subsistence E348,06-Feb-2020,000008952732437,INFINATE AIR CAFE- SWE,5812,Subsistence,3.70,0.00,3.70
Children and Young Peoples Services,Head of Early Help Inclusion & Vulnerable Children.,088107,Ferryhill & Newton Aycliffe 0-19 Community Family Hub,Supplies and Services,384999,Miscellaneous Expenses,06-Feb-2020,000008952732455,Amazon.co.uk 2K00O3WR5,5969,Other expenses,9.72,1.62,8.10
Children and Young Peoples Services,Head of Early Help Inclusion & Vulnerable Children.,088107,Ferryhill & Newton Aycliffe 0-19 Community Family Hub,Supplies and Services,384999,Miscellaneous Expenses,06-Feb-2020,000008952732455 - 1,Amazon.co.uk 2K00O3WR5,5969,Other expenses,0.03,,0.03
Children and Young Peoples Services,Head of Early Help Inclusion & Vulnerable Children.,088107,Ferryhill & Newton Aycliffe 0-19 Community Family Hub,Supplies and Services,384999,Miscellaneous Expenses,06-Feb-2020,000008952732461,Amazon.co.uk 4J3H23KK5,5969,Other expenses,15.66,2.61,13.05
Children and Young Peoples Services,Head of Early Help Inclusion & Vulnerable Children.,088107,Ferryhill & Newton Aycliffe 0-19 Community Family Hub,Supplies and Services,384999,Miscellaneous Expenses,06-Feb-2020,000008952732461 - 1,Amazon.co.uk 4J3H23KK5,5969,Other expenses,0.04,,0.04
Children and Young Peoples Services,Head of Early Help Inclusion & Vulnerable Children.,088107,Ferryhill & Newton Aycliffe 0-19 Community Family Hub,Supplies and Services,304403,Equipment and Materials,06-Feb-2020,000008952732471,AMZNMktplace,5999,Other consumables,38.76,6.46,32.30
Children and Young Peoples Services,Head of Early Help Inclusion & Vulnerable Children.,088107,Ferryhill & Newton Aycliffe 0-19 Community Family Hub,Supplies and Services,304403,Equipment and Materials,06-Feb-2020,000008952732471 - 1,AMZNMktplace,5999,Other consumables,0.03,,0.03
Regeneration and Local Services,Environmental Services,031200,North Pennines Core,Employees,040149,Recruitment Instruction and Training,06-Feb-2020,000008952732479,VIRTUAL COLLEGE LIMITE,8299,Training-all costs,14.40,2.40,12.00
Regeneration and Local Services,Environmental Services,031200,North Pennines Core,Supplies and Services,324117,Provisions E324,06-Feb-2020,000008952732485,SCOTMID CO-OP STANHOPE,5411,Catering costs - provisions,3.80,0.00,3.80
Regeneration and Local Services,Development and Housing,031500,Housing Solutions - Core Team,Supplies and Services,352001,Conference Expenses,06-Feb-2020,000008952732493,HOTEL 52,7011,Conferencesseminars fees etc,71.99,0.00,71.99
Regeneration and Local Services,Development and Housing,031500,Housing Solutions - Core Team,Supplies and Services,352001,Conference Expenses,06-Feb-2020,000008952732501,AYCLIFFE BIZ,7011,Conferencesseminars fees etc,76.00,0.00,76.00
Transformation and Partnerships,Business Support,069010,Administration 069010,Supplies and Services,342033,Computers and Communications,06-Feb-2020,000008952732541,STK Shutterstock,7333,Computer hardware,159.00,0.00,159.00
Regeneration and Local Services,Environmental Services,011068,Nei.Prot - Civic Pride,Supplies and Services,304403,Equipment and Materials,06-Feb-2020,000008959891353,AMZNMKTPLACE AMAZON.CO,5999,Other consumables,59.69,9.95,49.74
Regeneration and Local Services,Community Protection,010934,Works in Default Holding Code,Charges,720130,Fees and Charges,06-Feb-2020,000008959891525,WWW.MONEYCLAIM.GOV,9399,Fees-legal,60.00,0.00,60.00
Regeneration and Local Services,Environmental Services,010367,C&G - South Grounds Maintenance,Supplies and Services,304221,Equipment and Materials,06-Feb-2020,000008959891619,SCREWFIX PETERLEE,5211,Direct materials,58.06,9.68,48.38
Children and Young Peoples Services,Head of Childrens Social Care,085334,West Rainton Satelite Home,Supplies and Services,304221,Equipment and Materials,06-Feb-2020,000008959892229,B & Q 1203,5200,Direct materials,29.97,0.00,29.97
Children and Young Peoples Services,Head of Childrens Social Care,085334,West Rainton Satelite Home,Supplies and Services,304221,Equipment and Materials,06-Feb-2020,000008959892237,B & Q 1343,5200,Direct materials,17.26,0.00,17.26
Children and Young Peoples Services,Head of Childrens Social Care,085334,West Rainton Satelite Home,Supplies and Services,348037,Subsistence E348,06-Feb-2020,000008959892387,MCDONALDS,5812,Subsistence,9.08,1.51,7.57
Transformation and Partnerships,Business Support,052986,CYPS - Locality and Operational Support,Supplies and Services,348037,Subsistence E348,06-Feb-2020,000008959892459,GREGGS,5812,Subsistence,53.25,0.00,53.25
Regeneration and Local Services,Environmental Services,010919,C&G - Countryside Site Management,Supplies and Services,304221,Equipment and Materials,06-Feb-2020,000008959892477,SCREWFIX DIRECT,5200,Direct materials,16.99,0.00,16.99
Regeneration and Local Services,Environmental Services,011060,C&G - Hardwick Park Catering,Supplies and Services,324117,Provisions E324,06-Feb-2020,000008959892499,BATLEYS PERTH,5300,Catering costs - provisions,75.66,12.61,63.05
Regeneration and Local Services,Environmental Services,011060,C&G - Hardwick Park Catering,Supplies and Services,324117,Provisions E324,06-Feb-2020,000008959892499 - 1,BATLEYS PERTH,5300,Catering costs - provisions,325.54,,325.54
Regeneration and Local Services,Culture Sport and Tourism,054815,Gala Theatre Stage School,Supplies and Services,304259,Equipment and Materials,06-Feb-2020,000008959892541,WWW.MTISHOWS.COM,5733,Equipment-purchase and rental,500.00,0.00,500.00
Children and Young Peoples Services,Head of Childrens Social Care,085331,New Lea Childrens Home,Supplies and Services,328041,Clothing uniforms and laundry E328,06-Feb-2020,000008959892607,B&M RETAIL,5310,Clothing uniforms and laundry,98.03,0.00,98.03
Regeneration and Local Services,Development and Housing,031500,Housing Solutions - Core Team,Employees,040149,Recruitment Instruction and Training,06-Feb-2020,000008959892671,PREMIER INN,3811,Training-all costs,62.50,0.00,62.50
Children and Young Peoples Services,Head of Childrens Social Care,085342,9 Cedar Drive Aycliffe,Supplies and Services,348037,Subsistence E348,06-Feb-2020,000008959892955,MCDONALDS,5812,Subsistence,11.65,0.00,11.65
Adult and Health Services,Head of Adults,055301,Stanley Pathways,Supplies and Services,328041,Clothing uniforms and laundry E328,06-Feb-2020,000008959892965,ARGOS LTD,5310,Clothing uniforms and laundry,253.94,0.00,253.94
Adult and Health Services,Head of Adults,055301,Stanley Pathways,Supplies and Services,328041,Clothing uniforms and laundry E328,06-Feb-2020,000008959892971,ARGOS LTD,5310,Clothing uniforms and laundry,43.94,0.00,43.94
Adult and Health Services,Head of Adults,055301,Stanley Pathways,Supplies and Services,328041,Clothing uniforms and laundry E328,06-Feb-2020,000008959892977,ARGOS LTD,5310,Clothing uniforms and laundry,143.95,0.00,143.95
Transformation and Partnerships,Business Support,010832,Business Support 010832,Supplies and Services,304221,Equipment and Materials,06-Feb-2020,000008959893009,BREWERS,5211,Direct materials,226.62,0.00,226.62
Children and Young Peoples Services,Head of Education and Skills,078554,Adult Skills-Main,Employees,040149,Recruitment Instruction and Training,06-Feb-2020,000008959893015,EDUCATION & TRAINI,8220,Training-all costs,50.00,0.00,50.00
Children and Young Peoples Services,Head of Childrens Social Care,085352,Tow Law CU,Supplies and Services,328041,Clothing uniforms and laundry E328,06-Feb-2020,000008959893031,Argos Durham Arnis,5310,Clothing uniforms and laundry,23.00,0.00,23.00
Regeneration and Local Services,Environmental Services,010367,C&G - South Grounds Maintenance,Supplies and Services,304221,Equipment and Materials,06-Feb-2020,000008959893149,SCREWFIX DIRECT,5200,Direct materials,39.55,0.00,39.55
Transformation and Partnerships,Business Support,052986,CYPS - Locality and Operational Support,Supplies and Services,304259,Equipment and Materials,06-Feb-2020,000008959893273,EBUYER (UK) LTD,5722,Equipment-purchase and rental,55.48,0.00,55.48
Resources BK0010,Corporate Finance & Commercial Services,069800,Corporate Procurement 069800,Employees,040149,Recruitment Instruction and Training,06-Feb-2020,000008959893473,WWW.CIPS.ORG,8699,Training-all costs,20.00,0.00,20.00
Children and Young Peoples Services,Head of Childrens Social Care,085333,Coxhoe Satelite Home,Supplies and Services,324117,Provisions E324,06-Feb-2020,000008959893559,CO-OP GROUP 310016,5411,Catering costs - provisions,12.75,0.00,12.75
Regeneration and Local Services,Corporate Property and Land,021235,Catering - Wharton Park,Supplies and Services,324117,Provisions E324,06-Feb-2020,000008959893617,BATLEYS PERTH,5300,Catering costs - provisions,51.18,8.53,42.65
Regeneration and Local Services,Corporate Property and Land,021235,Catering - Wharton Park,Supplies and Services,324117,Provisions E324,06-Feb-2020,000008959893617 - 1,BATLEYS PERTH,5300,Catering costs - provisions,14.43,,14.43
Regeneration and Local Services,Environmental Services,031200,North Pennines Core,Supplies and Services,348037,Subsistence E348,07-Feb-2020,000008952732081,MCDONALD`S,5814,Subsistence,0.12,0.00,0.12
Children and Young Peoples Services,Head of Childrens Social Care,085341,High Etherley Satelite Home,Supplies and Services,304403,Equipment and Materials,07-Feb-2020,000008959891181,CEX (TRINITY SQUARE),5065,Other consumables,3.00,0.00,3.00
Children and Young Peoples Services,Head of Childrens Social Care,085341,High Etherley Satelite Home,Supplies and Services,324117,Provisions E324,07-Feb-2020,000008959891189,WILKO RETAIL LIMITED,5399,Catering costs - provisions,4.00,0.00,4.00
Regeneration and Local Services,Business Durham CL0850,030689,Inward Investment and Aftercare,Supplies and Services,342222,Computers and Communications,07-Feb-2020,000008959891203,FASTHOSTS INTERNET,4816,Comp hardware purch-network servers,44.38,7.40,36.98
Regeneration and Local Services,Business Durham CL0850,030689,Inward Investment and Aftercare,Supplies and Services,342222,Computers and Communications,07-Feb-2020,000008959891209,FASTHOSTS INTERNET,4816,Comp hardware purch-network servers,67.18,11.20,55.98
Regeneration and Local Services,Business Durham CL0850,030689,Inward Investment and Aftercare,Supplies and Services,342222,Computers and Communications,07-Feb-2020,000008959891215,FASTHOSTS INTERNET,4816,Comp hardware purch-network servers,185.92,30.99,154.93
Children and Young Peoples Services,Head of Education and Skills,071801,Selby Cottage Childcare Centre,Supplies and Services,324117,Provisions E324,07-Feb-2020,000008959891261,TESCO STORES 2278,5411,Catering costs - provisions,17.95,0.00,17.95
Children and Young Peoples Services,Head of Education and Skills,071801,Selby Cottage Childcare Centre,Supplies and Services,324117,Provisions E324,07-Feb-2020,000008959891269,TESCO STORES 2278,5411,Catering costs - provisions,3.50,0.00,3.50
Children and Young Peoples Services,Head of Education and Skills,054640,Durham Learning Resources 054640,Supplies and Services,384999,Miscellaneous Expenses,07-Feb-2020,000008959891327,Amazon.co.uk DZ5A50FX5,5969,Other expenses,9.08,0.00,9.08
Children and Young Peoples Services,Head of Education and Skills,054640,Durham Learning Resources 054640,Supplies and Services,384999,Miscellaneous Expenses,07-Feb-2020,000008959891333,Amazon.co.uk M53VL4OB5,5969,Other expenses,4.54,0.00,4.54
Children and Young Peoples Services,Head of Education and Skills,054640,Durham Learning Resources 054640,Supplies and Services,384999,Miscellaneous Expenses,07-Feb-2020,000008959891337,Amazon.co.uk 2E0VN7IC5,5969,Other expenses,9.08,0.00,9.08
Resources BK0010,Digital and Customer Services,070110,School Services - Man Info System (MIS) Support Team,Supplies and Services,342053,Computers and Communications,07-Feb-2020,000008959891361,WPMU DEV INCSUBFEE.COM,7372,Computer software,14.73,0.00,14.73
Children and Young Peoples Services,Head of Education and Skills,070264,EDC Premises,Supplies and Services,324117,Provisions E324,07-Feb-2020,000008959891401,HOPWELLS LTD,5811,Catering costs - provisions,118.47,0.00,118.47
Children and Young Peoples Services,Head of Education and Skills,070264,EDC Premises,Supplies and Services,324117,Provisions E324,07-Feb-2020,000008959891411,WWW.ADELIEFOODS.CO.UK,5499,Catering costs - provisions,61.52,0.00,61.52
Children and Young Peoples Services,Head of Education and Skills,078411,16-19 Education & Training,Employees,040149,Recruitment Instruction and Training,07-Feb-2020,000008959891429,VIRTUAL COLLEGE LIMITE,8299,Training-all costs,24.00,4.00,20.00
Children and Young Peoples Services,Head of Education and Skills,078411,16-19 Education & Training,Supplies and Services,328041,Clothing uniforms and laundry E328,07-Feb-2020,000008959891435,SHOE ZONE (INTERNET),5661,Clothing uniforms and laundry,11.99,2.00,9.99
Dedicated Schools Grant BG0015,DSG High Needs Block,079050,SENSS-Sensory,Supplies and Services,332047,Printing Stationery and Gen Off Exps,07-Feb-2020,000008959891455,WWW.CULTPEN.COM,5943,Stationery,83.88,0.00,83.88
Adult and Health Services,Head of Adults,052760,OP Management,Charges,720130,Fees and Charges,07-Feb-2020,000008959891529,WWW.MONEYCLAIM.GOV,9399,Fees-legal,105.00,0.00,105.00
Adult and Health Services,Head of Adults,052760,OP Management,Charges,720130,Fees and Charges,07-Feb-2020,000008959891535,WWW.MONEYCLAIM.GOV,9399,Fees-legal,410.00,0.00,410.00
Regeneration and Local Services,Environmental Services,010367,C&G - South Grounds Maintenance,Supplies and Services,304221,Equipment and Materials,07-Feb-2020,000008959891623,SCREWFIX PETERLEE,5211,Direct materials,45.96,7.66,38.30
Children and Young Peoples Services,Head of Childrens Social Care,085352,Tow Law CU,Supplies and Services,348037,Subsistence E348,07-Feb-2020,000008959891675,SUBWAY THINGFORD NORTH,5814,Subsistence,18.77,0.00,18.77
Regeneration and Local Services,Corporate Property and Land,021242,Catering - County Hall,Supplies and Services,324117,Provisions E324,07-Feb-2020,000008959891767,HOPWELLS LTD,5811,Catering costs - provisions,178.27,0.00,178.27
Regeneration and Local Services,Corporate Property and Land,021242,Catering - County Hall,Supplies and Services,324117,Provisions E324,07-Feb-2020,000008959891775,HOPWELLS LTD,5811,Catering costs - provisions,425.74,0.00,425.74
Children and Young Peoples Services,Head of Childrens Social Care,085332,Middlestone Moor CU,Supplies and Services,304999,Equipment and Materials,07-Feb-2020,000008959891863,Well Pharmacy 200438,5912,Misc equipment tools and materials,0.98,0.00,0.98
Regeneration and Local Services,Culture Sport and Tourism,054812,Gala Theatre - Catering etc,Supplies and Services,324117,Provisions E324,07-Feb-2020,000008959891881,HOPWELLS LTD,5811,Catering costs - provisions,57.94,0.00,57.94
Regeneration and Local Services,Culture Sport and Tourism,054812,Gala Theatre - Catering etc,Supplies and Services,324117,Provisions E324,07-Feb-2020,000008959891889,HOPWELLS LTD,5811,Catering costs - provisions,14.69,0.00,14.69
Regeneration and Local Services,Corporate Property and Land,021242,Catering - County Hall,Supplies and Services,324117,Provisions E324,07-Feb-2020,000008959891915,COSTCUTTERS,5499,Catering costs - provisions,6.76,0.00,6.76
Regeneration and Local Services,Development and Housing,030772,CLLD South,Supplies and Services,352001,Conference Expenses,07-Feb-2020,000008959891947,Hotel on Booking.com,7011,Conferencesseminars fees etc,120.00,0.00,120.00
Transformation and Partnerships,Business Support,052986,CYPS - Locality and Operational Support,Supplies and Services,304259,Equipment and Materials,07-Feb-2020,000008959891951,HM PASSPORT OFFICE,9399,Equipment-purchase and rental,49.00,0.00,49.00
Regeneration and Local Services,Development and Housing,031576,B& B - Temp Accom,Supplies and Services,352001,Conference Expenses,07-Feb-2020,000008959892041,HOTEL 52,7011,Conferencesseminars fees etc,220.97,0.00,220.97
Children and Young Peoples Services,Head of Childrens Social Care,085334,West Rainton Satelite Home,Supplies and Services,324117,Provisions E324,07-Feb-2020,000008959892053,SAINSBURYS (2303),5411,Catering costs - provisions,15.24,0.00,15.24
Children and Young Peoples Services,Head of Childrens Social Care,085334,West Rainton Satelite Home,Supplies and Services,324117,Provisions E324,07-Feb-2020,000008959892059,GEORGE BOLAM (FOODS) L,5499,Catering costs - provisions,151.51,0.00,151.51
Regeneration and Local Services,Environmental Services,031221,North Pennines - Bowlees,Supplies and Services,304221,Equipment and Materials,07-Feb-2020,000008959892211,GRAHAMS LOGS & TIMBER,5211,Direct materials,140.00,0.00,140.00
Regeneration and Local Services,Development and Housing,030771,Durham Advance Flexible Fund,Supplies and Services,304403,Equipment and Materials,07-Feb-2020,000008959892283,PARTICIPANT UK LIMITED,5734,Other consumables,330.00,0.00,330.00
Transformation and Partnerships,Business Support,052986,CYPS - Locality and Operational Support,Supplies and Services,304403,Equipment and Materials,07-Feb-2020,000008959892463,AMZNMktplace,5999,Other consumables,65.99,0.00,65.99
Transformation and Partnerships,Business Support,052986,CYPS - Locality and Operational Support,Supplies and Services,304403,Equipment and Materials,07-Feb-2020,000008959892467,AMZNMktplace,5999,Other consumables,91.14,0.00,91.14
Regeneration and Local Services,Environmental Services,026591,C&G - Hardwick Park,Supplies and Services,304999,Equipment and Materials,07-Feb-2020,000008959892485,LINERSBAGSSACKS,5131,Misc equipment tools and materials,136.08,22.68,113.40
Regeneration and Local Services,Environmental Services,011060,C&G - Hardwick Park Catering,Supplies and Services,324117,Provisions E324,07-Feb-2020,000008959892509,HOPWELLS LTD,5811,Catering costs - provisions,15.96,2.66,13.30
Regeneration and Local Services,Environmental Services,011060,C&G - Hardwick Park Catering,Supplies and Services,324117,Provisions E324,07-Feb-2020,000008959892509 - 1,HOPWELLS LTD,5811,Catering costs - provisions,104.75,,104.75
Regeneration and Local Services,Environmental Services,011060,C&G - Hardwick Park Catering,Supplies and Services,324117,Provisions E324,07-Feb-2020,000008959892513,HOPWELLS LTD,5811,Catering costs - provisions,39.42,6.57,32.85
Regeneration and Local Services,Environmental Services,011060,C&G - Hardwick Park Catering,Supplies and Services,324117,Provisions E324,07-Feb-2020,000008959892513 - 1,HOPWELLS LTD,5811,Catering costs - provisions,74.85,,74.85
Regeneration and Local Services,Culture Sport and Tourism,054820,Gala Theatre - Overheads,Supplies and Services,304403,Equipment and Materials,07-Feb-2020,000008959892537,AMZNMktplace,5999,Other consumables,131.80,0.00,131.80
Regeneration and Local Services,Corporate Property and Land,021234,Catering - Locomotion,Supplies and Services,324117,Provisions E324,07-Feb-2020,000008959892597,HOPWELLS LTD,5811,Catering costs - provisions,60.72,10.12,50.60
Regeneration and Local Services,Corporate Property and Land,021234,Catering - Locomotion,Supplies and Services,324117,Provisions E324,07-Feb-2020,000008959892597 - 1,HOPWELLS LTD,5811,Catering costs - provisions,231.56,,231.56
Children and Young Peoples Services,Head of Childrens Social Care,085331,New Lea Childrens Home,Supplies and Services,304403,Equipment and Materials,07-Feb-2020,000008959892609,AMZNMktplace,5999,Other consumables,10.40,0.00,10.40
Children and Young Peoples Services,Head of Childrens Social Care,085331,New Lea Childrens Home,Supplies and Services,304403,Equipment and Materials,07-Feb-2020,000008959892611,AMZNMktplace,5999,Other consumables,18.78,0.00,18.78
Regeneration and Local Services,Development and Housing,031500,Housing Solutions - Core Team,Supplies and Services,352001,Conference Expenses,07-Feb-2020,000008959892675,HOTEL 52,7011,Conferencesseminars fees etc,220.97,36.83,184.14
Regeneration and Local Services,Development and Housing,031500,Housing Solutions - Core Team,Supplies and Services,352001,Conference Expenses,07-Feb-2020,000008959892681,HOTEL 52,7011,Conferencesseminars fees etc,235.97,39.33,196.64
Regeneration and Local Services,Corporate Property and Land,010525,Catering - Green Lane,Supplies and Services,324117,Provisions E324,07-Feb-2020,000008959892687,HOPWELLS LTD,5811,Catering costs - provisions,86.38,0.00,86.38
Regeneration and Local Services,Corporate Property and Land,010525,Catering - Green Lane,Supplies and Services,324117,Provisions E324,07-Feb-2020,000008959892695,HOPWELLS LTD,5811,Catering costs - provisions,127.84,0.00,127.84
Children and Young Peoples Services,Head of Early Help Inclusion & Vulnerable Children.,071515,Stanley Childrens Centre,Supplies and Services,324117,Provisions E324,07-Feb-2020,000008959892759,BESTWAY WHOLESALE,5451,Catering costs - provisions,9.03,0.00,9.03
Children and Young Peoples Services,Head of Early Help Inclusion & Vulnerable Children.,071443,Stanley One Point Hub,Supplies and Services,324117,Provisions E324,07-Feb-2020,000008959892765,BESTWAY WHOLESALE,5451,Catering costs - provisions,38.87,0.00,38.87
Regeneration and Local Services,Development and Housing,030771,Durham Advance Flexible Fund,Supplies and Services,304259,Equipment and Materials,07-Feb-2020,000008959892921,Durham County CNCL,9399,Equipment-purchase and rental,42.50,0.00,42.50
Children and Young Peoples Services,Head of Childrens Social Care,085342,9 Cedar Drive Aycliffe,Supplies and Services,324117,Provisions E324,07-Feb-2020,000008959892985,WILKO RETAIL LIMITED,5399,Catering costs - provisions,18.20,0.00,18.20
Children and Young Peoples Services,Head of Childrens Social Care,085342,9 Cedar Drive Aycliffe,Supplies and Services,344033,Telephones,07-Feb-2020,000008959892991,giffgaff,4814,Telephones general-all costs,10.00,0.00,10.00
Children and Young Peoples Services,Head of Childrens Social Care,085342,9 Cedar Drive Aycliffe,Supplies and Services,324117,Provisions E324,07-Feb-2020,000008959892999,TESCO STORES 2916,5411,Catering costs - provisions,5.00,0.00,5.00
Children and Young Peoples Services,Head of Childrens Social Care,085352,Tow Law CU,Supplies and Services,324117,Provisions E324,07-Feb-2020,000008959893037,CO-OP GROUP 010989,5411,Catering costs - provisions,16.43,0.00,16.43
Children and Young Peoples Services,Head of Early Help Inclusion & Vulnerable Children.,085957,Secure Management,Supplies and Services,304403,Equipment and Materials,07-Feb-2020,000008959893047,AMZNMktplace,5999,Other consumables,33.98,5.66,28.32
Children and Young Peoples Services,Head of Early Help Inclusion & Vulnerable Children.,085957,Secure Management,Supplies and Services,304403,Equipment and Materials,07-Feb-2020,000008959893055,AMZNMktplace,5999,Other consumables,64.94,10.83,54.11
Children and Young Peoples Services,Head of Early Help Inclusion & Vulnerable Children.,085957,Secure Management,Supplies and Services,328041,Clothing uniforms and laundry E328,07-Feb-2020,000008959893059,FOOTASYLUM PLC,5691,Clothing uniforms and laundry,52.98,0.00,52.98
Children and Young Peoples Services,Head of Early Help Inclusion & Vulnerable Children.,085957,Secure Management,Supplies and Services,328041,Clothing uniforms and laundry E328,07-Feb-2020,000008959893061,FOOTASYLUM PLC,5691,Clothing uniforms and laundry,34.99,0.00,34.99
Children and Young Peoples Services,Head of Early Help Inclusion & Vulnerable Children.,085957,Secure Management,Supplies and Services,304259,Equipment and Materials,07-Feb-2020,000008959893065,SPORTSDIRECT.COM,5941,Equipment-purchase and rental,49.98,0.00,49.98
Children and Young Peoples Services,Head of Early Help Inclusion & Vulnerable Children.,085957,Secure Management,Supplies and Services,304259,Equipment and Materials,07-Feb-2020,000008959893069,SPORTSDIRECT.COM,5941,Equipment-purchase and rental,92.97,0.00,92.97
Children and Young Peoples Services,Head of Early Help Inclusion & Vulnerable Children.,085957,Secure Management,Supplies and Services,304259,Equipment and Materials,07-Feb-2020,000008959893073,WWW.GEAR4MUSIC.COM,5733,Equipment-purchase and rental,159.00,26.50,132.50
Children and Young Peoples Services,Head of Early Help Inclusion & Vulnerable Children.,085957,Secure Management,Supplies and Services,304259,Equipment and Materials,07-Feb-2020,000008959893073 - 1,WWW.GEAR4MUSIC.COM,5733,Equipment-purchase and rental,5.49,,5.49
Regeneration and Local Services,Corporate Property and Land,030691,Catering - Durham Dales Centre,Supplies and Services,324117,Provisions E324,07-Feb-2020,000008959893089,HOPWELLS LTD,5811,Catering costs - provisions,189.40,0.00,189.40
Adult and Health Services,Head of Adults,055306,Spennymoor Pathways,Supplies and Services,324117,Provisions E324,07-Feb-2020,000008959893103,LIDL GB SPENNYMOOR,5411,Catering costs - provisions,7.99,1.33,6.66
Regeneration and Local Services,Corporate Property and Land,021324,Catering - Meadowfield,Supplies and Services,324117,Provisions E324,07-Feb-2020,000008959893277,HOPWELLS LTD,5811,Catering costs - provisions,115.49,0.00,115.49
Regeneration and Local Services,Environmental Services,010301,C&G - North Grounds Maintenance,Supplies and Services,304999,Equipment and Materials,07-Feb-2020,000008959893329,GUSTHARTS,5072,Misc equipment tools and materials,172.37,0.00,172.37
Regeneration and Local Services,Environmental Services,010301,C&G - North Grounds Maintenance,Supplies and Services,304999,Equipment and Materials,07-Feb-2020,000008959893337,GUSTHARTS,5072,Misc equipment tools and materials,260.15,0.00,260.15
Children and Young Peoples Services,Head of Childrens Social Care,085352,Tow Law CU,Supplies and Services,304999,Equipment and Materials,07-Feb-2020,000008959893365,BOOTS/5002,5912,Misc equipment tools and materials,3.00,0.00,3.00
Children and Young Peoples Services,Head of Childrens Social Care,085352,Tow Law CU,Supplies and Services,348037,Subsistence E348,07-Feb-2020,000008959893369,STARBUCKS,5814,Subsistence,8.60,0.00,8.60
Children and Young Peoples Services,Head of Childrens Social Care,085352,Tow Law CU,Supplies and Services,348037,Subsistence E348,07-Feb-2020,000008959893375,MCDONALDS,5814,Subsistence,18.54,0.00,18.54
Children and Young Peoples Services,Head of Childrens Social Care,085352,Tow Law CU,Supplies and Services,304259,Equipment and Materials,07-Feb-2020,000008959893379,JD SPORTS 193,5941,Equipment-purchase and rental,52.00,0.00,52.00
Children and Young Peoples Services,Head of Childrens Social Care,085352,Tow Law CU,Supplies and Services,304999,Equipment and Materials,07-Feb-2020,000008959893381,Namco Uk Ltd,7929,Misc equipment tools and materials,38.50,0.00,38.50
Children and Young Peoples Services,Head of Childrens Social Care,085333,Coxhoe Satelite Home,Supplies and Services,324117,Provisions E324,07-Feb-2020,000008959893413,TESCO STORES 2916,5411,Catering costs - provisions,110.25,0.00,110.25
Children and Young Peoples Services,Head of Education and Skills,071802,Louisa Cent Nursery,Supplies and Services,324117,Provisions E324,07-Feb-2020,000008959893421,ASDA SUPERSTORE,5411,Catering costs - provisions,59.66,0.00,59.66
Children and Young Peoples Services,Head of Education and Skills,071802,Louisa Cent Nursery,Supplies and Services,324117,Provisions E324,07-Feb-2020,000008959893427,ASDA SUPERSTORE,5411,Catering costs - provisions,20.00,0.00,20.00
Children and Young Peoples Services,Head of Education and Skills,071802,Louisa Cent Nursery,Supplies and Services,324117,Provisions E324,07-Feb-2020,000008959893429,ASDA SUPERSTORE,5411,Catering costs - provisions,11.11,0.00,11.11
Children and Young Peoples Services,Head of Early Help Inclusion & Vulnerable Children.,088107,Ferryhill & Newton Aycliffe 0-19 Community Family Hub,Supplies and Services,304403,Equipment and Materials,07-Feb-2020,000008959893505,AMZNMktplace,5999,Other consumables,59.90,10.00,49.90
Regeneration and Local Services,Development and Housing,031500,Housing Solutions - Core Team,Supplies and Services,352001,Conference Expenses,07-Feb-2020,000008959893523,HOTEL 52,7011,Conferencesseminars fees etc,235.97,0.00,235.97
Regeneration and Local Services,Development and Housing,031500,Housing Solutions - Core Team,Supplies and Services,352001,Conference Expenses,07-Feb-2020,000008959893529,AYCLIFFE BIZ,7011,Conferencesseminars fees etc,114.00,0.00,114.00
Regeneration and Local Services,Development and Housing,031500,Housing Solutions - Core Team,Supplies and Services,352001,Conference Expenses,07-Feb-2020,000008959893535,THE HONEST LAWYER,7011,Conferencesseminars fees etc,358.00,0.00,358.00
Regeneration and Local Services,Development and Housing,030770,Durham Advance,Transport,235057,Public Transport,07-Feb-2020,000008959893821,GO NORTH EAST LIMITED,4131,Staff travelling,7.00,0.00,7.00
Children and Young Peoples Services,Head of Education and Skills,070264,EDC Premises,Supplies and Services,324117,Provisions E324,07-Feb-2020,000008968482791,BATLEYS PERTH,5300,Catering costs - provisions,66.94,0.00,66.94
Children and Young Peoples Services,Head of Education and Skills,078411,16-19 Education & Training,Supplies and Services,304259,Equipment and Materials,07-Feb-2020,000008968482863,DUMFRIES & GALLOWAY,9399,Equipment-purchase and rental,21.50,0.00,21.50
Regeneration and Local Services,Corporate Property and Land,021242,Catering - County Hall,Supplies and Services,324117,Provisions E324,07-Feb-2020,000008968483229,BATLEYS PERTH,5300,Catering costs - provisions,372.60,62.10,310.50
Regeneration and Local Services,Corporate Property and Land,021242,Catering - County Hall,Supplies and Services,324117,Provisions E324,07-Feb-2020,000008968483229 - 1,BATLEYS PERTH,5300,Catering costs - provisions,317.60,,317.60
Regeneration and Local Services,Environmental Services,011060,C&G - Hardwick Park Catering,Supplies and Services,324117,Provisions E324,07-Feb-2020,000008968483805,BATLEYS PERTH,5300,Catering costs - provisions,153.54,25.59,127.95
Regeneration and Local Services,Environmental Services,011060,C&G - Hardwick Park Catering,Supplies and Services,324117,Provisions E324,07-Feb-2020,000008968483805 - 1,BATLEYS PERTH,5300,Catering costs - provisions,138.87,,138.87
Regeneration and Local Services,Corporate Property and Land,010525,Catering - Green Lane,Supplies and Services,324117,Provisions E324,07-Feb-2020,000008968484037,BATLEYS PERTH,5300,Catering costs - provisions,188.10,31.35,156.75
Regeneration and Local Services,Corporate Property and Land,010525,Catering - Green Lane,Supplies and Services,324117,Provisions E324,07-Feb-2020,000008968484037 - 1,BATLEYS PERTH,5300,Catering costs - provisions,47.08,,47.08
Adult and Health Services,Head of Adults,055643,Hawthorn House LD Respite Unit,Supplies and Services,324117,Provisions E324,07-Feb-2020,000008968484633,BATLEYS PERTH,5300,Catering costs - provisions,32.34,5.39,26.95
Adult and Health Services,Head of Adults,055643,Hawthorn House LD Respite Unit,Supplies and Services,324117,Provisions E324,07-Feb-2020,000008968484633 - 1,BATLEYS PERTH,5300,Catering costs - provisions,96.49,,96.49
Children and Young Peoples Services,Head of Education and Skills,071801,Selby Cottage Childcare Centre,Supplies and Services,304999,Equipment and Materials,08-Feb-2020,000008959891277,Amazon Prime B083S4335,5968,Misc equipment tools and materials,7.99,0.00,7.99
Children and Young Peoples Services,Head of Education and Skills,054640,Durham Learning Resources 054640,Supplies and Services,384999,Miscellaneous Expenses,08-Feb-2020,000008959891343,Amazon.co.uk DO4W75CG5,5969,Other expenses,31.45,0.00,31.45
Regeneration and Local Services,Technical Services CM0300,025122,Strategic Highways - Structures 025122,Supplies and Services,344033,Telephones,08-Feb-2020,000008959891367,Amazon.co.uk P09P95R15,5969,Telephones general-all costs,37.90,0.00,37.90
Children and Young Peoples Services,Head of Childrens Social Care,085342,9 Cedar Drive Aycliffe,Supplies and Services,324117,Provisions E324,08-Feb-2020,000008959891447,WILKO RETAIL LIMITED,5399,Catering costs - provisions,36.00,0.00,36.00
Children and Young Peoples Services,Head of Childrens Social Care,085342,9 Cedar Drive Aycliffe,Supplies and Services,324117,Provisions E324,08-Feb-2020,000008959891451,TESCO STORES 2916,5411,Catering costs - provisions,26.21,0.00,26.21
Children and Young Peoples Services,Head of Childrens Social Care,085341,High Etherley Satelite Home,Supplies and Services,324117,Provisions E324,08-Feb-2020,000008959891971,SAINSBURYS SACAT 2199,5411,Catering costs - provisions,4.00,0.00,4.00
Children and Young Peoples Services,Head of Childrens Social Care,085341,High Etherley Satelite Home,Supplies and Services,324117,Provisions E324,08-Feb-2020,000008959891977,TESCO STORES 6329,5411,Catering costs - provisions,41.46,0.00,41.46
Transformation and Partnerships,Business Support,052986,CYPS - Locality and Operational Support,Supplies and Services,324117,Provisions E324,08-Feb-2020,000008959892103,ASDA STORES,5411,Catering costs - provisions,63.05,0.00,63.05
Children and Young Peoples Services,Head of Childrens Social Care,085334,West Rainton Satelite Home,Supplies and Services,304221,Equipment and Materials,08-Feb-2020,000008959892243,B & Q 1343,5200,Direct materials,20.95,0.00,20.95
Children and Young Peoples Services,Head of Childrens Social Care,085334,West Rainton Satelite Home,Supplies and Services,304221,Equipment and Materials,08-Feb-2020,000008959892249,TOOLSTATION LTD,5211,Direct materials,15.16,0.00,15.16
Children and Young Peoples Services,Head of Childrens Social Care,085334,West Rainton Satelite Home,Supplies and Services,384999,Miscellaneous Expenses,08-Feb-2020,000008959892393,SMYTHS TOYS DURHAM,5945,Other expenses,10.00,0.00,10.00
Children and Young Peoples Services,Head of Childrens Social Care,085334,West Rainton Satelite Home,Supplies and Services,348037,Subsistence E348,08-Feb-2020,000008959892399,COSTA @ NEXT 43044010,5814,Subsistence,7.30,1.22,6.08
Children and Young Peoples Services,Head of Childrens Social Care,085334,West Rainton Satelite Home,Supplies and Services,328041,Clothing uniforms and laundry E328,08-Feb-2020,000008959892403,THE WORKS,5310,Clothing uniforms and laundry,4.00,0.67,3.33
Children and Young Peoples Services,Head of Childrens Social Care,085334,West Rainton Satelite Home,Supplies and Services,328041,Clothing uniforms and laundry E328,08-Feb-2020,000008959892409,THE WORKS,5310,Clothing uniforms and laundry,18.18,3.03,15.15
Children and Young Peoples Services,Head of Childrens Social Care,085334,West Rainton Satelite Home,Supplies and Services,328041,Clothing uniforms and laundry E328,08-Feb-2020,000008959892409 - 1,THE WORKS,5310,Clothing uniforms and laundry,12.02,,12.02
Children and Young Peoples Services,Head of Childrens Social Care,085334,West Rainton Satelite Home,Supplies and Services,304259,Equipment and Materials,08-Feb-2020,000008959892417,J D SPORTS,5941,Equipment-purchase and rental,38.05,0.00,38.05
Children and Young Peoples Services,Head of Childrens Social Care,085334,West Rainton Satelite Home,Supplies and Services,304259,Equipment and Materials,08-Feb-2020,000008959892423,SPORTSDIRECT 264,5941,Equipment-purchase and rental,67.98,0.00,67.98
Children and Young Peoples Services,Head of Early Help Inclusion & Vulnerable Children.,088103,Consett & Stanley 0-19 Community Family Hub,Supplies and Services,304403,Equipment and Materials,08-Feb-2020,000008959892769,AMZNMktplace,5999,Other consumables,18.07,3.01,15.06
Children and Young Peoples Services,Head of Early Help Inclusion & Vulnerable Children.,088103,Consett & Stanley 0-19 Community Family Hub,Supplies and Services,304403,Equipment and Materials,08-Feb-2020,000008959892771,AMZNMktplace,5999,Other consumables,6.50,1.08,5.42
Regeneration and Local Services,Development and Housing,031500,Housing Solutions - Core Team,Supplies and Services,352001,Conference Expenses,08-Feb-2020,000008959892817,HOTEL 52,7011,Conferencesseminars fees etc,157.96,26.33,131.63
Children and Young Peoples Services,Head of Early Help Inclusion & Vulnerable Children.,085957,Secure Management,Supplies and Services,328041,Clothing uniforms and laundry E328,08-Feb-2020,000008959893083,PRETTYLITTLETHING.COM,5691,Clothing uniforms and laundry,-10.00,0.00,-10.00
Resources BK0010,Digital and Customer Services,065329,Operations - Primary Support,Supplies and Services,342033,Computers and Communications,08-Feb-2020,000008959893209,AMZNMktplace,5999,Computer hardware,108.32,0.00,108.32
Children and Young Peoples Services,Head of Childrens Social Care,085332,Middlestone Moor CU,Supplies and Services,324117,Provisions E324,08-Feb-2020,000008959893285,KEN WARNE LTD (O5),5411,Catering costs - provisions,11.78,0.00,11.78
Children and Young Peoples Services,Head of Childrens Social Care,085332,Middlestone Moor CU,Supplies and Services,312009,Newspapers books and periodicals E312,08-Feb-2020,000008959893289,MIDDLESTONE MOOR NEWSA,5994,Newspapers books and periodicals,32.00,0.00,32.00
Children and Young Peoples Services,Head of Childrens Social Care,085332,Middlestone Moor CU,Supplies and Services,332047,Printing Stationery and Gen Off Exps,08-Feb-2020,000008959893295,Vue Cinemas,7832,Stationery,19.96,0.00,19.96
Children and Young Peoples Services,Head of Childrens Social Care,085352,Tow Law CU,Supplies and Services,348037,Subsistence E348,08-Feb-2020,000008959893387,COSTA COFFEE NEWTON AY,5812,Subsistence,10.70,0.00,10.70
Regeneration and Local Services,Environmental Services,031200,North Pennines Core,Supplies and Services,308011,Furniture,08-Feb-2020,000008959893707,IKEA LTD 143 GATESHEAD,5712,Furniture repair and replacement,48.00,0.00,48.00
Adult and Health Services,Head of Adults,055309,Peterlee Pathways,Supplies and Services,324117,Provisions E324,08-Feb-2020,000008959893851,WILKO RETAIL LIMITED,5399,Catering costs - provisions,21.50,3.58,17.92
Children and Young Peoples Services,Head of Childrens Social Care,085341,High Etherley Satelite Home,Supplies and Services,324117,Provisions E324,09-Feb-2020,000008959891193,TESCO STORES 6329,5411,Catering costs - provisions,36.02,0.00,36.02
Regeneration and Local Services,Business Durham CL0850,030689,Inward Investment and Aftercare,Supplies and Services,304999,Equipment and Materials,09-Feb-2020,000008959891197,MAILCHIMP MONTHLY,5968,Misc equipment tools and materials,70.53,0.00,70.53
Children and Young Peoples Services,Head of Childrens Social Care,085333,Coxhoe Satelite Home,Supplies and Services,324117,Provisions E324,09-Feb-2020,000008959891607,CO-OP GROUP 310016,5411,Catering costs - provisions,21.50,0.00,21.50
Children and Young Peoples Services,Head of Childrens Social Care,085352,Tow Law CU,Supplies and Services,328041,Clothing uniforms and laundry E328,09-Feb-2020,000008959891679,ARGOS BISHOP AUCKL,5310,Clothing uniforms and laundry,12.95,0.00,12.95
Children and Young Peoples Services,Head of Early Help Inclusion & Vulnerable Children.,071440,Barnard Castle One Point Hub,Supplies and Services,304259,Equipment and Materials,09-Feb-2020,000008959891719,Prime Video DJ8KT5795,5735,Equipment-purchase and rental,13.99,0.00,13.99
Children and Young Peoples Services,Head of Childrens Social Care,085332,Middlestone Moor CU,Supplies and Services,304999,Equipment and Materials,09-Feb-2020,000008959891805,HOME BARGAINS,5251,Misc equipment tools and materials,21.58,0.00,21.58
Children and Young Peoples Services,Head of Childrens Social Care,085332,Middlestone Moor CU,Supplies and Services,348037,Subsistence E348,09-Feb-2020,000008959891813,MCDONALD`S,5812,Subsistence,3.70,0.00,3.70
Children and Young Peoples Services,Head of Childrens Social Care,085332,Middlestone Moor CU,Supplies and Services,304403,Equipment and Materials,09-Feb-2020,000008959891867,PAYPAL JIGO2511 EBAY,5999,Other consumables,5.99,0.00,5.99
Children and Young Peoples Services,Head of Childrens Social Care,085332,Middlestone Moor CU,Supplies and Services,324117,Provisions E324,09-Feb-2020,000008959891873,ASDA SUPERSTORE 4987,5411,Catering costs - provisions,52.38,0.00,52.38
Transformation and Partnerships,Business Support,052986,CYPS - Locality and Operational Support,Supplies and Services,328041,Clothing uniforms and laundry E328,09-Feb-2020,000008959892109,B & M RETAIL,5310,Clothing uniforms and laundry,30.83,0.00,30.83
Regeneration and Local Services,Environmental Services,031221,North Pennines - Bowlees,Supplies and Services,324117,Provisions E324,09-Feb-2020,000008959892217,LIDL GB CONSETT,5411,Catering costs - provisions,26.35,0.00,26.35
Regeneration and Local Services,Development and Housing,030771,Durham Advance Flexible Fund,Transport,235057,Public Transport,09-Feb-2020,000008959892289,GO NORTH EAST LIMITED,4131,Staff travelling,25.00,0.00,25.00
Regeneration and Local Services,Development and Housing,030771,Durham Advance Flexible Fund,Transport,235057,Public Transport,09-Feb-2020,000008959892295,GO NORTH EAST LIMITED,4131,Staff travelling,25.00,0.00,25.00
Regeneration and Local Services,Culture Sport and Tourism,054820,Gala Theatre - Overheads,Supplies and Services,328041,Clothing uniforms and laundry E328,09-Feb-2020,000008959892547,B & M RETAIL,5310,Clothing uniforms and laundry,47.98,0.00,47.98
Children and Young Peoples Services,Head of Early Help Inclusion & Vulnerable Children.,088103,Consett & Stanley 0-19 Community Family Hub,Supplies and Services,304403,Equipment and Materials,09-Feb-2020,000008959892779,AMZNMktplace,5999,Other consumables,42.98,7.16,35.82
Children and Young Peoples Services,Head of Early Help Inclusion & Vulnerable Children.,088103,Consett & Stanley 0-19 Community Family Hub,Supplies and Services,304403,Equipment and Materials,09-Feb-2020,000008959892783,AMZNMktplace,5999,Other consumables,62.93,10.49,52.44
Children and Young Peoples Services,Head of Childrens Social Care,085341,High Etherley Satelite Home,Supplies and Services,304403,Equipment and Materials,09-Feb-2020,000008959892835,C.E.X LIMITED,5065,Other consumables,5.00,0.00,5.00
Children and Young Peoples Services,Head of Childrens Social Care,085341,High Etherley Satelite Home,Supplies and Services,324117,Provisions E324,09-Feb-2020,000008959892841,SHAKEAHOLIC,5499,Catering costs - provisions,8.08,0.00,8.08
Children and Young Peoples Services,Head of Childrens Social Care,085341,High Etherley Satelite Home,Supplies and Services,304999,Equipment and Materials,09-Feb-2020,000008959892843,BOOTS/5002,5912,Misc equipment tools and materials,6.50,0.00,6.50
Children and Young Peoples Services,Head of Childrens Social Care,085341,High Etherley Satelite Home,Supplies and Services,304403,Equipment and Materials,09-Feb-2020,000008959892847,CARD FACTORY,5947,Other consumables,5.58,0.00,5.58
Children and Young Peoples Services,Head of Childrens Social Care,085341,High Etherley Satelite Home,Supplies and Services,328041,Clothing uniforms and laundry E328,09-Feb-2020,000008959892853,ARGOS LTD,5310,Clothing uniforms and laundry,6.99,0.00,6.99
Children and Young Peoples Services,Head of Early Help Inclusion & Vulnerable Children.,085957,Secure Management,Supplies and Services,324117,Provisions E324,09-Feb-2020,000008959893079,TESCO STORES 6329,5411,Catering costs - provisions,114.35,0.00,114.35
Children and Young Peoples Services,Head of Childrens Social Care,085334,West Rainton Satelite Home,Supplies and Services,328041,Clothing uniforms and laundry E328,09-Feb-2020,000008959893189,B & M RETAIL,5310,Clothing uniforms and laundry,6.96,0.00,6.96
Children and Young Peoples Services,Head of Childrens Social Care,085334,West Rainton Satelite Home,Supplies and Services,328041,Clothing uniforms and laundry E328,09-Feb-2020,000008959893191,B & M RETAIL,5310,Clothing uniforms and laundry,1.17,0.00,1.17
Children and Young Peoples Services,Head of Childrens Social Care,085342,9 Cedar Drive Aycliffe,Supplies and Services,324117,Provisions E324,09-Feb-2020,000008959893217,TESCO STORES 2916,5411,Catering costs - provisions,24.15,0.00,24.15
Dedicated Schools Grant BG0015,DSG High Needs Block,079040,SENSS-HQ,Supplies and Services,384999,Miscellaneous Expenses,09-Feb-2020,000008959893269,Amazon.co.uk DL7QX26K5,5969,Other expenses,15.00,2.50,12.50
Children and Young Peoples Services,Head of Childrens Social Care,085352,Tow Law CU,Employees,040149,Recruitment Instruction and Training,09-Feb-2020,000008959893393,NORTHUMBERLAND WILDLIF,8398,Training-all costs,2.80,0.00,2.80
Children and Young Peoples Services,Head of Childrens Social Care,085352,Tow Law CU,Supplies and Services,324117,Provisions E324,09-Feb-2020,000008959893397,PPOINT_ B&R NEWS & OFF,5411,Catering costs - provisions,3.53,0.00,3.53
Children and Young Peoples Services,Head of Childrens Social Care,085352,Tow Law CU,Supplies and Services,332047,Printing Stationery and Gen Off Exps,09-Feb-2020,000008959893403,Vue Cinemas,7832,Stationery,9.98,0.00,9.98
Children and Young Peoples Services,Head of Childrens Social Care,085352,Tow Law CU,Supplies and Services,348037,Subsistence E348,09-Feb-2020,000008959893407,JACKSONS WHARF,5813,Subsistence,22.50,0.00,22.50
Adult and Health Services,Head of Adults,055309,Peterlee Pathways,Supplies and Services,384999,Miscellaneous Expenses,09-Feb-2020,000008959893857,SMYTHS TOYS DURHAM,5945,Other expenses,9.00,0.00,9.00
Adult and Health Services,Head of Adults,055309,Peterlee Pathways,Supplies and Services,384999,Miscellaneous Expenses,09-Feb-2020,000008959893863,HOBBYCRAFT,5970,Other expenses,14.00,2.33,11.67
Adult and Health Services,Head of Adults,055309,Peterlee Pathways,Supplies and Services,324117,Provisions E324,09-Feb-2020,000008959893869,LIDL GB DURHAM,5411,Catering costs - provisions,4.98,0.83,4.15
Adult and Health Services,Head of Adults,055309,Peterlee Pathways,Supplies and Services,304259,Equipment and Materials,09-Feb-2020,000008959893875,HALFORDS 0796,5940,Equipment-purchase and rental,10.00,1.67,8.33
Adult and Health Services,Head of Adults,055309,Peterlee Pathways,Supplies and Services,328041,Clothing uniforms and laundry E328,09-Feb-2020,000008959893881,B&M RETAIL,5310,Clothing uniforms and laundry,7.98,0.00,7.98
Children and Young Peoples Services,Head of Childrens Social Care,085341,High Etherley Satelite Home,Supplies and Services,328041,Clothing uniforms and laundry E328,09-Feb-2020,000008968484259,PRIMARK 670 GATESHEAD,5651,Clothing uniforms and laundry,3.00,0.00,3.00
Regeneration and Local Services,Business Durham CL0850,030689,Inward Investment and Aftercare,Supplies and Services,304999,Equipment and Materials,10-Feb-2020,000008959891219,MAILCHIMP MONTHLY,5968,Misc equipment tools and materials,1.94,0.00,1.94
Resources BK0010,Digital and Customer Services,070110,School Services - Man Info System (MIS) Support Team,Supplies and Services,342053,Computers and Communications,10-Feb-2020,000008959891373,WPMU DEV INCSUBFEE.COM,7372,Computer software,0.41,0.00,0.41
Children and Young Peoples Services,Head of Childrens Social Care,085331,New Lea Childrens Home,Supplies and Services,304403,Equipment and Materials,10-Feb-2020,000008959892615,AMZNMktplace,5999,Other consumables,59.74,0.00,59.74
Children and Young Peoples Services,Head of Education and Skills,071801,Selby Cottage Childcare Centre,Supplies and Services,324117,Provisions E324,10-Feb-2020,000008968482703,WILKO RETAIL LIMITED,5399,Catering costs - provisions,19.85,0.00,19.85
Children and Young Peoples Services,Head of Education and Skills,054640,Durham Learning Resources 054640,Supplies and Services,304403,Equipment and Materials,10-Feb-2020,000008968482757,AMZNMktplace,5999,Other consumables,39.90,6.65,33.25
Children and Young Peoples Services,Head of Education and Skills,054640,Durham Learning Resources 054640,Supplies and Services,304403,Equipment and Materials,10-Feb-2020,000008968482765,WELSH GIFTS,5947,Other consumables,47.35,0.00,47.35
Children and Young Peoples Services,Head of Education and Skills,070264,EDC Premises,Supplies and Services,324117,Provisions E324,10-Feb-2020,000008968482805,FREEMAN CATERING BUTCH,5422,Catering costs - provisions,23.00,0.00,23.00
Adult and Health Services,Head of Adults,055302,Durham Pathways,Supplies and Services,304403,Equipment and Materials,10-Feb-2020,000008968482875,AMZNMktplace,5999,Other consumables,26.97,4.50,22.47
Dedicated Schools Grant BG0015,DSG High Needs Block,079050,SENSS-Sensory,Supplies and Services,328041,Clothing uniforms and laundry E328,10-Feb-2020,000008968482909,B & M RETAIL,5310,Clothing uniforms and laundry,11.95,0.00,11.95
Children and Young Peoples Services,Head of Childrens Social Care,085341,High Etherley Satelite Home,Supplies and Services,384999,Miscellaneous Expenses,10-Feb-2020,000008968482987,MUSKAAN BROW BAR,7230,Other expenses,35.00,0.00,35.00
Children and Young Peoples Services,Head of Childrens Social Care,085341,High Etherley Satelite Home,Supplies and Services,324117,Provisions E324,10-Feb-2020,000008968482995,TESCO STORES 6329,5411,Catering costs - provisions,22.60,0.00,22.60
Regeneration and Local Services,Development and Housing,030776,LINKCD Flexible Fund,Supplies and Services,304259,Equipment and Materials,10-Feb-2020,000008968483117,SPORTSDIRECT 145,5941,Equipment-purchase and rental,42.98,0.00,42.98
Children and Young Peoples Services,Head of Childrens Social Care,085332,Middlestone Moor CU,Employees,040149,Recruitment Instruction and Training,10-Feb-2020,000008968483297,CITIZENCARD,8699,Training-all costs,30.00,0.00,30.00
Regeneration and Local Services,Culture Sport and Tourism,054812,Gala Theatre - Catering etc,Premises,145009,Cleaning and Domestic Supplies,10-Feb-2020,000008968483317,ALLIANCE DISPOSABLES L,2842,Other cleaning and domestic costs,8.78,1.46,7.32
Regeneration and Local Services,Development and Housing,030772,CLLD South,Supplies and Services,304259,Equipment and Materials,10-Feb-2020,000008968483377,NEWCASTLE CITY COUNCIL,9399,Equipment-purchase and rental,24.00,0.00,24.00
Regeneration and Local Services,Development and Housing,031576,B& B - Temp Accom,Supplies and Services,352001,Conference Expenses,10-Feb-2020,000008968483477,HOTEL 52,7011,Conferencesseminars fees etc,106.99,0.00,106.99
Regeneration and Local Services,Development and Housing,031576,B& B - Temp Accom,Supplies and Services,352001,Conference Expenses,10-Feb-2020,000008968483487,HOTEL 52,7011,Conferencesseminars fees etc,66.99,0.00,66.99
Children and Young Peoples Services,Head of Education and Skills,071732,Dean Bank Childcare,Supplies and Services,324117,Provisions E324,10-Feb-2020,000008968483557,ASDA GROCERIES ONLINE,5411,Catering costs - provisions,50.25,0.00,50.25
Children and Young Peoples Services,Head of Education and Skills,071732,Dean Bank Childcare,Supplies and Services,324117,Provisions E324,10-Feb-2020,000008968483565,ASDA GROCERIES ONLINE,5411,Catering costs - provisions,41.95,0.00,41.95
Children and Young Peoples Services,Head of Education and Skills,071732,Dean Bank Childcare,Supplies and Services,328041,Clothing uniforms and laundry E328,10-Feb-2020,000008968483569,B & M RETAIL,5310,Clothing uniforms and laundry,70.56,0.00,70.56
Children and Young Peoples Services,Head of Education and Skills,071732,Dean Bank Childcare,Supplies and Services,324117,Provisions E324,10-Feb-2020,000008968483579,ASDA GROCERIES ONLINE,5411,Catering costs - provisions,-0.25,0.00,-0.25
Children and Young Peoples Services,Head of Education and Skills,071732,Dean Bank Childcare,Supplies and Services,324117,Provisions E324,10-Feb-2020,000008968483585,ASDA GROCERIES ONLINE,5411,Catering costs - provisions,-1.00,0.00,-1.00
Regeneration and Local Services,Development and Housing,030771,Durham Advance Flexible Fund,Transport,235057,Public Transport,10-Feb-2020,000008968483703,ARRIVA NORTH EAST,4131,Staff travelling,4.50,0.00,4.50
Regeneration and Local Services,Business Durham CL0850,030674,Business Services General,Third Party Payments,430100,Rendered by Private Contractors,10-Feb-2020,000008968483727,BLS monday.com,7399,Payments to sub-contractors,148.80,0.00,148.80
Transformation and Partnerships,Business Support,052986,CYPS - Locality and Operational Support,Supplies and Services,304403,Equipment and Materials,10-Feb-2020,000008968483739,AMZNMktplace,5999,Other consumables,55.97,0.00,55.97
Transformation and Partnerships,Business Support,052986,CYPS - Locality and Operational Support,Supplies and Services,304403,Equipment and Materials,10-Feb-2020,000008968483745,AMZNMktplace,5999,Other consumables,172.18,0.00,172.18
Transformation and Partnerships,Business Support,052986,CYPS - Locality and Operational Support,Supplies and Services,304403,Equipment and Materials,10-Feb-2020,000008968483755,AMZNMktplace,5999,Other consumables,29.99,0.00,29.99
Regeneration and Local Services,Environmental Services,031200,North Pennines Core,Supplies and Services,312009,Newspapers books and periodicals E312,10-Feb-2020,000008968483765,WATERSTONES,5942,Newspapers books and periodicals,100.00,0.00,100.00
Regeneration and Local Services,Environmental Services,026591,C&G - Hardwick Park,Supplies and Services,304403,Equipment and Materials,10-Feb-2020,000008968483773,AMZNMKTPLACE AMAZON.CO,5999,Other consumables,38.40,6.40,32.00
Regeneration and Local Services,Environmental Services,026591,C&G - Hardwick Park,Supplies and Services,384999,Miscellaneous Expenses,10-Feb-2020,000008968483781,WWW.ANGELWHOLESALE.CO.,5970,Other expenses,120.12,20.02,100.10
Regeneration and Local Services,Environmental Services,011060,C&G - Hardwick Park Catering,Supplies and Services,324117,Provisions E324,10-Feb-2020,000008968483821,FREEMAN CATERING BUTCH,5422,Catering costs - provisions,22.15,0.00,22.15
Regeneration and Local Services,Environmental Services,011060,C&G - Hardwick Park Catering,Supplies and Services,324117,Provisions E324,10-Feb-2020,000008968483829,FREEMAN CATERING BUTCH,5422,Catering costs - provisions,28.81,0.00,28.81
Regeneration and Local Services,Environmental Services,011060,C&G - Hardwick Park Catering,Supplies and Services,324117,Provisions E324,10-Feb-2020,000008968483835,FREEMAN CATERING BUTCH,5422,Catering costs - provisions,47.76,0.00,47.76
Regeneration and Local Services,Corporate Property and Land,021234,Catering - Locomotion,Premises,145009,Cleaning and Domestic Supplies,10-Feb-2020,000008968483915,ALLIANCE DISPOSABLES L,2842,Other cleaning and domestic costs,63.23,10.54,52.69
Children and Young Peoples Services,Head of Childrens Social Care,085331,New Lea Childrens Home,Supplies and Services,328041,Clothing uniforms and laundry E328,10-Feb-2020,000008968483965,ARGOS LTD,5310,Clothing uniforms and laundry,118.00,0.00,118.00
Children and Young Peoples Services,Head of Childrens Social Care,085331,New Lea Childrens Home,Supplies and Services,328041,Clothing uniforms and laundry E328,10-Feb-2020,000008968483969,POUNDLAND LTD 1597,5310,Clothing uniforms and laundry,28.15,4.69,23.46
Children and Young Peoples Services,Head of Childrens Social Care,085331,New Lea Childrens Home,Supplies and Services,304259,Equipment and Materials,10-Feb-2020,000008968483977,AO RETAIL LIMITED,5722,Equipment-purchase and rental,269.00,0.00,269.00
Regeneration and Local Services,Corporate Property and Land,010525,Catering - Green Lane,Supplies and Services,324117,Provisions E324,10-Feb-2020,000008968484061,FREEMAN CATERING BUTCH,5422,Catering costs - provisions,59.30,0.00,59.30
Transformation and Partnerships,Business Support,052986,CYPS - Locality and Operational Support,Supplies and Services,324117,Provisions E324,10-Feb-2020,000008968484145,SAINSBURYS SACAT 2199,5411,Catering costs - provisions,6.95,0.00,6.95
Transformation and Partnerships,Business Support,052986,CYPS - Locality and Operational Support,Supplies and Services,348037,Subsistence E348,10-Feb-2020,000008968484155,SumUp The Hut Bishop,5814,Subsistence,69.30,0.00,69.30
Children and Young Peoples Services,Head of Early Help Inclusion & Vulnerable Children.,071443,Stanley One Point Hub,Supplies and Services,304403,Equipment and Materials,10-Feb-2020,000008968484163,AMZNMktplace,5999,Other consumables,69.10,0.00,69.10
Children and Young Peoples Services,Head of Early Help Inclusion & Vulnerable Children.,088103,Consett & Stanley 0-19 Community Family Hub,Supplies and Services,304403,Equipment and Materials,10-Feb-2020,000008968484169,AMZNMktplace,5999,Other consumables,79.95,13.33,66.62
Children and Young Peoples Services,Head of Early Help Inclusion & Vulnerable Children.,088103,Consett & Stanley 0-19 Community Family Hub,Supplies and Services,304403,Equipment and Materials,10-Feb-2020,000008968484175,AMZNMktplace,5999,Other consumables,94.95,15.83,79.12
Children and Young Peoples Services,Head of Education and Skills,071802,Louisa Cent Nursery,Supplies and Services,304999,Equipment and Materials,10-Feb-2020,000008968484347,HOME BARGAINS,5251,Misc equipment tools and materials,61.91,0.00,61.91
Regeneration and Local Services,Development and Housing,030771,Durham Advance Flexible Fund,Transport,235057,Public Transport,10-Feb-2020,000008968484355,WALKERGATE CAR PAR,7523,Staff travelling,3.00,0.00,3.00
Children and Young Peoples Services,Head of Childrens Social Care,085333,Coxhoe Satelite Home,Supplies and Services,324117,Provisions E324,10-Feb-2020,000008968484359,ASDA SUPERSTORE 4987,5411,Catering costs - provisions,154.68,0.00,154.68
Resources BK0010,Resources Management CK0450,069000,Resources Management 069000,Supplies and Services,324117,Provisions E324,10-Feb-2020,000008968484371,SAINSBURYS LOC4937,5411,Catering costs - provisions,3.45,0.00,3.45
Regeneration and Local Services,Environmental Services,010367,C&G - South Grounds Maintenance,Supplies and Services,304221,Equipment and Materials,10-Feb-2020,000008968484405,HOMEBASE LTD 822,5200,Direct materials,81.00,0.00,81.00
Adult and Health Services,Head of Adults,055301,Stanley Pathways,Supplies and Services,324117,Provisions E324,10-Feb-2020,000008968484423,ASDA SUPERSTORE,5411,Catering costs - provisions,3.25,0.00,3.25
Children and Young Peoples Services,Head of Childrens Social Care,085342,9 Cedar Drive Aycliffe,Transport,235057,Public Transport,10-Feb-2020,000008968484435,ARRIVA NORTH EAST,4131,Staff travelling,100.00,0.00,100.00
Children and Young Peoples Services,Head of Childrens Social Care,085342,9 Cedar Drive Aycliffe,Supplies and Services,324117,Provisions E324,10-Feb-2020,000008968484443,TESCO STORES 2916,5411,Catering costs - provisions,16.00,0.00,16.00
Children and Young Peoples Services,Head of Childrens Social Care,085352,Tow Law CU,Supplies and Services,324117,Provisions E324,10-Feb-2020,000008968484541,CO-OP GROUP 010989,5411,Catering costs - provisions,22.03,0.00,22.03
Children and Young Peoples Services,Head of Early Help Inclusion & Vulnerable Children.,085957,Secure Management,Supplies and Services,324117,Provisions E324,10-Feb-2020,000008968484549,TESCO STORES 6329,5411,Catering costs - provisions,135.58,0.00,135.58
Regeneration and Local Services,Corporate Property and Land,030691,Catering - Durham Dales Centre,Supplies and Services,324117,Provisions E324,10-Feb-2020,000008968484583,FREEMAN CATERING BUTCH,5422,Catering costs - provisions,26.64,0.00,26.64
Regeneration and Local Services,Corporate Property and Land,030691,Catering - Durham Dales Centre,Supplies and Services,324117,Provisions E324,10-Feb-2020,000008968484591,FREEMAN CATERING BUTCH,5422,Catering costs - provisions,67.72,0.00,67.72
Regeneration and Local Services,Environmental Services,010367,C&G - South Grounds Maintenance,Supplies and Services,304221,Equipment and Materials,10-Feb-2020,000008968484623,SCREWFIX DIRECT,5200,Direct materials,35.94,0.00,35.94
Resources BK0010,Digital and Customer Services,065335,School Services - Implementations,Supplies and Services,304639,Equipment and Materials,10-Feb-2020,000008968484775,REPLACEBASE,5732,Technicians-supplies,8.33,1.39,6.94
Children and Young Peoples Services,Head of Childrens Social Care,085342,9 Cedar Drive Aycliffe,Supplies and Services,304259,Equipment and Materials,10-Feb-2020,000008968484805,DVLA DRIVER ONLINE,9399,Equipment-purchase and rental,34.00,0.00,34.00
Regeneration and Local Services,Development and Housing,031500,Housing Solutions - Core Team,Supplies and Services,304259,Equipment and Materials,10-Feb-2020,000008968484865,EAST DURHAM HOMES,9399,Equipment-purchase and rental,194.54,0.00,194.54
Regeneration and Local Services,Development and Housing,031500,Housing Solutions - Core Team,Supplies and Services,352001,Conference Expenses,10-Feb-2020,000008968484873,GRAINGER HOTEL,7011,Conferencesseminars fees etc,150.00,0.00,150.00
Regeneration and Local Services,Corporate Property and Land,021324,Catering - Meadowfield,Supplies and Services,324117,Provisions E324,10-Feb-2020,000008968484883,FREEMAN CATERING BUTCH,5422,Catering costs - provisions,53.41,0.00,53.41
Regeneration and Local Services,Corporate Property and Land,021324,Catering - Meadowfield,Supplies and Services,324117,Provisions E324,10-Feb-2020,000008968484893,FREEMAN CATERING BUTCH,5422,Catering costs - provisions,58.57,0.00,58.57
Regeneration and Local Services,Development and Housing,031576,B& B - Temp Accom,Supplies and Services,352001,Conference Expenses,10-Feb-2020,000008968484915,HOTEL 52,7011,Conferencesseminars fees etc,66.99,0.00,66.99
Regeneration and Local Services,Environmental Services,010301,C&G - North Grounds Maintenance,Supplies and Services,304221,Equipment and Materials,10-Feb-2020,000008968484927,BREWERS,5211,Direct materials,156.53,0.00,156.53
Children and Young Peoples Services,Head of Early Help Inclusion & Vulnerable Children.,085801,CDYJS - Support,Supplies and Services,324117,Provisions E324,10-Feb-2020,000008968484937,WILKO.COM,5399,Catering costs - provisions,30.00,0.00,30.00
Children and Young Peoples Services,Head of Childrens Social Care,085352,Tow Law CU,Transport,235057,Public Transport,10-Feb-2020,000008968485003,HOLIDAY PAYMENT VRUK,4722,Staff travelling,465.00,0.00,465.00
Children and Young Peoples Services,Head of Education and Skills,071802,Louisa Cent Nursery,Supplies and Services,324117,Provisions E324,10-Feb-2020,000008968485015,ASDA SUPERSTORE,5411,Catering costs - provisions,8.00,0.00,8.00
Children and Young Peoples Services,Head of Education and Skills,071802,Louisa Cent Nursery,Supplies and Services,324117,Provisions E324,10-Feb-2020,000008968485027,ALDI STORES,5411,Catering costs - provisions,21.96,3.66,18.30
Children and Young Peoples Services,Head of Education and Skills,071802,Louisa Cent Nursery,Supplies and Services,324117,Provisions E324,10-Feb-2020,000008968485027 - 1,ALDI STORES,5411,Catering costs - provisions,4.25,,4.25
Regeneration and Local Services,Development and Housing,031500,Housing Solutions - Core Team,Supplies and Services,352001,Conference Expenses,10-Feb-2020,000008968485109,HOTEL 52,7011,Conferencesseminars fees etc,143.98,0.00,143.98
Regeneration and Local Services,Development and Housing,030776,LINKCD Flexible Fund,Supplies and Services,324117,Provisions E324,10-Feb-2020,000008968485183,SAINSBURYS 0776,5411,Catering costs - provisions,3.65,0.00,3.65
Regeneration and Local Services,Development and Housing,030771,Durham Advance Flexible Fund,Transport,235057,Public Transport,10-Feb-2020,000008968485299,GO NORTH EAST LIMITED,4131,Staff travelling,7.00,0.00,7.00
Regeneration and Local Services,Business Durham CL0850,030694,Plexus 2,Supplies and Services,304403,Equipment and Materials,10-Feb-2020,000008968485305,AMZNMktplace,5999,Other consumables,184.98,0.00,184.98
Regeneration and Local Services,Development and Housing,030770,Durham Advance,Supplies and Services,324117,Provisions E324,10-Feb-2020,000008968485307,PPOINT_ NEWS & BOOZE 1,5411,Catering costs - provisions,10.00,0.00,10.00
Regeneration and Local Services,Development and Housing,030770,Durham Advance,Transport,235057,Public Transport,10-Feb-2020,000008968485311,GO NORTH EAST LIMITED,4131,Staff travelling,5.30,0.00,5.30
Children and Young Peoples Services,Head of Education and Skills,070264,EDC Premises,Supplies and Services,324117,Provisions E324,10-Feb-2020,000008972712459,BATLEYS PERTH,5300,Catering costs - provisions,-5.72,0.00,-5.72
Regeneration and Local Services,Culture Sport and Tourism,054812,Gala Theatre - Catering etc,Supplies and Services,324117,Provisions E324,10-Feb-2020,000008972712747,BATLEYS PERTH,5300,Catering costs - provisions,110.46,18.41,92.05
Regeneration and Local Services,Culture Sport and Tourism,054812,Gala Theatre - Catering etc,Supplies and Services,324117,Provisions E324,10-Feb-2020,000008972712747 - 1,BATLEYS PERTH,5300,Catering costs - provisions,40.37,,40.37
Regeneration and Local Services,Environmental Services,011060,C&G - Hardwick Park Catering,Supplies and Services,324117,Provisions E324,10-Feb-2020,000008972713321,BATLEYS PERTH,5300,Catering costs - provisions,-187.06,-4.26,-182.80
Regeneration and Local Services,Corporate Property and Land,030691,Catering - Durham Dales Centre,Supplies and Services,324117,Provisions E324,10-Feb-2020,000008972713763,BATLEYS PERTH,5300,Catering costs - provisions,49.20,8.20,41.00
Regeneration and Local Services,Corporate Property and Land,030691,Catering - Durham Dales Centre,Supplies and Services,324117,Provisions E324,10-Feb-2020,000008972713763 - 1,BATLEYS PERTH,5300,Catering costs - provisions,110.67,,110.67
Regeneration and Local Services,Corporate Property and Land,021234,Catering - Locomotion,Supplies and Services,324117,Provisions E324,11-Feb-2020,000007051677110,BATLEYS PERTH,5300,Catering costs - provisions,275.22,45.87,229.35
Regeneration and Local Services,Corporate Property and Land,021234,Catering - Locomotion,Supplies and Services,324117,Provisions E324,11-Feb-2020,000007051677110 - 1,BATLEYS PERTH,5300,Catering costs - provisions,42.63,,42.63
Regeneration and Local Services,Corporate Property and Land,021324,Catering - Meadowfield,Supplies and Services,324117,Provisions E324,11-Feb-2020,000007051678396,BATLEYS PERTH,5300,Catering costs - provisions,139.26,23.21,116.05
Regeneration and Local Services,Corporate Property and Land,021324,Catering - Meadowfield,Supplies and Services,324117,Provisions E324,11-Feb-2020,000007051678396 - 1,BATLEYS PERTH,5300,Catering costs - provisions,83.58,,83.58
Children and Young Peoples Services,Head of Childrens Social Care,085341,High Etherley Satelite Home,Supplies and Services,324117,Provisions E324,11-Feb-2020,000008972712341,ONE STOP 2969,5411,Catering costs - provisions,6.00,0.00,6.00
Children and Young Peoples Services,Head of Education and Skills,071801,Selby Cottage Childcare Centre,Supplies and Services,384999,Miscellaneous Expenses,11-Feb-2020,000008972712363,Amazon.co.uk SE6BD2RD5,5969,Other expenses,9.99,1.67,8.32
Children and Young Peoples Services,Head of Education and Skills,054640,Durham Learning Resources 054640,Supplies and Services,304403,Equipment and Materials,11-Feb-2020,000008972712407,AMZNMKTPLACE AMAZON.CO,5999,Other consumables,3.99,0.67,3.32
Children and Young Peoples Services,Head of Education and Skills,054640,Durham Learning Resources 054640,Supplies and Services,304403,Equipment and Materials,11-Feb-2020,000008972712417,SP NML TRADING,5734,Other consumables,59.00,9.83,49.17
Children and Young Peoples Services,Head of Education and Skills,054640,Durham Learning Resources 054640,Supplies and Services,304403,Equipment and Materials,11-Feb-2020,000008972712425,AMZNMktplace,5999,Other consumables,57.30,9.55,47.75
Children and Young Peoples Services,Head of Education and Skills,054640,Durham Learning Resources 054640,Supplies and Services,304403,Equipment and Materials,11-Feb-2020,000008972712425 - 1,AMZNMktplace,5999,Other consumables,0.05,,0.05
Children and Young Peoples Services,Head of Education and Skills,054640,Durham Learning Resources 054640,Supplies and Services,304999,Equipment and Materials,11-Feb-2020,000008972712431,WWW.BRITISHMUSEUM.ORG,7991,Misc equipment tools and materials,54.44,0.00,54.44
Transformation and Partnerships,Business Support,069010,Administration 069010,Transport,235057,Public Transport,11-Feb-2020,000008972712441,Oyster Online,4112,Staff travelling,50.00,0.00,50.00
Transformation and Partnerships,Business Support,069010,Administration 069010,Transport,235057,Public Transport,11-Feb-2020,000008972712449,Oyster Online,4112,Staff travelling,50.00,0.00,50.00
Transformation and Partnerships,Business Support,052986,CYPS - Locality and Operational Support,Supplies and Services,328041,Clothing uniforms and laundry E328,11-Feb-2020,000008972712639,POUNDLAND LTD 1554,5310,Clothing uniforms and laundry,6.05,0.00,6.05
Regeneration and Local Services,Corporate Property and Land,021242,Catering - County Hall,Premises,145009,Cleaning and Domestic Supplies,11-Feb-2020,000008972712709,ALLIANCE DISPOSABLES L,2842,Other cleaning and domestic costs,133.70,22.28,111.42
Children and Young Peoples Services,Head of Childrens Social Care,085334,West Rainton Satelite Home,Supplies and Services,324117,Provisions E324,11-Feb-2020,000008972712879,ASDA STORES LTD 4313,5411,Catering costs - provisions,55.00,0.00,55.00
Transformation and Partnerships,Business Support,010832,Business Support 010832,Transport,215013,Running Costs of Vehicles,11-Feb-2020,000008972712891,DVLA VEHICLE TAX,9311,Vehicle Excise Duty (VED),262.50,0.00,262.50
Transformation and Partnerships,Business Support,010832,Business Support 010832,Transport,215013,Running Costs of Vehicles,11-Feb-2020,000008972712899,DVLA VEHICLE TAX,9311,Vehicle Excise Duty (VED),167.50,0.00,167.50
Transformation and Partnerships,Business Support,010832,Business Support 010832,Transport,215013,Running Costs of Vehicles,11-Feb-2020,000008972712907,DVLA VEHICLE TAX,9311,Vehicle Excise Duty (VED),167.50,0.00,167.50
Transformation and Partnerships,Business Support,010832,Business Support 010832,Transport,215013,Running Costs of Vehicles,11-Feb-2020,000008972712923,DVLA VEHICLE TAX,9311,Vehicle Excise Duty (VED),167.50,0.00,167.50
Transformation and Partnerships,Business Support,010832,Business Support 010832,Transport,215013,Running Costs of Vehicles,11-Feb-2020,000008972712931,DVLA VEHICLE TAX,9311,Vehicle Excise Duty (VED),262.50,0.00,262.50
Transformation and Partnerships,Business Support,010832,Business Support 010832,Transport,215013,Running Costs of Vehicles,11-Feb-2020,000008972712941,DVLA VEHICLE TAX,9311,Vehicle Excise Duty (VED),262.50,0.00,262.50
Transformation and Partnerships,Business Support,010832,Business Support 010832,Transport,215013,Running Costs of Vehicles,11-Feb-2020,000008972712947,DVLA VEHICLE TAX,9311,Vehicle Excise Duty (VED),262.50,0.00,262.50
Transformation and Partnerships,Business Support,010832,Business Support 010832,Transport,215013,Running Costs of Vehicles,11-Feb-2020,000008972712953,DVLA VEHICLE TAX,9311,Vehicle Excise Duty (VED),262.50,0.00,262.50
Transformation and Partnerships,Business Support,010832,Business Support 010832,Transport,215013,Running Costs of Vehicles,11-Feb-2020,000008972712961,DVLA VEHICLE TAX,9311,Vehicle Excise Duty (VED),167.50,0.00,167.50
Transformation and Partnerships,Business Support,010832,Business Support 010832,Transport,215013,Running Costs of Vehicles,11-Feb-2020,000008972712965,DVLA VEHICLE TAX,9311,Vehicle Excise Duty (VED),167.50,0.00,167.50
Transformation and Partnerships,Business Support,010832,Business Support 010832,Transport,215013,Running Costs of Vehicles,11-Feb-2020,000008972712971,DVLA VEHICLE TAX,9311,Vehicle Excise Duty (VED),262.50,0.00,262.50
Transformation and Partnerships,Business Support,010832,Business Support 010832,Transport,215013,Running Costs of Vehicles,11-Feb-2020,000008972712977,DVLA VEHICLE TAX,9311,Vehicle Excise Duty (VED),167.50,0.00,167.50
Transformation and Partnerships,Business Support,010832,Business Support 010832,Transport,215013,Running Costs of Vehicles,11-Feb-2020,000008972712985,DVLA VEHICLE TAX,9311,Vehicle Excise Duty (VED),262.50,0.00,262.50
Transformation and Partnerships,Business Support,010832,Business Support 010832,Transport,215013,Running Costs of Vehicles,11-Feb-2020,000008972712991,DVLA VEHICLE TAX,9311,Vehicle Excise Duty (VED),262.50,0.00,262.50
Transformation and Partnerships,Business Support,010832,Business Support 010832,Transport,215013,Running Costs of Vehicles,11-Feb-2020,000008972712999,DVLA VEHICLE TAX,9311,Vehicle Excise Duty (VED),237.50,0.00,237.50
Transformation and Partnerships,Business Support,010832,Business Support 010832,Transport,215013,Running Costs of Vehicles,11-Feb-2020,000008972713005,DVLA VEHICLE TAX,9311,Vehicle Excise Duty (VED),262.50,0.00,262.50
Transformation and Partnerships,Business Support,010832,Business Support 010832,Transport,215013,Running Costs of Vehicles,11-Feb-2020,000008972713013,DVLA VEHICLE TAX,9311,Vehicle Excise Duty (VED),167.50,0.00,167.50
Transformation and Partnerships,Business Support,010832,Business Support 010832,Transport,215013,Running Costs of Vehicles,11-Feb-2020,000008972713021,DVLA VEHICLE TAX,9311,Vehicle Excise Duty (VED),167.50,0.00,167.50
Transformation and Partnerships,Business Support,010832,Business Support 010832,Transport,215013,Running Costs of Vehicles,11-Feb-2020,000008972713027,DVLA VEHICLE TAX,9311,Vehicle Excise Duty (VED),167.50,0.00,167.50
Transformation and Partnerships,Business Support,010832,Business Support 010832,Transport,215013,Running Costs of Vehicles,11-Feb-2020,000008972713033,DVLA VEHICLE TAX,9311,Vehicle Excise Duty (VED),167.50,0.00,167.50
Transformation and Partnerships,Business Support,010832,Business Support 010832,Transport,215013,Running Costs of Vehicles,11-Feb-2020,000008972713037,DVLA VEHICLE TAX,9311,Vehicle Excise Duty (VED),167.50,0.00,167.50
Transformation and Partnerships,Business Support,010832,Business Support 010832,Transport,215013,Running Costs of Vehicles,11-Feb-2020,000008972713043,DVLA VEHICLE TAX,9311,Vehicle Excise Duty (VED),167.50,0.00,167.50
Transformation and Partnerships,Business Support,010832,Business Support 010832,Transport,215013,Running Costs of Vehicles,11-Feb-2020,000008972713051,DVLA VEHICLE TAX,9311,Vehicle Excise Duty (VED),167.50,0.00,167.50
Transformation and Partnerships,Business Support,010832,Business Support 010832,Transport,215013,Running Costs of Vehicles,11-Feb-2020,000008972713055,DVLA VEHICLE TAX,9311,Vehicle Excise Duty (VED),167.50,0.00,167.50
Transformation and Partnerships,Business Support,010832,Business Support 010832,Transport,215013,Running Costs of Vehicles,11-Feb-2020,000008972713063,DVLA VEHICLE TAX,9311,Vehicle Excise Duty (VED),12.50,0.00,12.50
Transformation and Partnerships,Business Support,010832,Business Support 010832,Transport,215013,Running Costs of Vehicles,11-Feb-2020,000008972713071,DVLA VEHICLE TAX,9311,Vehicle Excise Duty (VED),167.50,0.00,167.50
Transformation and Partnerships,Business Support,010832,Business Support 010832,Transport,215013,Running Costs of Vehicles,11-Feb-2020,000008972713077,DVLA VEHICLE TAX,9311,Vehicle Excise Duty (VED),167.50,0.00,167.50
Children and Young Peoples Services,Head of Education and Skills,071732,Dean Bank Childcare,Supplies and Services,324117,Provisions E324,11-Feb-2020,000008972713143,SAINSBURYS SACAT (2303,5411,Catering costs - provisions,32.37,0.00,32.37
Regeneration and Local Services,Development and Housing,030771,Durham Advance Flexible Fund,Transport,235057,Public Transport,11-Feb-2020,000008972713195,BISHOP AUCKLAND STN TO,4112,Staff travelling,8.60,0.00,8.60
Regeneration and Local Services,Development and Housing,030771,Durham Advance Flexible Fund,Supplies and Services,324117,Provisions E324,11-Feb-2020,000008972713213,TESCO STORES 2371,5411,Catering costs - provisions,5.80,0.00,5.80
Regeneration and Local Services,Development and Housing,030771,Durham Advance Flexible Fund,Supplies and Services,304403,Equipment and Materials,11-Feb-2020,000008972713221,PORTABLE APPLIANCE,5065,Other consumables,234.00,39.00,195.00
Children and Young Peoples Services,Head of Childrens Social Care,085334,West Rainton Satelite Home,Supplies and Services,324117,Provisions E324,11-Feb-2020,000008972713259,SAINSBURYS 0776,5411,Catering costs - provisions,48.85,0.00,48.85
Children and Young Peoples Services,Head of Childrens Social Care,085334,West Rainton Satelite Home,Supplies and Services,324117,Provisions E324,11-Feb-2020,000008972713267,SAINSBURYS 0776,5411,Catering costs - provisions,36.34,0.00,36.34
Children and Young Peoples Services,Head of Childrens Social Care,085334,West Rainton Satelite Home,Supplies and Services,324117,Provisions E324,11-Feb-2020,000008972713273,ASDA STORES LTD 4313,5411,Catering costs - provisions,77.65,0.00,77.65
Children and Young Peoples Services,Head of Childrens Social Care,085334,West Rainton Satelite Home,Supplies and Services,304259,Equipment and Materials,11-Feb-2020,000008972713281,SPORTSDIRECT 264,5941,Equipment-purchase and rental,92.01,0.00,92.01
Children and Young Peoples Services,Head of Early Help Inclusion & Vulnerable Children.,071445,Chester le Street One Point Hub,Supplies and Services,304259,Equipment and Materials,11-Feb-2020,000008972713293,NORTHUMBERLAND CC CRD,9399,Equipment-purchase and rental,11.00,0.00,11.00
Children and Young Peoples Services,Head of Early Help Inclusion & Vulnerable Children.,071445,Chester le Street One Point Hub,Supplies and Services,304259,Equipment and Materials,11-Feb-2020,000008972713295,SUNDERLAND CC,9399,Equipment-purchase and rental,22.00,0.00,22.00
Regeneration and Local Services,Environmental Services,011060,C&G - Hardwick Park Catering,Premises,145009,Cleaning and Domestic Supplies,11-Feb-2020,000008972713313,ALLIANCE DISPOSABLES L,2842,Other cleaning and domestic costs,214.13,35.69,178.44
Regeneration and Local Services,Corporate Property and Land,021234,Catering - Locomotion,Premises,145009,Cleaning and Domestic Supplies,11-Feb-2020,000008972713371,ALLIANCE DISPOSABLES L,2842,Other cleaning and domestic costs,25.13,4.19,20.94
Children and Young Peoples Services,Head of Early Help Inclusion & Vulnerable Children.,088101,CLS 0-19 Community Family Hub,Supplies and Services,324117,Provisions E324,11-Feb-2020,000008972713379,SAINSBURYS 0776,5411,Catering costs - provisions,18.63,0.00,18.63
Children and Young Peoples Services,Head of Early Help Inclusion & Vulnerable Children.,088101,CLS 0-19 Community Family Hub,Supplies and Services,324117,Provisions E324,11-Feb-2020,000008972713385,ASDA SUPERSTORE 4987,5411,Catering costs - provisions,8.90,0.00,8.90
Regeneration and Local Services,Development and Housing,030771,Durham Advance Flexible Fund,Employees,040149,Recruitment Instruction and Training,11-Feb-2020,000008972713439,THE BLUE LAMP TRUS-DOM,8398,Training-all costs,87.00,0.00,87.00
Children and Young Peoples Services,Head of Childrens Social Care,085551,Short Break Services-Park Hse Sher,Supplies and Services,304999,Equipment and Materials,11-Feb-2020,000008972713445,HOME BARGAINS,5251,Misc equipment tools and materials,7.68,1.28,6.40
Children and Young Peoples Services,Head of Childrens Social Care,085551,Short Break Services-Park Hse Sher,Supplies and Services,304999,Equipment and Materials,11-Feb-2020,000008972713445 - 1,HOME BARGAINS,5251,Misc equipment tools and materials,17.23,,17.23
Children and Young Peoples Services,Head of Childrens Social Care,085551,Short Break Services-Park Hse Sher,Supplies and Services,324117,Provisions E324,11-Feb-2020,000008972713451,ALDI 12 774,5411,Catering costs - provisions,99.61,0.00,99.61
Children and Young Peoples Services,Head of Childrens Social Care,085352,Tow Law CU,Supplies and Services,348037,Subsistence E348,11-Feb-2020,000008972713457,BEST KEBAB ONE,5814,Subsistence,21.00,0.00,21.00
Regeneration and Local Services,Development and Housing,030771,Durham Advance Flexible Fund,Transport,235057,Public Transport,11-Feb-2020,000008972713599,WALKERGATE CAR PAR,7523,Staff travelling,1.80,0.00,1.80
Regeneration and Local Services,Corporate Property and Land,020041,Bldg Serv - Business Development - General,Supplies and Services,304259,Equipment and Materials,11-Feb-2020,000008972713607,CITY OF NEWCASTLE INTE,9399,Equipment-purchase and rental,246.00,0.00,246.00
Adult and Health Services,Head of Adults,055301,Stanley Pathways,Supplies and Services,324117,Provisions E324,11-Feb-2020,000008972713621,ASDA STORES LTD 4313,5411,Catering costs - provisions,3.50,0.00,3.50
Adult and Health Services,Head of Adults,055301,Stanley Pathways,Supplies and Services,328041,Clothing uniforms and laundry E328,11-Feb-2020,000008972713625,THE WORKS,5310,Clothing uniforms and laundry,2.50,0.00,2.50
Children and Young Peoples Services,Head of Childrens Social Care,085352,Tow Law CU,Supplies and Services,324117,Provisions E324,11-Feb-2020,000008972713725,SAINSBURYS 0776,5411,Catering costs - provisions,129.40,0.00,129.40
Children and Young Peoples Services,Head of Childrens Social Care,085352,Tow Law CU,Supplies and Services,324117,Provisions E324,11-Feb-2020,000008972713727,SAINSBURYS 0776,5411,Catering costs - provisions,53.00,0.00,53.00
Children and Young Peoples Services,Head of Early Help Inclusion & Vulnerable Children.,085957,Secure Management,Supplies and Services,304403,Equipment and Materials,11-Feb-2020,000008972713737,AMZNMKTPLACE AMAZON.CO,5999,Other consumables,4.99,0.83,4.16
Children and Young Peoples Services,Head of Early Help Inclusion & Vulnerable Children.,085957,Secure Management,Supplies and Services,304403,Equipment and Materials,11-Feb-2020,000008972713745,AMZNMktplace,5999,Other consumables,9.09,0.00,9.09
Children and Young Peoples Services,Head of Early Help Inclusion & Vulnerable Children.,085957,Secure Management,Supplies and Services,304403,Equipment and Materials,11-Feb-2020,000008972713749,AMZNMktplace,5999,Other consumables,2.94,0.49,2.45
Regeneration and Local Services,Corporate Property and Land,030691,Catering - Durham Dales Centre,Premises,145009,Cleaning and Domestic Supplies,11-Feb-2020,000008972713769,ALLIANCE DISPOSABLES L,2842,Other cleaning and domestic costs,12.06,2.01,10.05
Regeneration and Local Services,Corporate Property and Land,030691,Catering - Durham Dales Centre,Premises,145009,Cleaning and Domestic Supplies,11-Feb-2020,000008972713769 - 1,ALLIANCE DISPOSABLES L,2842,Other cleaning and domestic costs,12.70,,12.70
Regeneration and Local Services,Environmental Services,031200,North Pennines Core,Transport,235057,Public Transport,11-Feb-2020,000008972713793,thetrainline.com,4112,Staff travelling,66.14,0.00,66.14
Regeneration and Local Services,Environmental Services,031200,North Pennines Core,Supplies and Services,352001,Conference Expenses,11-Feb-2020,000008972713799,WESTMINSTER FORUM PROJ,7392,Conferencesseminars fees etc,276.00,46.00,230.00
Regeneration and Local Services,Environmental Services,031200,North Pennines Core,Supplies and Services,352001,Conference Expenses,11-Feb-2020,000008972713803,GOODENOUGH CLUB,7011,Conferencesseminars fees etc,74.00,0.00,74.00
Regeneration and Local Services,Environmental Services,010301,C&G - North Grounds Maintenance,Supplies and Services,304403,Equipment and Materials,11-Feb-2020,000008972713829,BESCOL,5231,Other consumables,38.38,0.00,38.38
Resources BK0010,Digital and Customer Services,065335,School Services - Implementations,Supplies and Services,304639,Equipment and Materials,11-Feb-2020,000008972713849,AMZNMktplace,5999,Technicians-supplies,19.96,0.00,19.96
Children and Young Peoples Services,Head of Childrens Social Care,085332,Middlestone Moor CU,Supplies and Services,324117,Provisions E324,11-Feb-2020,000008972713917,ASDA SUPERSTORE 4987,5411,Catering costs - provisions,16.55,0.00,16.55
Regeneration and Local Services,Development and Housing,031576,B& B - Temp Accom,Supplies and Services,352001,Conference Expenses,11-Feb-2020,000008972713925,HOTEL 52,7011,Conferencesseminars fees etc,66.99,0.00,66.99
Regeneration and Local Services,Development and Housing,031576,B& B - Temp Accom,Supplies and Services,352001,Conference Expenses,11-Feb-2020,000008972713935,HOTEL 52,7011,Conferencesseminars fees etc,106.99,0.00,106.99
Regeneration and Local Services,Development and Housing,031576,B& B - Temp Accom,Supplies and Services,352001,Conference Expenses,11-Feb-2020,000008972713945,HOTEL 52,7011,Conferencesseminars fees etc,96.99,0.00,96.99
Children and Young Peoples Services,Head of Childrens Social Care,085352,Tow Law CU,Transport,235057,Public Transport,11-Feb-2020,000008972713973,HOLIDAY PAYMENT VRUK,4722,Staff travelling,50.00,0.00,50.00
Children and Young Peoples Services,Head of Childrens Social Care,085333,Coxhoe Satelite Home,Supplies and Services,324117,Provisions E324,11-Feb-2020,000008972713979,TESCO STORES 2916,5411,Catering costs - provisions,71.75,0.00,71.75
Children and Young Peoples Services,Head of Education and Skills,071802,Louisa Cent Nursery,Supplies and Services,324117,Provisions E324,11-Feb-2020,000008972713993,ASDA SUPERSTORE,5411,Catering costs - provisions,29.82,0.00,29.82
Children and Young Peoples Services,Head of Education and Skills,070169,Durham SSP,Supplies and Services,384199,Miscellaneous Expenses,11-Feb-2020,000008972714013,CUSTOM FACEBOOK FEED W,7372,Other hired and contracted services,19.00,0.00,19.00
Children and Young Peoples Services,Head of Childrens Social Care,085332,Middlestone Moor CU,Supplies and Services,348037,Subsistence E348,11-Feb-2020,000008972714105,BURGER KING,5814,Subsistence,6.99,0.00,6.99
Children and Young Peoples Services,Head of Childrens Social Care,085332,Middlestone Moor CU,Supplies and Services,348037,Subsistence E348,11-Feb-2020,000008972714111,BURGER KING,5814,Subsistence,17.47,0.00,17.47
Children and Young Peoples Services,Head of Early Help Inclusion & Vulnerable Children.,088107,Ferryhill & Newton Aycliffe 0-19 Community Family Hub,Supplies and Services,324117,Provisions E324,11-Feb-2020,000008972714117,ASDA GROCERIES ONLINE,5411,Catering costs - provisions,57.01,0.00,57.01
Children and Young Peoples Services,Head of Early Help Inclusion & Vulnerable Children.,088107,Ferryhill & Newton Aycliffe 0-19 Community Family Hub,Supplies and Services,324117,Provisions E324,11-Feb-2020,000008972714127,ASDA GROCERIES ONLINE,5411,Catering costs - provisions,-4.00,0.00,-4.00
Regeneration and Local Services,Environmental Services,031200,North Pennines Core,Employees,040149,Recruitment Instruction and Training,11-Feb-2020,000008972714137,VIRTUAL COLLEGE LIMITE,8299,Training-all costs,14.40,2.40,12.00
Regeneration and Local Services,Environmental Services,031200,North Pennines Core,Supplies and Services,384999,Miscellaneous Expenses,11-Feb-2020,000008972714143,WWW.HEATONCATERING,5046,Other expenses,67.28,11.21,56.07
Regeneration and Local Services,Environmental Services,010301,C&G - North Grounds Maintenance,Supplies and Services,304999,Equipment and Materials,11-Feb-2020,000008972714221,J G PAXTON SONS,5072,Misc equipment tools and materials,78.00,0.00,78.00
Transformation and Partnerships,Business Support,069010,Administration 069010,Third Party Payments,430100,Rendered by Private Contractors,11-Feb-2020,000008972714267,EB STRATEGIC COMMUNIC,7399,Payments to sub-contractors,15.00,0.00,15.00
Adult and Health Services,Head of Adults,055310,Positive Journeys (Tudhoe),Supplies and Services,324117,Provisions E324,11-Feb-2020,000008972714277,ASDA SUPERSTORE 4987,5411,Catering costs - provisions,18.18,0.00,18.18
Adult and Health Services,Head of Adults,055309,Peterlee Pathways,Supplies and Services,328041,Clothing uniforms and laundry E328,11-Feb-2020,000008972714299,POUNDSTRETCHER 396,5331,Clothing uniforms and laundry,1.80,0.00,1.80
Regeneration and Local Services,Development and Housing,030771,Durham Advance Flexible Fund,Transport,235057,Public Transport,11-Feb-2020,000008972714333,GO NORTH EAST LIMITED,4131,Staff travelling,21.00,0.00,21.00
Regeneration and Local Services,Environmental Services,010301,C&G - North Grounds Maintenance,Supplies and Services,304221,Equipment and Materials,11-Feb-2020,000008978003709,AZTEC CHEMICALS LTD,5169,Direct materials,471.60,78.60,393.00
Regeneration and Local Services,Environmental Services,010301,C&G - North Grounds Maintenance,Supplies and Services,304221,Equipment and Materials,11-Feb-2020,000008978003717,AZTEC CHEMICALS LTD,5169,Direct materials,478.80,79.80,399.00
Transformation and Partnerships,Business Support,052986,CYPS - Locality and Operational Support,Supplies and Services,342053,Computers and Communications,11-Feb-2020,000008983695911,HP INC UK LIMITED,5045,Computer software,25.80,4.30,21.50
Children and Young Peoples Services,Head of Early Help Inclusion & Vulnerable Children.,085957,Secure Management,Supplies and Services,304403,Equipment and Materials,12-Feb-2020,000008972713755,AMZNMktplace,5999,Other consumables,8.32,0.00,8.32
Children and Young Peoples Services,Head of Education and Skills,070169,Durham SSP,Supplies and Services,384199,Miscellaneous Expenses,12-Feb-2020,000008972714017,CUSTOM FACEBOOK FEED W,7372,Other hired and contracted services,0.52,0.00,0.52
Children and Young Peoples Services,Head of Education and Skills,071801,Selby Cottage Childcare Centre,Supplies and Services,384999,Miscellaneous Expenses,12-Feb-2020,000008978002861,Amazon.co.uk 483MZ1R35,5969,Other expenses,79.99,13.33,66.66
Children and Young Peoples Services,Head of Education and Skills,071801,Selby Cottage Childcare Centre,Supplies and Services,304403,Equipment and Materials,12-Feb-2020,000008978002865,AMZNMktplace,5999,Other consumables,96.79,16.13,80.66
Children and Young Peoples Services,Head of Education and Skills,071801,Selby Cottage Childcare Centre,Supplies and Services,304403,Equipment and Materials,12-Feb-2020,000008978002879,AMZNMktplace,5999,Other consumables,26.98,4.50,22.48
Children and Young Peoples Services,Head of Education and Skills,071801,Selby Cottage Childcare Centre,Supplies and Services,324117,Provisions E324,12-Feb-2020,000008978002883,TESCO STORES 2371,5411,Catering costs - provisions,51.03,0.00,51.03
Children and Young Peoples Services,Head of Education and Skills,071801,Selby Cottage Childcare Centre,Supplies and Services,304403,Equipment and Materials,12-Feb-2020,000008978002893,AMZNMktplace,5999,Other consumables,304.99,50.83,254.16
Children and Young Peoples Services,Head of Education and Skills,071801,Selby Cottage Childcare Centre,Supplies and Services,304999,Equipment and Materials,12-Feb-2020,000008978002897,HOME BARGAINS,5251,Misc equipment tools and materials,28.91,0.00,28.91
Children and Young Peoples Services,Head of Education and Skills,071801,Selby Cottage Childcare Centre,Supplies and Services,328041,Clothing uniforms and laundry E328,12-Feb-2020,000008978002905,The Range,5311,Clothing uniforms and laundry,124.41,0.00,124.41
Children and Young Peoples Services,Head of Education and Skills,054640,Durham Learning Resources 054640,Supplies and Services,384999,Miscellaneous Expenses,12-Feb-2020,000008978002921,Amazon.co.uk UJ8CR0D25,5969,Other expenses,54.36,0.00,54.36
Children and Young Peoples Services,Head of Education and Skills,054640,Durham Learning Resources 054640,Supplies and Services,304403,Equipment and Materials,12-Feb-2020,000008978002927,AMZNMktplace,5999,Other consumables,16.95,2.83,14.12
Resources BK0010,Digital and Customer Services,065481,Technical Services 065481,Supplies and Services,342033,Computers and Communications,12-Feb-2020,000008978002959,FS.COM LIMITED,5045,Computer hardware,411.00,0.00,411.00
Resources BK0010,Legal & Democratic Services,069326,Practice Management,Supplies and Services,304403,Equipment and Materials,12-Feb-2020,000008978002969,AMZNMktplace,5999,Other consumables,5.36,0.89,4.47
Resources BK0010,Finance & Transactional Services,065184,Financial Assessments,Supplies and Services,304403,Equipment and Materials,12-Feb-2020,000008978002973,AMZNMktplace,5999,Other consumables,17.98,0.00,17.98
Regeneration and Local Services,Corporate Property and Land,036000,Asset Management 036000,Employees,040149,Recruitment Instruction and Training,12-Feb-2020,000008978002977,RICS SUBS UK CYBS,8699,Training-all costs,663.00,0.00,663.00
Regeneration and Local Services,Corporate Property and Land,036000,Asset Management 036000,Employees,040149,Recruitment Instruction and Training,12-Feb-2020,000008978002985,RICS SUBS UK CYBS,8699,Training-all costs,663.00,0.00,663.00
Adult and Health Services,Head of Adults,055643,Hawthorn House LD Respite Unit,Supplies and Services,338057,Services,12-Feb-2020,000008978002993,AGE CO IADVISORS,5047,Medical fees 338057,36.00,6.00,30.00
Adult and Health Services,Head of Adults,055643,Hawthorn House LD Respite Unit,Supplies and Services,338057,Services,12-Feb-2020,000008978002993 - 1,AGE CO IADVISORS,5047,Medical fees 338057,3.47,,3.47
Resources BK0010,Digital and Customer Services,065432,Web Development Group,Supplies and Services,342053,Computers and Communications,12-Feb-2020,000008978002999,UKFAST.NET LTD,4816,Computer software,562.98,93.83,469.15
Resources BK0010,Digital and Customer Services,065432,Web Development Group,Supplies and Services,342222,Computers and Communications,12-Feb-2020,000008978002999 - 1,UKFAST.NET LTD,4816,Comp hardware purch-network servers,0.03,,0.03
Transformation and Partnerships,Business Support,069010,Administration 069010,Transport,235057,Public Transport,12-Feb-2020,000008978003005,Oyster Online,4112,Staff travelling,50.00,0.00,50.00
Regeneration and Local Services,Development and Housing,030773,CLLD North,Supplies and Services,348037,Subsistence E348,12-Feb-2020,000008978003027,COSTA COFFEE,5814,Subsistence,2.00,0.00,2.00
Children and Young Peoples Services,Head of Education and Skills,078411,16-19 Education & Training,Supplies and Services,328041,Clothing uniforms and laundry E328,12-Feb-2020,000008978003045,ARGOS LTD,5310,Clothing uniforms and laundry,9.99,0.00,9.99
Children and Young Peoples Services,Head of Education and Skills,078411,16-19 Education & Training,Supplies and Services,304259,Equipment and Materials,12-Feb-2020,000008978003055,WWW.DURHAM.GOV.UK,9399,Equipment-purchase and rental,11.00,0.00,11.00
Regeneration and Local Services,Culture Sport and Tourism,011219,Office Services 011219,Third Party Payments,430100,Rendered by Private Contractors,12-Feb-2020,000008978003093,EB YORKSHIRE HISTORY,7399,Payments to sub-contractors,26.15,4.36,21.79
Regeneration and Local Services,Culture Sport and Tourism,011219,Office Services 011219,Supplies and Services,328041,Clothing uniforms and laundry E328,12-Feb-2020,000008978003099,ARGOS LTD,5310,Clothing uniforms and laundry,63.94,0.00,63.94
Children and Young Peoples Services,Head of Childrens Social Care,085342,9 Cedar Drive Aycliffe,Supplies and Services,348037,Subsistence E348,12-Feb-2020,000008978003109,SALVOS CUCINA ITALIANA,5812,Subsistence,53.50,0.00,53.50
Children and Young Peoples Services,Head of Childrens Social Care,085342,9 Cedar Drive Aycliffe,Supplies and Services,324117,Provisions E324,12-Feb-2020,000008978003113,TESCO STORES 2916,5411,Catering costs - provisions,33.29,0.00,33.29
